Service Area,Service Division,Expense Type,Expense Code,Detailed Expense Type,Payment Date,Transaction Number,Amount Exc Vat,Supplier Name
Assistant Chief Executive,Partnerships & Community Engagement Div.,Supplies and Services,384085,Miscellaneous Expenses,03-Mar-2014,2712521-HENS09-13,500.00,PELTON FELL COMMUNITY PARTNERSHIP.
Children and Adult Services,Childrens care,Transport,230005,Contract Hire,03-Mar-2014,2712295-P35/SW,"1,590.00",AABAT TAXIS.
Children and Adult Services,Childrens care,Transport,230005,Contract Hire,03-Mar-2014,2712356-0001183,"1,000.00",COLORS TAXIS LTD.
Children and Adult Services,Childrens care,Supplies and Services,338099,Services,03-Mar-2014,2712480-CAS-02-2014-532,886.70,REDACTED - PAYMENT TO INDIVIDUAL
Children and Adult Services,Childrens care,Transport,230005,Contract Hire,03-Mar-2014,2712482-KDC020114,626.00,MJ TIMNEY T/A KDC & C&M TAXIS.
Children and Adult Services,Childrens care,Transport,230005,Contract Hire,03-Mar-2014,2712485-TS1/01/14,600.00,MR M ALLISON.
Children and Adult Services,Childrens care,Transport,230005,Contract Hire,03-Mar-2014,2712542-177,"1,612.00",ROAD RUNNERS (NE) LTD.
Children and Adult Services,Childrens care,Transport,230005,Contract Hire,03-Mar-2014,2712552-71313,544.00,SHOTTON PRIVATE HIRE.
Children and Adult Services,Childrens care,Transport,230005,Contract Hire,03-Mar-2014,2712552-71320,578.00,SHOTTON PRIVATE HIRE.
Children and Adult Services,Childrens care,Transport,230005,Contract Hire,03-Mar-2014,2712552-71324,520.00,SHOTTON PRIVATE HIRE.
Children and Adult Services,Childrens care,Transport,230005,Contract Hire,03-Mar-2014,2712573-263/2014,798.00,TONYS TAXIS (A BIRCH).
Children and Adult Services,Childrens care,Supplies and Services,372009,Subscriptions,03-Mar-2014,2712582-107722,"5,000.00",VIRTUAL COLLEGE LTD.
Children and Adult Services,Commissioning inc Supporting People,Supplies and Services,384700,Miscellaneous Expenses,03-Mar-2014,2712349-CCA57,"4,352.00",CHESTER LE STREET COMMUNITY ASSOCIATION.
Children and Adult Services,Early Intervention and Involvement,Supplies and Services,304649,Equipment and Materials,03-Mar-2014,2712601-496852988,553.60,YORKSHIRE PURCHASING ORGANISATION.
Children and Adult Services,Education,Premises,120021,Energy Costs,03-Mar-2014,2712358-08808599,"1,208.27",CORONA ENERGY RETAIL 2 LTD.
Children and Adult Services,Education,Transport,230008,Contract Hire,03-Mar-2014,2712368-2079,"1,700.00",DAVES MINIBUSES.
Children and Adult Services,Education,Employees,040001,"Recruitment, Instruction and Training",03-Mar-2014,2712574-1263439,848.00,TRINITY MIRROR PUBLISHING LTD.
Children and Adult Services,Head of Adults,Premises,120009,Energy Costs,03-Mar-2014,2712394-HF9521747,737.18,EON UK PLC.
Children and Adult Services,Head of Adults,Premises,120021,Energy Costs,03-Mar-2014,2712394-HF96B9302,"1,711.91",EON UK PLC.
Children and Adult Services,Head of Adults,Premises,125009,Rents,03-Mar-2014,2712456-336209,782.50,KNIGHT FRANK LLP.
Children and Adult Services,Planning & Service Strategy,Supplies and Services,338089,Services,03-Mar-2014,2712396-516A,"1,085.00",FIRST IN TRAINING LTD.
Children and Adult Services,Planning & Service Strategy,Supplies and Services,340001,Postages,03-Mar-2014,2712544-9046632910,951.22,ROYAL MAIL GROUP PLC.
Children and Adult Services,Public Health,Supplies and Services,344033,Telephones,03-Mar-2014,2712375-238183,"1,325.00",DIGITAL COMMUNICATION SYSTEMS LTD.
Corporate Resources,I.C.T. Services,Supplies and Services,332029,"Printing, Stationery and Gen Off Exps",03-Mar-2014,2712391-111103,925.00,ENCORE ENVELOPES LTD.
Corporate Resources,I.C.T. Services,Supplies and Services,332029,"Printing, Stationery and Gen Off Exps",03-Mar-2014,2712553-7299,"1,205.00",SPOT ON DISPLAYS LTD.
Neighbourhood Services,Culture & Sport,Supplies and Services,304259,Equipment and Materials,03-Mar-2014,2712294-002578,863.82,A HILL & SONS LTD.
Neighbourhood Services,Culture & Sport,Supplies and Services,312013,"Newspapers, Books and Periodicals",03-Mar-2014,2712306-4192368,654.36,ASKEWS & HOLTS LIBRARY SERVICES LTD.
Neighbourhood Services,Culture & Sport,Supplies and Services,312013,"Newspapers, Books and Periodicals",03-Mar-2014,2712306-4192491,578.03,ASKEWS & HOLTS LIBRARY SERVICES LTD.
Neighbourhood Services,Culture & Sport,Supplies and Services,312013,"Newspapers, Books and Periodicals",03-Mar-2014,2712306-4192618,552.30,ASKEWS & HOLTS LIBRARY SERVICES LTD.
Neighbourhood Services,Culture & Sport,Supplies and Services,312013,"Newspapers, Books and Periodicals",03-Mar-2014,2712306-4192647,559.15,ASKEWS & HOLTS LIBRARY SERVICES LTD.
Neighbourhood Services,Culture & Sport,Debtors,930056,Debtor-Darlington Civic Theatre,03-Mar-2014,2712367-2481121,516.52,DARLINGTON BOROUGH COUNCIL.
Neighbourhood Services,Culture & Sport,Supplies and Services,338047,Services,03-Mar-2014,2712382-COMEDYFEST,"2,789.85",DURHAM REVUE.
Neighbourhood Services,Culture & Sport,Supplies and Services,338047,Services,03-Mar-2014,2712383-60134785,700.78,ENTERTAINMENT ONE UK LTD.
Neighbourhood Services,Culture & Sport,Premises,120021,Energy Costs,03-Mar-2014,2712504,"1,301.07",NORTHERN PROPERTY (UK) LTD.
Neighbourhood Services,Culture & Sport,Supplies and Services,338047,Services,03-Mar-2014,2712577-GB14B0013035,788.12,TWENTIETH CENTURY FOX FILM CO LTD.
Neighbourhood Services,Culture & Sport,Supplies and Services,338047,Services,03-Mar-2014,2712577-GB14B0013037,577.37,TWENTIETH CENTURY FOX FILM CO LTD.
Neighbourhood Services,Culture & Sport,Supplies and Services,338047,Services,03-Mar-2014,2712577-GB14B0013038,703.12,TWENTIETH CENTURY FOX FILM CO LTD.
Neighbourhood Services,Culture & Sport,Supplies and Services,312013,"Newspapers, Books and Periodicals",03-Mar-2014,2712578-I568646,"1,851.30",ULVERSCROFT LARGE PRINT BOOKS LTD.
Neighbourhood Services,Culture & Sport,Supplies and Services,338047,Services,03-Mar-2014,2712586-22157064,"1,773.87",WARNER BROS ENTERTAINMENT UK LTD.
Neighbourhood Services,Culture & Sport,Supplies and Services,338047,Services,03-Mar-2014,2712586-22157065,"1,518.23",WARNER BROS ENTERTAINMENT UK LTD.
Neighbourhood Services,Direct Services,Stock,926004,Stock,03-Mar-2014,2712346-2077392,"39,182.06",CERTAS ENERGY UK LTD.
Neighbourhood Services,Direct Services,Stock,926004,Stock,03-Mar-2014,2712346-2080464,"23,998.59",CERTAS ENERGY UK LTD.
Neighbourhood Services,Direct Services,Stock,926004,Stock,03-Mar-2014,2712346-2083771,"1,650.45",CERTAS ENERGY UK LTD.
Neighbourhood Services,Direct Services,Stock,926004,Stock,03-Mar-2014,2712346-2097076,"3,769.20",CERTAS ENERGY UK LTD.
Neighbourhood Services,Direct Services,Stock,926004,Stock,03-Mar-2014,2712346-2109707,"13,117.41",CERTAS ENERGY UK LTD.
Neighbourhood Services,Direct Services,Stock,926004,Stock,03-Mar-2014,2712346-2109720,"1,890.60",CERTAS ENERGY UK LTD.
Neighbourhood Services,Direct Services,Stock,926004,Stock,03-Mar-2014,2712346-2117268,"1,890.60",CERTAS ENERGY UK LTD.
Neighbourhood Services,Direct Services,Supplies and Services,304221,Equipment and Materials,03-Mar-2014,2712388-059-137540,"1,174.59",EDMUNDSON ELECTRICAL LTD.
Neighbourhood Services,Direct Services,Supplies and Services,304221,Equipment and Materials,03-Mar-2014,2712388-059-137797,838.61,EDMUNDSON ELECTRICAL LTD.
Neighbourhood Services,Direct Services,Supplies and Services,304221,Equipment and Materials,03-Mar-2014,2712388-059-137968,614.56,EDMUNDSON ELECTRICAL LTD.
Neighbourhood Services,Direct Services,Third Party Payments,430100,Rendered by Private Contractors,03-Mar-2014,2712401-B92403,"1,902.13",GEESINK NORBA LTD.
Neighbourhood Services,Direct Services,Transport,210057,Repair and Maintenance of Vehicles,03-Mar-2014,2712415-028527,653.73,HAGS-SMP LTD.
Neighbourhood Services,Direct Services,Third Party Payments,430100,Rendered by Private Contractors,03-Mar-2014,2712418-75241,835.55,HEIL FARID EUROPEAN COMPANY LTD.
Neighbourhood Services,Direct Services,Transport,210057,Repair and Maintenance of Vehicles,03-Mar-2014,2712419-1443164360,540.14,HILTI (GB) LTD.
Neighbourhood Services,Direct Services,Premises,115125,Repairs to Grounds,03-Mar-2014,2712427-B33/0063898,664.39,HOWDENS JOINERY LTD.
Neighbourhood Services,Direct Services,Premises,115125,Repairs to Grounds,03-Mar-2014,2712427-B33/0063976,630.02,HOWDENS JOINERY LTD.
Neighbourhood Services,Direct Services,Premises,115125,Repairs to Grounds,03-Mar-2014,2712427-B33/0063977,548.34,HOWDENS JOINERY LTD.
Neighbourhood Services,Direct Services,Third Party Payments,430100,Rendered by Private Contractors,03-Mar-2014,2712429-204583,657.18,HYDRAQUIP.
Neighbourhood Services,Direct Services,Premises,115125,Repairs to Grounds,03-Mar-2014,2712438-SF/I044870,"12,155.96",JCDECAUX UK LTD.
Neighbourhood Services,Direct Services,Supplies and Services,304221,Equipment and Materials,03-Mar-2014,2712527-412015969,854.17,PLUMBING TRADE SUPPLIES LTD.
Neighbourhood Services,Direct Services,Supplies and Services,304221,Equipment and Materials,03-Mar-2014,2712527-4120162182,870.35,PLUMBING TRADE SUPPLIES LTD.
Neighbourhood Services,Direct Services,Supplies and Services,304221,Equipment and Materials,03-Mar-2014,2712565-1058252,"1,425.00",T CROSSLING & CO LTD.
Neighbourhood Services,Direct Services,Supplies and Services,384974,Miscellaneous Expenses,03-Mar-2014,2712581,"50,000.00",VEHICLE & OPERATOR SERVICES AGENCY (VOSA).
Neighbourhood Services,Direct Services,Premises,115125,Repairs to Grounds,03-Mar-2014,2712590-2450,"4,446.50",WELLSPRINGS PROPERTIES LTD.
Neighbourhood Services,Projects and Business services,Supplies and Services,304357,Equipment and Materials,03-Mar-2014,2712481-11705,"3,800.00",MJ HICKEY PLANT HIRE & CONTRACTS LTD.
Neighbourhood Services,Technical Services,Construction Work,908105,Construction work,03-Mar-2014,2712361-10059,"2,490.60",COUPE LINE LTD.
Neighbourhood Services,Technical Services,Third Party Payments,430100,Rendered by Private Contractors,03-Mar-2014,2712361-15574,"8,425.57",COUPE LINE LTD.
Neighbourhood Services,Technical Services,Third Party Payments,430100,Rendered by Private Contractors,03-Mar-2014,2712361-15771,"1,208.88",COUPE LINE LTD.
Neighbourhood Services,Technical Services,Stock,926900,Stock in hand-Inventory system,03-Mar-2014,2712388-059-137791,"31,805.98",EDMUNDSON ELECTRICAL LTD.
Neighbourhood Services,Technical Services,Stock,926900,Stock in hand-Inventory system,03-Mar-2014,2712442-NI024162,"24,591.60",JOHN MACLEAN & SONS ELECTRICAL (DINGWALL) LTD.
Neighbourhood Services,Technical Services,Stock,926900,Stock in hand-Inventory system,03-Mar-2014,2712446-NOI41997,507.78,JT DOVE LTD.
Neighbourhood Services,Technical Services,Stock,926900,Stock in hand-Inventory system,03-Mar-2014,2712446-STI396214,504.00,JT DOVE LTD.
Neighbourhood Services,Technical Services,Supplies and Services,304221,Equipment and Materials,03-Mar-2014,2712493-33315,620.10,NAL LTD.
Neighbourhood Services,Technical Services,Supplies and Services,338027,Services,03-Mar-2014,2712506-902791,"11,840.00",NORTHUMBERLAND COUNTY COUNCIL.
Neighbourhood Services,Technical Services,Stock,926900,Stock in hand-Inventory system,03-Mar-2014,2712519-XL107785,"5,445.58",PARK ELECTRICAL DISTRIBUTORS LTD.
Neighbourhood Services,Technical Services,Third Party Payments,430100,Rendered by Private Contractors,03-Mar-2014,2712530-127563,"5,793.90",PREMIER TRAFFIC MANAGEMENT LTD.
Neighbourhood Services,Technical Services,Third Party Payments,430100,Rendered by Private Contractors,03-Mar-2014,2712530-127569,"13,599.20",PREMIER TRAFFIC MANAGEMENT LTD.
Neighbourhood Services,Technical Services,Third Party Payments,430100,Rendered by Private Contractors,03-Mar-2014,2712530-127605,641.00,PREMIER TRAFFIC MANAGEMENT LTD.
Neighbourhood Services,Technical Services,Third Party Payments,430100,Rendered by Private Contractors,03-Mar-2014,2712530-127633,"1,005.60",PREMIER TRAFFIC MANAGEMENT LTD.
Neighbourhood Services,Technical Services,Third Party Payments,430100,Rendered by Private Contractors,03-Mar-2014,2712537-2580/140132,"102,662.30",RAINTON CONSTRUCTION LTD.
Neighbourhood Services,Technical Services,Stock,926900,Stock in hand-Inventory system,03-Mar-2014,2712565-1071849,547.20,T CROSSLING & CO LTD.
Neighbourhood Services,Technical Services,Stock,926900,Stock in hand-Inventory system,03-Mar-2014,2712596-83266479,"1,036.14",WOLSELEY UK LTD.
RED HRA,Housing Revenue Account,Premises,120009,Energy Costs,03-Mar-2014,2712590-2456,581.20,WELLSPRINGS PROPERTIES LTD.
RED HRA,Housing Revenue Account,Supplies and Services,342007,Computers and Communications,03-Mar-2014,2712599-DCC057,"1,475.00",WYNYARD IT & CONSULTANCY SERVICES LT.
Regeneration & Economic Development,Econ Dev and Regen Financing,Creditors,952146,Creditor-Section 106 agreement,03-Mar-2014,2712585-RES-02-2014-096,"8,600.00",WALDRIDGE PARISH COUNCIL.
Regeneration & Economic Development,Economic Development and Housing,Premises,120009,Energy Costs,03-Mar-2014,2712358-09036485,913.96,CORONA ENERGY RETAIL 2 LTD.
Regeneration & Economic Development,Economic Development and Housing,Premises,120021,Energy Costs,03-Mar-2014,2712358-09036493,775.70,CORONA ENERGY RETAIL 2 LTD.
Regeneration & Economic Development,Economic Development and Housing,Premises,120021,Energy Costs,03-Mar-2014,2712358-09043927,"2,323.87",CORONA ENERGY RETAIL 2 LTD.
Regeneration & Economic Development,Economic Development and Housing,Premises,120021,Energy Costs,03-Mar-2014,2712358-09048782,"1,023.22",CORONA ENERGY RETAIL 2 LTD.
Regeneration & Economic Development,Economic Development and Housing,Premises,120021,Energy Costs,03-Mar-2014,2712358-61407299,"1,718.00",CORONA ENERGY RETAIL 2 LTD.
Regeneration & Economic Development,Economic Development and Housing,Construction Work,908105,Construction work,03-Mar-2014,2712395-RED-02-2014-287,"7,000.00",FILTRONIC BROADBAND LTD.
Regeneration & Economic Development,Economic Development and Housing,Construction Work,908105,Construction work,03-Mar-2014,2712395-RED-02-2014-288,"120,000.00",FILTRONIC BROADBAND LTD.
Regeneration & Economic Development,Economic Development and Housing,Cap Exp on Grants & Other Financial Assistance (REFCUS),918401,Capital grants,03-Mar-2014,2712449-RED-03-2014-005,"4,982.40",KASON CONSTRUCTION LTD.
Regeneration & Economic Development,Economic Development and Housing,Supplies and Services,384700,Miscellaneous Expenses,03-Mar-2014,2712491-RED-02-2014-297,"1,000.00",MTF ENGINEERING.
Regeneration & Economic Development,Economic Development and Housing,Cap Exp on Grants & Other Financial Assistance (REFCUS),918401,Capital grants,03-Mar-2014,2712500-RED-02-2014-003,"5,089.00",NEW AGE PLUMBING & HEATING SERVICES.
Regeneration & Economic Development,Economic Development and Housing,Premises,120009,Energy Costs,03-Mar-2014,2712510-NNO7JNKP,"2,653.43",NPOWER.
Regeneration & Economic Development,Economic Development and Housing,Premises,120009,Energy Costs,03-Mar-2014,2712510-NNO7JSN3,"1,482.71",NPOWER.
Regeneration & Economic Development,Economic Development and Housing,Supplies and Services,344033,Telephones,03-Mar-2014,2712523-002910279,"1,251.65",PHONE CO-OP.
Regeneration & Economic Development,Economic Development and Housing,Supplies and Services,344033,Telephones,03-Mar-2014,2712523-002910284,"1,367.42",PHONE CO-OP.
Regeneration & Economic Development,Economic Development and Housing,Cap Exp on Grants & Other Financial Assistance (REFCUS),918401,Capital grants,03-Mar-2014,2712571-RED-02-2014-004,"1,562.00",THYSSENKRUPP ENCASA LTD.
Regeneration & Economic Development,Economic Development and Housing,Cap Exp on Grants & Other Financial Assistance (REFCUS),918401,Capital grants,03-Mar-2014,2712571-RED-03-2014-002,"1,765.00",THYSSENKRUPP ENCASA LTD.
Regeneration & Economic Development,Economic Development and Housing,Supplies and Services,384700,Miscellaneous Expenses,03-Mar-2014,2712588-RED-02-2014-290,"1,000.00",WAYNE WHITWORTH JOINERY.
Regeneration & Economic Development,"Spatial Policy, Planning, Assets & Environment",Supplies and Services,384999,Miscellaneous Expenses,03-Mar-2014,2712541-148,585.43,RO-RO RESTAURANTS LTD T/A OLDFIELDS NOTED EATING HOUSE.
Regeneration & Economic Development,Transport and Contracted Services,Construction Work,908105,Construction work,03-Mar-2014,2712296-28181506,"3,633.00",AECOM LTD.
Regeneration & Economic Development,Transport and Contracted Services,Third Party Payments,430106,Rendered by Private Contractors,03-Mar-2014,2712305-106603,"97,385.87",ARRIVA NORTH EAST LTD.
Regeneration & Economic Development,Transport and Contracted Services,Third Party Payments,430106,Rendered by Private Contractors,03-Mar-2014,2712411-163V,"1,615.50",GRAHAMS MOTOR SERVICES.
Regeneration & Economic Development,Transport and Contracted Services,Third Party Payments,430106,Rendered by Private Contractors,03-Mar-2014,2712411-164V,"3,216.00",GRAHAMS MOTOR SERVICES.
Regeneration & Economic Development,Transport and Contracted Services,Supplies and Services,384199,Miscellaneous Expenses,03-Mar-2014,2712435-JC0084B0/012/SL,"10,288.00",JACOBS UK LTD.
Regeneration & Economic Development,Transport and Contracted Services,Supplies and Services,304259,Equipment and Materials,03-Mar-2014,2712575-3IN/10236214,"1,873.50",TUNSTALL HEALTHCARE (UK) LTD.
Assistant Chief Executive,Planning & Performance Division,Supplies and Services,384197,Miscellaneous Expenses,04-Mar-2014,2713535-RH46258-RH46278,666.95,IRON MOUNTAIN (UK) LTD.
Children and Adult Services,Central Charges (CYPS),Creditors,952132,D.A.S.H.,04-Mar-2014,2713565-1000215,"1,086.00",KING JAMES I ACADEMY.
Children and Adult Services,Childrens care,Third Party Payments,440015,Other Third Party Payments,04-Mar-2014,228710-935775,670.32,REDACTED - PAYMENT TO INDIVIDUAL
Children and Adult Services,Childrens care,Third Party Payments,440028,Other Third Party Payments,04-Mar-2014,2713190-936162,708.82,REDACTED - PAYMENT TO INDIVIDUAL
Children and Adult Services,Childrens care,Supplies and Services,364353,Grants to Voluntary Organisations,04-Mar-2014,2713242-680,"3,050.00",AQUILA WAY.
Children and Adult Services,Childrens care,Employees,080025,Agency Staff,04-Mar-2014,2713324-2277917,"1,615.00",CELSIAN.
Children and Adult Services,Childrens care,Supplies and Services,338057,Services,04-Mar-2014,2713352-97051,514.57,COMPLEMENT GENOMICS LTD.
Children and Adult Services,Childrens care,Third Party Payments,425041,Rendered by Voluntary Organisations,04-Mar-2014,2713405-3482454,"50,000.00",DFW ADOPTION.
Children and Adult Services,Childrens care,Supplies and Services,384638,Miscellaneous Expenses,04-Mar-2014,2713430-1-11,975.00,EAST DURHAM POSITIVE INCLUSION PARTNERSHIP.
Children and Adult Services,Childrens care,Supplies and Services,338027,Services,04-Mar-2014,2713525-ISPL043,"4,750.00",IMPROVEMENT SUPPORT PARTNERS LTD.
Children and Adult Services,Childrens care,Supplies and Services,384199,Miscellaneous Expenses,04-Mar-2014,2713671-0000016215,570.00,NORTH EAST AUTISM SOCIETY.
Children and Adult Services,Childrens care,Supplies and Services,384199,Miscellaneous Expenses,04-Mar-2014,2713671-0000016216,788.00,NORTH EAST AUTISM SOCIETY.
Children and Adult Services,Childrens care,Supplies and Services,384199,Miscellaneous Expenses,04-Mar-2014,2713671-0000016217,"1,280.00",NORTH EAST AUTISM SOCIETY.
Children and Adult Services,Childrens care,Supplies and Services,384199,Miscellaneous Expenses,04-Mar-2014,2713671-0000016223,"1,160.00",NORTH EAST AUTISM SOCIETY.
Children and Adult Services,Childrens care,Third Party Payments,425041,Rendered by Voluntary Organisations,04-Mar-2014,2713684-153/578,"9,000.00",NUGENT CARE ADOPTION SERVICES.
Children and Adult Services,Childrens care,Supplies and Services,338027,Services,04-Mar-2014,2713708-390,"13,150.00",PEOPLETOO LTD.
Children and Adult Services,Childrens care,Third Party Payments,425040,Rendered by Voluntary Organisations,04-Mar-2014,2713752-505,"3,100.00",REACH OUT CARE LTD.
Children and Adult Services,Childrens care,Supplies and Services,338026,Services,04-Mar-2014,2713848,600.00,TA JOHNSON.
Children and Adult Services,Childrens care,Supplies and Services,384638,Miscellaneous Expenses,04-Mar-2014,2713933-WM04,"2,300.00",WEAR MENCAP.
Children and Adult Services,Commissioning inc Supporting People,Supplies and Services,338045,Services,04-Mar-2014,2713877-187617,"2,700.00",THIRTY NINE ESSEX STREET.
Children and Adult Services,Commissioning inc Supporting People,Supplies and Services,384700,Miscellaneous Expenses,04-Mar-2014,2713896-GLA01/1,500.00,TRIMDON VILLAGE HALL ASSOCIATION.
Children and Adult Services,Early Intervention and Involvement,Supplies and Services,340001,Postages,04-Mar-2014,2713253-SIN008559,532.50,AWARD SCHEME LTD.
Children and Adult Services,Early Intervention and Involvement,Supplies and Services,384409,Miscellaneous Expenses,04-Mar-2014,2713389-MC13/02,"2,000.00",DALES AREA EIC.
Children and Adult Services,Early Intervention and Involvement,Supplies and Services,384199,Miscellaneous Expenses,04-Mar-2014,2713417-20011588,"1,315.00",DURHAM POLICE & CRIME COMMISSIONER.
Children and Adult Services,Early Intervention and Involvement,Premises,125009,Rents,04-Mar-2014,2713491-GH3523,"1,010.59",GROUNDWORK NORTH EAST.
Children and Adult Services,Early Intervention and Involvement,Supplies and Services,340001,Postages,04-Mar-2014,2713651-CAS-03-2014-001,900.00,NEOPOST LTD CREDIFON RCB ACCOUNT.
Children and Adult Services,Early Intervention and Involvement,Supplies and Services,342053,Computers and Communications,04-Mar-2014,2713691-SDP002,"4,900.00",ORCUMA LTD.
Children and Adult Services,Early Intervention and Involvement,Supplies and Services,342053,Computers and Communications,04-Mar-2014,2713691-SDP003,"4,900.00",ORCUMA LTD.
Children and Adult Services,Early Intervention and Involvement,Supplies and Services,304649,Equipment and Materials,04-Mar-2014,2713765-028887,572.95,ROMPA LTD.
Children and Adult Services,Early Intervention and Involvement,Premises,125009,Rents,04-Mar-2014,2713874-2900,"1,233.30",THE WORK PLACE (AYCLIFFE) LTD.
Children and Adult Services,Early Intervention and Involvement,Supplies and Services,384362,Miscellaneous Expenses,04-Mar-2014,2713948-496853013,599.14,YORKSHIRE PURCHASING ORGANISATION.
Children and Adult Services,Education,Transport,230007,Contract Hire,04-Mar-2014,2713335-44232,"1,050.00",CJ GRIERSON.
Children and Adult Services,Education,Transport,230007,Contract Hire,04-Mar-2014,2713335-44233,"3,600.00",CJ GRIERSON.
Children and Adult Services,Education,Transport,230007,Contract Hire,04-Mar-2014,2713335-44234,"1,485.00",CJ GRIERSON.
Children and Adult Services,Education,Transport,230007,Contract Hire,04-Mar-2014,2713335-44235,"1,335.00",CJ GRIERSON.
Children and Adult Services,Education,Transport,230007,Contract Hire,04-Mar-2014,2713335-44236,"1,485.00",CJ GRIERSON.
Children and Adult Services,Education,Transport,230007,Contract Hire,04-Mar-2014,2713335-44237,"3,472.00",CJ GRIERSON.
Children and Adult Services,Education,Transport,230007,Contract Hire,04-Mar-2014,2713335-44238,"1,470.00",CJ GRIERSON.
Children and Adult Services,Education,Transfer Payments,510026,School Children,04-Mar-2014,2713365-CAS-02-2014-535,"6,000.00",COUNDON & LEEHOLME EARLY YEARS CENTRE LTD.
Children and Adult Services,Education,Transfer Payments,510026,School Children,04-Mar-2014,2713399,"3,293.82",DAYPARK LTD T/A YELLOW WELLIES.
Children and Adult Services,Education,Transport,230007,Contract Hire,04-Mar-2014,2713442-5075/0214,574.95,ELLIOTTS OF TRIMDON.
Children and Adult Services,Education,Transport,230008,Contract Hire,04-Mar-2014,2713442-E052/0214,870.00,ELLIOTTS OF TRIMDON.
Children and Adult Services,Education,Transport,230008,Contract Hire,04-Mar-2014,2713442-S006/0214,"1,095.00",ELLIOTTS OF TRIMDON.
Children and Adult Services,Education,Transport,230007,Contract Hire,04-Mar-2014,2713473-16079,"2,085.00",GARNETTS LTD (COACHES).
Children and Adult Services,Education,Transport,230007,Contract Hire,04-Mar-2014,2713473-16080,"3,270.00",GARNETTS LTD (COACHES).
Children and Adult Services,Education,Transport,230007,Contract Hire,04-Mar-2014,2713473-16081,"8,925.00",GARNETTS LTD (COACHES).
Children and Adult Services,Education,Transport,230007,Contract Hire,04-Mar-2014,2713473-16082,"5,418.00",GARNETTS LTD (COACHES).
Children and Adult Services,Education,Transport,230007,Contract Hire,04-Mar-2014,2713473-16083,"13,335.00",GARNETTS LTD (COACHES).
Children and Adult Services,Education,Transport,230007,Contract Hire,04-Mar-2014,2713473-16084,"1,935.00",GARNETTS LTD (COACHES).
Children and Adult Services,Education,Transport,230007,Contract Hire,04-Mar-2014,2713473-16085,"2,385.00",GARNETTS LTD (COACHES).
Children and Adult Services,Education,Transport,230007,Contract Hire,04-Mar-2014,2713487-GT006,"1,170.00",GORDON`S TAXIS.
Children and Adult Services,Education,Transport,230007,Contract Hire,04-Mar-2014,2713488-165V,"1,560.00",GRAHAMS MOTOR SERVICES.
Children and Adult Services,Education,Transport,230008,Contract Hire,04-Mar-2014,2713492-006A,552.00,GS PEARSON.
Children and Adult Services,Education,Transfer Payments,510026,School Children,04-Mar-2014,2713514-14259,"1,271.15",HOUSE OF EDEN CHILDRENS NURSERY.
Children and Adult Services,Education,Transfer Payments,510026,School Children,04-Mar-2014,2713514-14260,851.85,HOUSE OF EDEN CHILDRENS NURSERY.
Children and Adult Services,Education,"Vehicles, Equipment, Furniture and Fittings",912701,Computer equipment,04-Mar-2014,2713529-DURH/0471,"72,000.00",INSPIREDSPACES DURHAM LTD.
Children and Adult Services,Education,Transport,230008,Contract Hire,04-Mar-2014,2713616-N071(006),"1,618.75",MISS KA SUTHERLAND T/A FERRYHILL TRAVEL TAXI & MINIBUS HIRE.
Children and Adult Services,Education,Transport,230008,Contract Hire,04-Mar-2014,2713630-037,"1,563.75",MR GN ROBBINS T/A GNR MINIBUS HIRE.
Children and Adult Services,Education,Transport,230008,Contract Hire,04-Mar-2014,2713630-038,"1,042.00",MR GN ROBBINS T/A GNR MINIBUS HIRE.
Children and Adult Services,Education,Construction Work,908105,Construction work,04-Mar-2014,2713774-1004,"4,125.60",SAFE STRIP UK LTD.
Children and Adult Services,Education,Construction Work,908105,Construction work,04-Mar-2014,2713774-1035,"1,976.58",SAFE STRIP UK LTD.
Children and Adult Services,Education,Supplies and Services,384199,Miscellaneous Expenses,04-Mar-2014,2713808-214175,665.00,SIMPLY SPORT LTD.
Children and Adult Services,Education,Supplies and Services,338027,Services,04-Mar-2014,2713826-0000000265,"2,600.00",ST JOHN`S SCHOOL & SIXTH FORM COLLEGE A CATHOLIC ACADEMY.
Children and Adult Services,Education,Supplies and Services,338027,Services,04-Mar-2014,2713826-0000000266,600.00,ST JOHN`S SCHOOL & SIXTH FORM COLLEGE A CATHOLIC ACADEMY.
Children and Adult Services,Education,Supplies and Services,324500,Provisions,04-Mar-2014,2713850-SI-TSW-1013886,"2,378.30",TAYLOR SHAW LTD.
Children and Adult Services,Education,Supplies and Services,324500,Provisions,04-Mar-2014,2713850-SI-TSW-1014511,"3,880.15",TAYLOR SHAW LTD.
Children and Adult Services,Education,Premises,125009,Rents,04-Mar-2014,2713874-2899,"4,813.75",THE WORK PLACE (AYCLIFFE) LTD.
Children and Adult Services,Education,Transfer Payments,510026,School Children,04-Mar-2014,2713880-4962,"1,230.45",THORNLEY CHILDRENS CENTRE.
Children and Adult Services,Education,Supplies and Services,304649,Equipment and Materials,04-Mar-2014,2713948-496853016,"1,160.00",YORKSHIRE PURCHASING ORGANISATION.
Children and Adult Services,Education,Supplies and Services,304649,Equipment and Materials,04-Mar-2014,2713948-496853021,"1,026.97",YORKSHIRE PURCHASING ORGANISATION.
Children and Adult Services,Head of Adults,Supplies and Services,328041,"Clothing, Uniforms and Laundry",04-Mar-2014,2713214-1042/001/0001-1,"3,714.75",ACCENT FOUNDATION.
Children and Adult Services,Head of Adults,Supplies and Services,384616,Miscellaneous Expenses,04-Mar-2014,2713462-SH461314,"4,547.97",FOUR HOUSING GROUP.
Children and Adult Services,Head of Adults,Supplies and Services,304252,Equipment and Materials,04-Mar-2014,2713469-554599,880.00,G SUGGETT.
Children and Adult Services,Head of Adults,Third Party Payments,470101,Purchase of Care,04-Mar-2014,2713530-INV-0067,"8,320.09",INTERACT CARE LTD.
Children and Adult Services,Head of Adults,Supplies and Services,384616,Miscellaneous Expenses,04-Mar-2014,2713536-2014/D15E/0204,516.60,ISOS HOUSING LTD FORMERLY NOMADE5 HOUSING GROUP LTD.
Children and Adult Services,Head of Adults,Supplies and Services,308011,Furniture,04-Mar-2014,2713540-77867,568.82,J M
Children and Adult Services,Head of Adults,Supplies and Services,324117,Provisions,04-Mar-2014,2713555-O76044,"1,035.68",JR HOLLAND FOOD SERVICES LTD.
Children and Adult Services,Head of Adults,Supplies and Services,324117,Provisions,04-Mar-2014,2713555-O76046,771.49,JR HOLLAND FOOD SERVICES LTD.
Children and Adult Services,Head of Adults,Supplies and Services,324117,Provisions,04-Mar-2014,2713555-O76049,672.08,JR HOLLAND FOOD SERVICES LTD.
Children and Adult Services,Head of Adults,Supplies and Services,304259,Equipment and Materials,04-Mar-2014,2713841-6511506,521.12,SUPPLIES TEAM LTD.
Children and Adult Services,Head of Adults,Third Party Payments,479101,Purchase of Care,04-Mar-2014,2713861-37850,907.37,THE AVALON GROUP.
Children and Adult Services,Head of Adults,Third Party Payments,479101,Purchase of Care,04-Mar-2014,2713861-38012,819.56,THE AVALON GROUP.
Children and Adult Services,Public Health,Third Party Payments,460803,Contract Payments,04-Mar-2014,2713296-CAS-02-2014-536,"2,500.00",BURGESS HYDER DENTAL GROUP.
Children and Adult Services,Public Health,Third Party Payments,460803,Contract Payments,04-Mar-2014,2713297-CAS-02-2014-537,"2,500.00",BURGESS HYDER DENTAL GROUP.
Children and Adult Services,Public Health,Third Party Payments,460803,Contract Payments,04-Mar-2014,2713298-CAS-02-2014-538,"2,500.00",BURGESS HYDER DENTAL GROUP.
Children and Adult Services,Public Health,Third Party Payments,460803,Contract Payments,04-Mar-2014,2713299-CAS-02-2014-539,"2,500.00",BURGESS HYDER DENTAL GROUP.
Children and Adult Services,Public Health,Third Party Payments,460803,Contract Payments,04-Mar-2014,2713300-CAS-02-2014-540,500.00,BURGESS HYDER DENTAL GROUP.
Children and Adult Services,Public Health,Third Party Payments,460803,Contract Payments,04-Mar-2014,2713301-CAS-02-2014-541,"2,500.00",BURGESS HYDER DENTAL GROUP.
Children and Adult Services,Public Health,Third Party Payments,460803,Contract Payments,04-Mar-2014,2713302-CAS-02-2014-542,"2,500.00",BURGESS HYDER DENTAL GROUP.
Children and Adult Services,Public Health,Supplies and Services,384540,Miscellaneous Expenses,04-Mar-2014,2713345-3980003397,"10,152.00",CO DURHAM & DARLINGTON NHS FOUNDATION TRUST.
Children and Adult Services,Public Health,Third Party Payments,460803,Contract Payments,04-Mar-2014,2713534-3770,"12,600.00",INTRAHEALTH LTD.
Children and Adult Services,Public Health,Third Party Payments,460803,Contract Payments,04-Mar-2014,2713534-3825,"12,600.00",INTRAHEALTH LTD.
Children and Adult Services,Public Health,Third Party Payments,460802,Contract Payments,04-Mar-2014,2713583-SI-002301,"19,780.00",LEISUREWORKS.
Children and Adult Services,Public Health,Third Party Payments,460803,Contract Payments,04-Mar-2014,2713766-RTD26,"2,800.00",ROWLANDS GILL MEDICAL CENTRE.
Children and Adult Services,Public Health,Third Party Payments,460802,Contract Payments,04-Mar-2014,2713772,800.00,SACRISTON SURGERY.
Children and Adult Services,Public Health,Third Party Payments,460802,Contract Payments,04-Mar-2014,2713803,868.50,SHINWELL MEDICAL GROUP.
Children and Adult Services,Public Health,Third Party Payments,460802,Contract Payments,04-Mar-2014,2713873,"2,092.97",THE WEARDALE PRACTICE.
Children and Adult Services,Public Health,Employees,040149,"Recruitment, Instruction and Training",04-Mar-2014,2713913-S140469466,880.00,UNIVERSITY OF NEWCASTLE UPON TYNE.
Corporate Resources,Centrally Administered Costs,Supplies and Services,338013,Services,04-Mar-2014,2713608-931398,"33,318.00",MAZARS LLP.
Corporate Resources,Financial Services,Supplies and Services,342051,Computers and Communications,04-Mar-2014,2713334-C/RB122590,"12,400.00",CIVICA UK LTD.
Corporate Resources,Financial Services,Supplies and Services,338091,Services,04-Mar-2014,2713558,"1,586.00",KAPLAN FINANCIAL LTD.
Corporate Resources,I.C.T. Services,Supplies and Services,304252,Equipment and Materials,04-Mar-2014,2713212-794,681.00,AA SHOP FRONTS & SHUTTERS LTD.
Corporate Resources,I.C.T. Services,"Vehicles, Equipment, Furniture and Fittings",912701,Computer equipment,04-Mar-2014,2713400-7402092646,"19,732.80",DELL COMPUTER CORPORATION LTD.
Corporate Resources,I.C.T. Services,Debtors,930167,Debtor-Telephone Holding Account,04-Mar-2014,2713653-201582,"30,263.05",NETWORKS 2 BUSINESS LTD.
Corporate Resources,I.C.T. Services,Stock,926900,Stock in hand-Inventory system,04-Mar-2014,2713820-OP/L800158,"13,998.39",SPECIALIST COMPUTER CENTRES PLC.
Corporate Resources,I.C.T. Services,Supplies and Services,344033,Telephones,04-Mar-2014,2713849-04950065,"1,748.12",TALKTALK BUSINESS.
Corporate Resources,I.C.T. Services,Stock,926900,Stock in hand-Inventory system,04-Mar-2014,2713920-2338165,"31,900.00",VIGLEN LTD.
Corporate Resources,Legal & Democratic Services,Premises,125009,Rents,04-Mar-2014,2713759-5883,542.87,RIVERGREEN DEVELOPMENTS PLC.
Dedicated Schools Grant,Dedicated Schools Grant,Supplies and Services,384199,Miscellaneous Expenses,04-Mar-2014,2713280-JAN/FEB2014,968.00,BRANDON HAPPYTIMES DAYCARE.
Dedicated Schools Grant,Dedicated Schools Grant,Third Party Payments,440080,Other Third Party Payments,04-Mar-2014,2713317-23729,"10,080.00",CATCH 22.
Dedicated Schools Grant,Dedicated Schools Grant,Transport,230008,Contract Hire,04-Mar-2014,2713560-L049(002),870.00,KEITH HAMMOND T/A FERRYHILL VILLAGE TRAVEL.
Dedicated Schools Grant,Dedicated Schools Grant,Transport,230008,Contract Hire,04-Mar-2014,2713560-L050(002),810.00,KEITH HAMMOND T/A FERRYHILL VILLAGE TRAVEL.
Dedicated Schools Grant,Dedicated Schools Grant,Employees,080025,Agency Staff,04-Mar-2014,2713662-84,726.00,NEXT STEP CONSULTANCY.
Dedicated Schools Grant,Dedicated Schools Grant,Employees,080025,Agency Staff,04-Mar-2014,2713854-871977,"2,084.45",TEACHING PERSONNEL LTD.
Dedicated Schools Grant,Dedicated Schools Grant,Employees,080025,Agency Staff,04-Mar-2014,2713854-874493,"1,905.80",TEACHING PERSONNEL LTD.
Neighbourhood Services,Culture & Sport,Supplies and Services,312017,"Newspapers, Books and Periodicals",04-Mar-2014,2713250-4178426,591.58,ASKEWS & HOLTS LIBRARY SERVICES LTD.
Neighbourhood Services,Culture & Sport,Supplies and Services,312013,"Newspapers, Books and Periodicals",04-Mar-2014,2713250-4192421,546.50,ASKEWS & HOLTS LIBRARY SERVICES LTD.
Neighbourhood Services,Culture & Sport,Supplies and Services,312013,"Newspapers, Books and Periodicals",04-Mar-2014,2713250-4195967,616.67,ASKEWS & HOLTS LIBRARY SERVICES LTD.
Neighbourhood Services,Culture & Sport,Supplies and Services,312013,"Newspapers, Books and Periodicals",04-Mar-2014,2713250-4207350,547.94,ASKEWS & HOLTS LIBRARY SERVICES LTD.
Neighbourhood Services,Culture & Sport,Supplies and Services,312013,"Newspapers, Books and Periodicals",04-Mar-2014,2713250-4207470,531.25,ASKEWS & HOLTS LIBRARY SERVICES LTD.
Neighbourhood Services,Culture & Sport,Supplies and Services,312013,"Newspapers, Books and Periodicals",04-Mar-2014,2713250-4212212,716.67,ASKEWS & HOLTS LIBRARY SERVICES LTD.
Neighbourhood Services,Culture & Sport,Employees,080030,Agency Staff,04-Mar-2014,2713265-0034,"2,240.00",BISHOP AUCKLAND TABLE TENNIS CLUB.
Neighbourhood Services,Culture & Sport,Premises,120037,Energy Costs,04-Mar-2014,2713308-25272854,732.35,CALOR GAS LTD.
Neighbourhood Services,Culture & Sport,Supplies and Services,324117,Provisions,04-Mar-2014,2713347-9101408838,530.04,COCA COLA ENTERPRISES LTD.
Neighbourhood Services,Culture & Sport,Supplies and Services,338047,Services,04-Mar-2014,2713424-60133852,"2,302.12",ENTERTAINMENT ONE UK LTD.
Neighbourhood Services,Culture & Sport,Premises,120021,Energy Costs,04-Mar-2014,2713523-6849,"11,413.12",IMPALA ESTATES LTD.
Neighbourhood Services,Culture & Sport,Supplies and Services,338047,Services,04-Mar-2014,2713655-240,"20,813.58",NEW WRITING NORTH LTD.
Neighbourhood Services,Culture & Sport,Supplies and Services,338047,Services,04-Mar-2014,2713655-241,"3,922.03",NEW WRITING NORTH LTD.
Neighbourhood Services,Culture & Sport,Supplies and Services,384540,Miscellaneous Expenses,04-Mar-2014,2713677-6916,585.00,NORTHERN PRINT DISTRIBUTION LTD.
Neighbourhood Services,Culture & Sport,Supplies and Services,338047,Services,04-Mar-2014,2713715-1260,"1,801.62",PHIL MCINTYRE ENTERTAINMENTS LTD.
Neighbourhood Services,Culture & Sport,Supplies and Services,312013,"Newspapers, Books and Periodicals",04-Mar-2014,2713870-22204,"4,227.35",THE READING AGENCY LTD.
Neighbourhood Services,Culture & Sport,Supplies and Services,338047,Services,04-Mar-2014,2713930-22156339,720.00,WARNER BROS ENTERTAINMENT UK LTD.
Neighbourhood Services,Culture & Sport,Supplies and Services,338047,Services,04-Mar-2014,2713930-22156457,553.44,WARNER BROS ENTERTAINMENT UK LTD.
Neighbourhood Services,Direct Services,Supplies and Services,324117,Provisions,04-Mar-2014,2713252-130151585,560.22,AUTOBAR VENDING SERVICES LTD.
Neighbourhood Services,Direct Services,Supplies and Services,304221,Equipment and Materials,04-Mar-2014,2713287-1650/0867188,"3,565.20",BSS GROUP PLC.
Neighbourhood Services,Direct Services,Supplies and Services,304221,Equipment and Materials,04-Mar-2014,2713287-1650/0871093,630.89,BSS GROUP PLC.
Neighbourhood Services,Direct Services,Supplies and Services,304221,Equipment and Materials,04-Mar-2014,2713288-1660/0846488,892.92,BSS GROUP PLC.
Neighbourhood Services,Direct Services,Supplies and Services,324001,Provisions,04-Mar-2014,2713313-EW54968891,545.51,CARLSBERG UK LTD.
Neighbourhood Services,Direct Services,Supplies and Services,304221,Equipment and Materials,04-Mar-2014,2713314-447112,500.00,CARRS BILLINGTON AGRICULTURE.
Neighbourhood Services,Direct Services,Supplies and Services,304259,Equipment and Materials,04-Mar-2014,2713472-200151845/50776,"1,080.77",GARNER BRUCE LEGAL SERVICES.
Neighbourhood Services,Direct Services,Premises,108135,Service Repairs and Maintenance,04-Mar-2014,2713501-SIN7038222,"1,381.33",HCS DRAIN SERVICES LTD.
Neighbourhood Services,Direct Services,Premises,108135,Service Repairs and Maintenance,04-Mar-2014,2713501-SIN7038262,"1,156.22",HCS DRAIN SERVICES LTD.
Neighbourhood Services,Direct Services,Premises,108135,Service Repairs and Maintenance,04-Mar-2014,2713501-SIN7038304,"1,221.05",HCS DRAIN SERVICES LTD.
Neighbourhood Services,Direct Services,Supplies and Services,304221,Equipment and Materials,04-Mar-2014,2713516-B33/0063958,674.43,HOWDENS JOINERY LTD.
Neighbourhood Services,Direct Services,Supplies and Services,304221,Equipment and Materials,04-Mar-2014,2713516-B33/0064004,680.06,HOWDENS JOINERY LTD.
Neighbourhood Services,Direct Services,Supplies and Services,304221,Equipment and Materials,04-Mar-2014,2713592-3252381,"2,338.90",LONDON GENERAL SALES LTD.
Neighbourhood Services,Direct Services,Transport,230005,Contract Hire,04-Mar-2014,2713669-68947,"4,875.00",NOBLET MUNICIPAL SERVICES LTD.
Neighbourhood Services,Direct Services,Transport,230005,Contract Hire,04-Mar-2014,2713669-69064,"4,675.00",NOBLET MUNICIPAL SERVICES LTD.
Neighbourhood Services,Direct Services,Supplies and Services,304221,Equipment and Materials,04-Mar-2014,2713693-0000261523,575.14,OVENTROP UK LTD.
Neighbourhood Services,Direct Services,Third Party Payments,430100,Rendered by Private Contractors,04-Mar-2014,2713696-555149,"4,483.50",P & N ASSOCIATES LTD.
Neighbourhood Services,Direct Services,Supplies and Services,304221,Equipment and Materials,04-Mar-2014,2713732-4120162581,880.58,PLUMBING TRADE SUPPLIES LTD.
Neighbourhood Services,Direct Services,Transport,230005,Contract Hire,04-Mar-2014,2713738-23223,"2,375.00",PREMIER TRUCK HIRE LTD.
Neighbourhood Services,Direct Services,Supplies and Services,384159,Miscellaneous Expenses,04-Mar-2014,2713744-3870,"5,442.52",QW SECURITY LTD.
Neighbourhood Services,Direct Services,Third Party Payments,430100,Rendered by Private Contractors,04-Mar-2014,2713770-FEB01514,650.00,RW CHICKEN (SCAFFOLDING) LTD.
Neighbourhood Services,Direct Services,Transport,230005,Contract Hire,04-Mar-2014,2713831-51016,616.00,STENNETTS LTD.
Neighbourhood Services,Direct Services,Third Party Payments,430100,Rendered by Private Contractors,04-Mar-2014,2713855-55063,847.00,TEAM REWINDS LTD.
Neighbourhood Services,Redundant Direct Services,Supplies and Services,304221,Equipment and Materials,04-Mar-2014,2713286-INV136732,790.00,BROXAP LTD.
Neighbourhood Services,Redundant Direct Services,Supplies and Services,304221,Equipment and Materials,04-Mar-2014,2713314-447089,"1,800.00",CARRS BILLINGTON AGRICULTURE.
Neighbourhood Services,Redundant Direct Services,Supplies and Services,304221,Equipment and Materials,04-Mar-2014,2713498-SI1881,549.12,HARELAW SAWMILL LTD.
Neighbourhood Services,Redundant Direct Services,Supplies and Services,304221,Equipment and Materials,04-Mar-2014,2713941-34966,"2,723.63",WILLOWCRETE MFG CO LTD.
Neighbourhood Services,Technical Services,Supplies and Services,304221,Equipment and Materials,04-Mar-2014,2713223-19252133,"1,133.80",AGGREGATE INDUSTRIES UK LTD.
Neighbourhood Services,Technical Services,Supplies and Services,304221,Equipment and Materials,04-Mar-2014,2713223-19279323,889.30,AGGREGATE INDUSTRIES UK LTD.
Neighbourhood Services,Technical Services,Supplies and Services,304221,Equipment and Materials,04-Mar-2014,2713223-19298501,779.00,AGGREGATE INDUSTRIES UK LTD.
Neighbourhood Services,Technical Services,Supplies and Services,304221,Equipment and Materials,04-Mar-2014,2713223-19298503,"1,263.56",AGGREGATE INDUSTRIES UK LTD.
Neighbourhood Services,Technical Services,Supplies and Services,304221,Equipment and Materials,04-Mar-2014,2713224-19246733,824.10,AGGREGATE INDUSTRIES UK LTD.
Neighbourhood Services,Technical Services,Supplies and Services,304221,Equipment and Materials,04-Mar-2014,2713224-19266083,"1,128.13",AGGREGATE INDUSTRIES UK LTD.
Neighbourhood Services,Technical Services,Supplies and Services,304221,Equipment and Materials,04-Mar-2014,2713224-19298497,993.24,AGGREGATE INDUSTRIES UK LTD.
Neighbourhood Services,Technical Services,Supplies and Services,304221,Equipment and Materials,04-Mar-2014,2713224-19305900,"2,235.72",AGGREGATE INDUSTRIES UK LTD.
Neighbourhood Services,Technical Services,Supplies and Services,304221,Equipment and Materials,04-Mar-2014,2713224-19305901,"2,918.96",AGGREGATE INDUSTRIES UK LTD.
Neighbourhood Services,Technical Services,Supplies and Services,304221,Equipment and Materials,04-Mar-2014,2713224-19311258,"1,180.48",AGGREGATE INDUSTRIES UK LTD.
Neighbourhood Services,Technical Services,Supplies and Services,304221,Equipment and Materials,04-Mar-2014,2713224-19311260,"1,134.64",AGGREGATE INDUSTRIES UK LTD.
Neighbourhood Services,Technical Services,Supplies and Services,304221,Equipment and Materials,04-Mar-2014,2713224-19316190,842.96,AGGREGATE INDUSTRIES UK LTD.
Neighbourhood Services,Technical Services,Supplies and Services,304221,Equipment and Materials,04-Mar-2014,2713224-19321779,"1,082.52",AGGREGATE INDUSTRIES UK LTD.
Neighbourhood Services,Technical Services,Stock,926900,Stock in hand-Inventory system,04-Mar-2014,2713244-921267123,"1,018.80",ARCO LTD.
Neighbourhood Services,Technical Services,Construction Work,908110,Capital - Reconstruction,04-Mar-2014,2713248-106666,512.00,ARRIVA NORTH EAST LTD.
Neighbourhood Services,Technical Services,Stock,926900,Stock in hand-Inventory system,04-Mar-2014,2713348-147032,612.00,COLAS LTD.
Neighbourhood Services,Technical Services,Stock,926900,Stock in hand-Inventory system,04-Mar-2014,2713479-SINV-066737,"3,240.02",GELPACK EXCELSIOR LTD.
Neighbourhood Services,Technical Services,Stock,926900,Stock in hand-Inventory system,04-Mar-2014,2713517-081104,"1,995.50",HYDRAM ENGINEERING LTD.
Neighbourhood Services,Technical Services,Supplies and Services,304221,Equipment and Materials,04-Mar-2014,2713551-0000078025,640.00,JOHN WADE (HAULAGE) LTD.
Neighbourhood Services,Technical Services,Stock,926900,Stock in hand-Inventory system,04-Mar-2014,2713557-STI395628,721.17,JT DOVE LTD.
Neighbourhood Services,Technical Services,Supplies and Services,304221,Equipment and Materials,04-Mar-2014,2713561-4454,605.40,KEN THOMAS (SITE CLEARANCE LTD).
Neighbourhood Services,Technical Services,Supplies and Services,304221,Equipment and Materials,04-Mar-2014,2713561-4455,539.60,KEN THOMAS (SITE CLEARANCE LTD).
Neighbourhood Services,Technical Services,Supplies and Services,304221,Equipment and Materials,04-Mar-2014,2713571-9030549194,884.16,LAFARGE TARMAC TRADING LTD.
Neighbourhood Services,Technical Services,Supplies and Services,304221,Equipment and Materials,04-Mar-2014,2713571-9030549201,562.50,LAFARGE TARMAC TRADING LTD.
Neighbourhood Services,Technical Services,Supplies and Services,304221,Equipment and Materials,04-Mar-2014,2713571-9030565486,"2,407.45",LAFARGE TARMAC TRADING LTD.
Neighbourhood Services,Technical Services,Supplies and Services,304221,Equipment and Materials,04-Mar-2014,2713571-9030565708,"2,941.50",LAFARGE TARMAC TRADING LTD.
Neighbourhood Services,Technical Services,Stock,926900,Stock in hand-Inventory system,04-Mar-2014,2713571-9030587567,600.11,LAFARGE TARMAC TRADING LTD.
Neighbourhood Services,Technical Services,Supplies and Services,304221,Equipment and Materials,04-Mar-2014,2713571-9030597900,"1,331.95",LAFARGE TARMAC TRADING LTD.
Neighbourhood Services,Technical Services,Stock,926900,Stock in hand-Inventory system,04-Mar-2014,2713571-9030603123,895.05,LAFARGE TARMAC TRADING LTD.
Neighbourhood Services,Technical Services,Third Party Payments,430100,Rendered by Private Contractors,04-Mar-2014,2713599-4867,"2,800.00",MAKEPEACE MOTORS.
Neighbourhood Services,Technical Services,Supplies and Services,304221,Equipment and Materials,04-Mar-2014,2713646-33259,"2,710.90",NAL LTD.
Neighbourhood Services,Technical Services,Stock,926900,Stock in hand-Inventory system,04-Mar-2014,2713698-XL108846,"2,982.50",PARK ELECTRICAL DISTRIBUTORS LTD.
Neighbourhood Services,Technical Services,Stock,926900,Stock in hand-Inventory system,04-Mar-2014,2713698-XL108922,"1,786.95",PARK ELECTRICAL DISTRIBUTORS LTD.
Neighbourhood Services,Technical Services,Stock,926900,Stock in hand-Inventory system,04-Mar-2014,2713698-XL109101,686.00,PARK ELECTRICAL DISTRIBUTORS LTD.
Neighbourhood Services,Technical Services,Stock,926900,Stock in hand-Inventory system,04-Mar-2014,2713698-XL109104,"1,176.00",PARK ELECTRICAL DISTRIBUTORS LTD.
Neighbourhood Services,Technical Services,Third Party Payments,430100,Rendered by Private Contractors,04-Mar-2014,2713737-127225,"2,695.00",PREMIER TRAFFIC MANAGEMENT LTD.
Neighbourhood Services,Technical Services,Third Party Payments,430100,Rendered by Private Contractors,04-Mar-2014,2713737-127226,"8,151.40",PREMIER TRAFFIC MANAGEMENT LTD.
Neighbourhood Services,Technical Services,Third Party Payments,430100,Rendered by Private Contractors,04-Mar-2014,2713737-127606,"12,988.50",PREMIER TRAFFIC MANAGEMENT LTD.
Neighbourhood Services,Technical Services,Third Party Payments,430100,Rendered by Private Contractors,04-Mar-2014,2713737-127607,"10,753.15",PREMIER TRAFFIC MANAGEMENT LTD.
Neighbourhood Services,Technical Services,Supplies and Services,304221,Equipment and Materials,04-Mar-2014,2713806-266586/120259,528.12,SIGNATURE LTD T/A POST & COLUMN CO LTD.
Neighbourhood Services,Technical Services,Supplies and Services,304221,Equipment and Materials,04-Mar-2014,2713835-059689,"1,860.96",STONEGRAVE AGGREGATES LTD.
Neighbourhood Services,Technical Services,Stock,926900,Stock in hand-Inventory system,04-Mar-2014,2713841-6508833,568.00,SUPPLIES TEAM LTD.
Neighbourhood Services,Technical Services,Third Party Payments,430100,Rendered by Private Contractors,04-Mar-2014,2713941-35098,"1,185.00",WILLOWCRETE MFG CO LTD.
Neighbourhood Services,Technical Services,Third Party Payments,430100,Rendered by Private Contractors,04-Mar-2014,2713941-35100,681.00,WILLOWCRETE MFG CO LTD.
RED HRA,Housing Revenue Account,Third Party Payments,430100,Rendered by Private Contractors,04-Mar-2014,2713387-80001793,"35,000.00",DALE & VALLEY HOMES.
RED HRA,Housing Revenue Account,Third Party Payments,430100,Rendered by Private Contractors,04-Mar-2014,2713429-SINV/00003255,"6,113.05",EAST DURHAM HOMES.
RED HRA,Housing Revenue Account,Supplies and Services,384999,Miscellaneous Expenses,04-Mar-2014,2713429-SINV/00003259,774.58,EAST DURHAM HOMES.
RED HRA,Housing Revenue Account,Supplies and Services,384999,Miscellaneous Expenses,04-Mar-2014,2713429-SINV/00003260,"1,321.59",EAST DURHAM HOMES.
RED HRA,Housing Revenue Account,Supplies and Services,384999,Miscellaneous Expenses,04-Mar-2014,2713429-SINV/00003261,"1,382.56",EAST DURHAM HOMES.
RED HRA,Housing Revenue Account,Supplies and Services,384999,Miscellaneous Expenses,04-Mar-2014,2713429-SINV/00003262,"1,199.45",EAST DURHAM HOMES.
RED HRA,Housing Revenue Account,Employees,040149,"Recruitment, Instruction and Training",04-Mar-2014,2713654-50058344,"4,000.00",NEW COLLEGE DURHAM.
RED HRA,Housing Revenue Account,Supplies and Services,338027,Services,04-Mar-2014,2713688-1481,"3,488.31",OPEN COMMUNITIES LTD.
RED HRA,HRA Capital,Construction Work,908105,Construction work,04-Mar-2014,2713216-13352,"1,390.00",ACREBROAD LTD T/A DOBERMANS FLOORING.
RED HRA,HRA Capital,Other Expenses,914001,Other capital expenses,04-Mar-2014,2713387-80001794,"45,535.00",DALE & VALLEY HOMES.
RED HRA,HRA Capital,Construction Work,908105,Construction work,04-Mar-2014,2713401-190491,"5,983.22",DELTA ELECTRICAL & MECHANICAL SERVICES.
RED HRA,HRA Capital,Construction Work,908105,Construction work,04-Mar-2014,2713401-191375,"15,487.19",DELTA ELECTRICAL & MECHANICAL SERVICES.
RED HRA,HRA Capital,Construction Work,908105,Construction work,04-Mar-2014,2713401-191377,"2,433.88",DELTA ELECTRICAL & MECHANICAL SERVICES.
RED HRA,HRA Capital,Construction Work,908105,Construction work,04-Mar-2014,2713401-191735,"1,735.96",DELTA ELECTRICAL & MECHANICAL SERVICES.
RED HRA,HRA Capital,Construction Work,908105,Construction work,04-Mar-2014,2713429-SINV/00003244,"45,032.28",EAST DURHAM HOMES.
RED HRA,HRA Capital,Construction Work,908105,Construction work,04-Mar-2014,2713429-SINV/00003245,"9,116.00",EAST DURHAM HOMES.
RED HRA,HRA Capital,Construction Work,908105,Construction work,04-Mar-2014,2713429-SINV/00003246,"14,459.58",EAST DURHAM HOMES.
RED HRA,HRA Capital,Construction Work,908105,Construction work,04-Mar-2014,2713429-SINV/00003247,"4,674.49",EAST DURHAM HOMES.
RED HRA,HRA Capital,Construction Work,908105,Construction work,04-Mar-2014,2713429-SINV/00003248,"1,733.76",EAST DURHAM HOMES.
RED HRA,HRA Capital,Construction Work,908105,Construction work,04-Mar-2014,2713429-SINV/00003249,750.00,EAST DURHAM HOMES.
RED HRA,HRA Capital,Construction Work,908105,Construction work,04-Mar-2014,2713429-SINV/00003250,999.26,EAST DURHAM HOMES.
RED HRA,HRA Capital,Other Expenses,914001,Other capital expenses,04-Mar-2014,2713429-SINV/00003251,"7,285.20",EAST DURHAM HOMES.
RED HRA,HRA Capital,Construction Work,908105,Construction work,04-Mar-2014,2713437-191371,"4,225.42",EDMUNDSON ELECTRICAL LTD.
RED HRA,HRA Capital,Construction Work,908105,Construction work,04-Mar-2014,2713437-191372,"1,586.70",EDMUNDSON ELECTRICAL LTD.
RED HRA,HRA Capital,Construction Work,908105,Construction work,04-Mar-2014,2713445-189851,"29,523.05",ESH CONSTRUCTION LTD FORMERLY LUMSDEN & CARROLL CONSTRUCTION LTD.
RED HRA,HRA Capital,Construction Work,908105,Construction work,04-Mar-2014,2713553-191728,"9,939.66",JOINERY & TIMBER CREATIONS (65) LTD.
RED HRA,HRA Capital,Construction Work,908105,Construction work,04-Mar-2014,2713554-191725,728.88,JOINERY & TIMBER CREATIONS (65) LTD.
RED HRA,HRA Capital,Construction Work,908105,Construction work,04-Mar-2014,2713731-191365,"2,458.09",PLUMBING TRADE SUPPLIES LTD.
RED HRA,HRA Capital,Construction Work,908105,Construction work,04-Mar-2014,2713731-191366,"11,265.94",PLUMBING TRADE SUPPLIES LTD.
RED HRA,HRA Capital,Construction Work,908105,Construction work,04-Mar-2014,2713731-191367,"8,205.78",PLUMBING TRADE SUPPLIES LTD.
RED HRA,HRA Capital,Construction Work,908105,Construction work,04-Mar-2014,2713731-191368,"1,334.13",PLUMBING TRADE SUPPLIES LTD.
RED HRA,HRA Capital,Construction Work,908105,Construction work,04-Mar-2014,2713799-70998,620.00,SGS MIS ENVIRONMENTAL LTD.
RED HRA,HRA Capital,Construction Work,908105,Construction work,04-Mar-2014,2713799-71026,828.00,SGS MIS ENVIRONMENTAL LTD.
RED HRA,HRA Capital,Construction Work,908105,Construction work,04-Mar-2014,2713799-71203,660.00,SGS MIS ENVIRONMENTAL LTD.
RED HRA,HRA Capital,Construction Work,908105,Construction work,04-Mar-2014,2713799-CON70458,"1,875.00",SGS MIS ENVIRONMENTAL LTD.
RED HRA,HRA Capital,Construction Work,908105,Construction work,04-Mar-2014,2713799-CON70539,"1,375.00",SGS MIS ENVIRONMENTAL LTD.
RED HRA,HRA Capital,Construction Work,908105,Construction work,04-Mar-2014,2713829-9085171958,"9,226.00",STANNAH LIFT SERVICE LTD.
RED HRA,HRA Capital,Construction Work,908105,Construction work,04-Mar-2014,2713840-LTS/534/019,"44,499.70",SUNTER LTD.
RED HRA,HRA Capital,Construction Work,908105,Construction work,04-Mar-2014,2713951-30187,"4,825.75",YWC GROUP LTD.
RED HRA,HRA Capital,Construction Work,908105,Construction work,04-Mar-2014,2713951-30189,853.19,YWC GROUP LTD.
RED HRA,HRA Capital,Construction Work,908105,Construction work,04-Mar-2014,2713951-30254,"3,223.18",YWC GROUP LTD.
RED HRA,HRA Capital,Construction Work,908105,Construction work,04-Mar-2014,2713951-30308,"1,305.82",YWC GROUP LTD.
RED HRA,HRA Centrally Managed,Creditors,952191,Creditor-HRA-rents-refunds,04-Mar-2014,2713615,520.00,REDACTED - PAYMENT TO INDIVIDUAL
RED HRA,HRA Centrally Managed,Creditors,952191,Creditor-HRA-rents-refunds,04-Mar-2014,2713623,713.48,REDACTED - PAYMENT TO INDIVIDUAL
RED HRA,HRA Centrally Managed,Creditors,952191,Creditor-HRA-rents-refunds,04-Mar-2014,2713642,869.99,REDACTED - PAYMENT TO INDIVIDUAL
Regeneration & Economic Development,Economic Development and Housing,Supplies and Services,384899,Miscellaneous Expenses,04-Mar-2014,2713268,"4,412.41",BLAIZE.
Regeneration & Economic Development,Economic Development and Housing,Cap Exp on Grants & Other Financial Assistance (REFCUS),918401,Capital grants,04-Mar-2014,2713354-RED-03-2014-001,"2,014.60",CONSETT PET & AQUATIC CENTRE.
Regeneration & Economic Development,Economic Development and Housing,Cap Exp on Grants & Other Financial Assistance (REFCUS),918401,Capital grants,04-Mar-2014,2713449-RED-02-2014-267,"3,585.00",F TIFFEN BUILDING SERVICES.
Regeneration & Economic Development,Economic Development and Housing,Cap Exp on Grants & Other Financial Assistance (REFCUS),918401,Capital grants,04-Mar-2014,2713449-RED-02-2014-270,"3,475.00",F TIFFEN BUILDING SERVICES.
Regeneration & Economic Development,Economic Development and Housing,Fees,901001,Internal fees,04-Mar-2014,2713462-SITRH/0006094,"3,214.29",FOUR HOUSING GROUP.
Regeneration & Economic Development,Economic Development and Housing,Fees,901001,Internal fees,04-Mar-2014,2713462-SITRH/0006095,771.27,FOUR HOUSING GROUP.
Regeneration & Economic Development,Economic Development and Housing,Fees,901001,Internal fees,04-Mar-2014,2713462-SITRH/0006112,"1,280.64",FOUR HOUSING GROUP.
Regeneration & Economic Development,Economic Development and Housing,Fees,901001,Internal fees,04-Mar-2014,2713462-SITRH/0006114,"1,517.28",FOUR HOUSING GROUP.
Regeneration & Economic Development,Economic Development and Housing,Supplies and Services,384999,Miscellaneous Expenses,04-Mar-2014,2713532-22,900.00,INTERNATIONAL NEWCASTLE.
Regeneration & Economic Development,Economic Development and Housing,Cap Exp on Grants & Other Financial Assistance (REFCUS),918401,Capital grants,04-Mar-2014,2713649-RED-02-2014-265,"3,325.00",NEIL BELL PLUMBERS HEATING & GAS INS.
Regeneration & Economic Development,Economic Development and Housing,Supplies and Services,384199,Miscellaneous Expenses,04-Mar-2014,2713656-5564,"6,000.00",NEWCASTLE GATESHEAD INITIATIVE.
Regeneration & Economic Development,Economic Development and Housing,Construction Work,908105,Construction work,04-Mar-2014,2713689,880.00,OPENREACH LLU.
Regeneration & Economic Development,Economic Development and Housing,Supplies and Services,384899,Miscellaneous Expenses,04-Mar-2014,2713858-PV/YMCA/01/2014,"6,000.00",TEESDALE YMCA.
Regeneration & Economic Development,"Spatial Policy, Planning, Assets & Environment",Supplies and Services,384199,Miscellaneous Expenses,04-Mar-2014,2713432-412,"1,600.00",ECO ENTERPRISES LTD.
Regeneration & Economic Development,"Spatial Policy, Planning, Assets & Environment",Third Party Payments,440999,Other Third Party Payments,04-Mar-2014,2713435-0474/0539,"3,750.00",EDGE ANALYTICS LTD.
Regeneration & Economic Development,"Spatial Policy, Planning, Assets & Environment",Supplies and Services,338066,Services,04-Mar-2014,2713493-RI00844CT,"10,637.89",GSC GRAYS.
Regeneration & Economic Development,"Spatial Policy, Planning, Assets & Environment",Supplies and Services,384199,Miscellaneous Expenses,04-Mar-2014,2713709-22,"11,290.00",PETER DODD FENCING & AGRICULTURAL SERVICES.
Regeneration & Economic Development,Transport and Contracted Services,Transport,240001,Car Allowances,04-Mar-2014,2713346-10530,"1,286.04",CO WHEELS CAR CLUB CIC.
Regeneration & Economic Development,Transport and Contracted Services,Third Party Payments,430106,Rendered by Private Contractors,04-Mar-2014,2713473-15902,"4,712.00",GARNETTS LTD (COACHES).
Regeneration & Economic Development,Transport and Contracted Services,Supplies and Services,304259,Equipment and Materials,04-Mar-2014,2713904-3IN/10236333,"3,178.80",TUNSTALL HEALTHCARE (UK) LTD.
Assistant Chief Executive,Partnerships & Community Engagement Div.,Supplies and Services,384085,Miscellaneous Expenses,05-Mar-2014,228780-PLEM15-13SIMM07-13MCCP04-13,"1,930.00",DURHAM COMMUNITY FOUNDATION.
Children and Adult Services,Central Charges,Debtors,930131,Debtor-Hospital Re-Admission Avoidance Project,05-Mar-2014,2713966-392/0400002709,964.85,ALLIED HEALTHCARE GROUP LTD.
Children and Adult Services,Central Charges (CYPS),Supplies and Services,384197,Miscellaneous Expenses,05-Mar-2014,228740-0006819,714.96,BOX IT NORTH.
Children and Adult Services,Childrens care,Supplies and Services,384237,Miscellaneous Expenses,05-Mar-2014,228728-29JUL-15AUG,"3,000.00",AKEBAR PARK.
Children and Adult Services,Childrens care,Supplies and Services,338042,Services,05-Mar-2014,228757-289651/INVEL18,"3,000.00",DERE STREET BARRISTERS.
Children and Adult Services,Childrens care,Supplies and Services,338042,Services,05-Mar-2014,228757-289651/INVPM110,"9,480.00",DERE STREET BARRISTERS.
Children and Adult Services,Childrens care,Supplies and Services,338042,Services,05-Mar-2014,228757-299878/INVHP19,540.00,DERE STREET BARRISTERS.
Children and Adult Services,Childrens care,Supplies and Services,338042,Services,05-Mar-2014,228757-299878/INVHP20,"2,160.00",DERE STREET BARRISTERS.
Children and Adult Services,Childrens care,Supplies and Services,338042,Services,05-Mar-2014,228757-300585/INVKH21,660.00,DERE STREET BARRISTERS.
Children and Adult Services,Childrens care,Supplies and Services,338042,Services,05-Mar-2014,228757-301551/INVDEC27,"3,720.00",DERE STREET BARRISTERS.
Children and Adult Services,Childrens care,Supplies and Services,338042,Services,05-Mar-2014,228757-301613/INVKH23,"1,200.00",DERE STREET BARRISTERS.
Children and Adult Services,Childrens care,Supplies and Services,338042,Services,05-Mar-2014,228757-302743/INVKH22,660.00,DERE STREET BARRISTERS.
Children and Adult Services,Childrens care,Supplies and Services,338042,Services,05-Mar-2014,228757-303533/INVPM109,"3,060.00",DERE STREET BARRISTERS.
Children and Adult Services,Childrens care,Supplies and Services,338042,Services,05-Mar-2014,228757-303771/INVSEB140,660.00,DERE STREET BARRISTERS.
Children and Adult Services,Childrens care,Premises,108099,Service Repairs and Maintenance,05-Mar-2014,228785-11249,665.28,DURHAM ROOFING CENTRE.
Children and Adult Services,Childrens care,Supplies and Services,364353,Grants to Voluntary Organisations,05-Mar-2014,228804-11/SR/14,650.12,FABRICK HOUSING GROUP LTD.
Children and Adult Services,Childrens care,Supplies and Services,338043,Services,05-Mar-2014,228812-GW.AT.115430.1,500.00,HANNAYS SOLICITORS & ADVOCATES.
Children and Adult Services,Childrens care,Supplies and Services,338042,Services,05-Mar-2014,228854-208429,780.00,MISS LESLEY MCKENZIE.
Children and Adult Services,Childrens care,Supplies and Services,384638,Miscellaneous Expenses,05-Mar-2014,228931-LM-APRIL/NOV2013,705.00,THE OLIVE TREE & AFTER SCHOOL CLUB & EDUCATION.
Children and Adult Services,Childrens care,Third Party Payments,425040,Rendered by Voluntary Organisations,05-Mar-2014,2713958-R31INV/00012252,"2,919.84",ACTION FOR CHILDREN.
Children and Adult Services,Childrens care,Third Party Payments,425040,Rendered by Voluntary Organisations,05-Mar-2014,2714066-FC014346,"1,180.00",FOSTER CARES LTD.
Children and Adult Services,Childrens care,Third Party Payments,425040,Rendered by Voluntary Organisations,05-Mar-2014,2714066-FC014355,760.00,FOSTER CARES LTD.
Children and Adult Services,Childrens care,Third Party Payments,425040,Rendered by Voluntary Organisations,05-Mar-2014,2714066-FC014366,820.00,FOSTER CARES LTD.
Children and Adult Services,Childrens care,Third Party Payments,425040,Rendered by Voluntary Organisations,05-Mar-2014,2714066-FC014392,"1,180.00",FOSTER CARES LTD.
Children and Adult Services,Childrens care,Third Party Payments,425040,Rendered by Voluntary Organisations,05-Mar-2014,2714066-FC014401,760.00,FOSTER CARES LTD.
Children and Adult Services,Childrens care,Third Party Payments,425040,Rendered by Voluntary Organisations,05-Mar-2014,2714066-FC014412,820.00,FOSTER CARES LTD.
Children and Adult Services,Childrens care,Third Party Payments,425040,Rendered by Voluntary Organisations,05-Mar-2014,2714170-1800006847023,"2,897.26",NEWCASTLE UPON TYNE CITY COUNCIL.
Children and Adult Services,Childrens care,Supplies and Services,384638,Miscellaneous Expenses,05-Mar-2014,2714173-0000016741,724.50,NORTH EAST AUTISM SOCIETY.
Children and Adult Services,Childrens care,Supplies and Services,384638,Miscellaneous Expenses,05-Mar-2014,2714173-0000016742,"1,102.50",NORTH EAST AUTISM SOCIETY.
Children and Adult Services,Childrens care,Supplies and Services,384638,Miscellaneous Expenses,05-Mar-2014,2714173-0000016743,504.00,NORTH EAST AUTISM SOCIETY.
Children and Adult Services,Childrens care,Supplies and Services,384638,Miscellaneous Expenses,05-Mar-2014,2714173-0000016746,976.50,NORTH EAST AUTISM SOCIETY.
Children and Adult Services,Childrens care,Supplies and Services,384638,Miscellaneous Expenses,05-Mar-2014,2714173-0000016751,"3,037.50",NORTH EAST AUTISM SOCIETY.
Children and Adult Services,Childrens care,Supplies and Services,384638,Miscellaneous Expenses,05-Mar-2014,2714173-0000016752,661.50,NORTH EAST AUTISM SOCIETY.
Children and Adult Services,Childrens care,Supplies and Services,384638,Miscellaneous Expenses,05-Mar-2014,2714173-0000016757,630.00,NORTH EAST AUTISM SOCIETY.
Children and Adult Services,Childrens care,Supplies and Services,384638,Miscellaneous Expenses,05-Mar-2014,2714173-0000016758,724.50,NORTH EAST AUTISM SOCIETY.
Children and Adult Services,Childrens care,Supplies and Services,384638,Miscellaneous Expenses,05-Mar-2014,2714173-0000016762,630.00,NORTH EAST AUTISM SOCIETY.
Children and Adult Services,Childrens care,Supplies and Services,384638,Miscellaneous Expenses,05-Mar-2014,2714173-0000016763,976.50,NORTH EAST AUTISM SOCIETY.
Children and Adult Services,Childrens care,Supplies and Services,384638,Miscellaneous Expenses,05-Mar-2014,2714173-0000016767,630.00,NORTH EAST AUTISM SOCIETY.
Children and Adult Services,Childrens care,Third Party Payments,425040,Rendered by Voluntary Organisations,05-Mar-2014,2714207-568,"3,039.96",REACH OUT CARE LTD.
Children and Adult Services,Childrens care,Third Party Payments,440999,Other Third Party Payments,05-Mar-2014,2714227,848.00,REDACTED - PAYMENT TO INDIVIDUAL
Children and Adult Services,Childrens care,Supplies and Services,364353,Grants to Voluntary Organisations,05-Mar-2014,2714246-GY12,727.37,STONHAM HOUSING ASSOCIATION LTD.
Children and Adult Services,Childrens care,Supplies and Services,364353,Grants to Voluntary Organisations,05-Mar-2014,2714246-GY13,"1,851.30",STONHAM HOUSING ASSOCIATION LTD.
Children and Adult Services,Childrens care,Supplies and Services,364353,Grants to Voluntary Organisations,05-Mar-2014,2714247-213,961.48,STONHAM HOUSING ASSOCIATION LTD.
Children and Adult Services,Childrens care,Supplies and Services,364353,Grants to Voluntary Organisations,05-Mar-2014,2714248-14ASHGROVE,"1,281.33",STONHAM HOUSING ASSOCIATION LTD.
Children and Adult Services,Childrens care,Third Party Payments,425040,Rendered by Voluntary Organisations,05-Mar-2014,2714252-142505,891.90,SWIIS FOSTER CARE LTD.
Children and Adult Services,Childrens care,Third Party Payments,425040,Rendered by Voluntary Organisations,05-Mar-2014,2714252-142762,891.90,SWIIS FOSTER CARE LTD.
Children and Adult Services,Commissioning inc Supporting People,Supplies and Services,384700,Miscellaneous Expenses,05-Mar-2014,2714234-CAS-11-2013-102,"6,000.00",SOUTH HETTON & DISTRICT COMMUNITY ASSOCIATION.
Children and Adult Services,Commissioning inc Supporting People,Third Party Payments,479101,Purchase of Care,05-Mar-2014,2714258-4810001417,"4,347.05",TEES ESK & WEAR VALLEYS NHS FOUNDATION TRUST.
Children and Adult Services,Commissioning inc Supporting People,Third Party Payments,479101,Purchase of Care,05-Mar-2014,2714258-4810001613,"4,290.07",TEES ESK & WEAR VALLEYS NHS FOUNDATION TRUST.
Children and Adult Services,Early Intervention and Involvement,Supplies and Services,384199,Miscellaneous Expenses,05-Mar-2014,2714012-3910002268,"1,360.42",CO DURHAM & DARLINGTON NHS FOUNDATION TRUST.
Children and Adult Services,Early Intervention and Involvement,Employees,040149,"Recruitment, Instruction and Training",05-Mar-2014,2714012-3910002508,"1,000.00",CO DURHAM & DARLINGTON NHS FOUNDATION TRUST.
Children and Adult Services,Early Intervention and Involvement,Supplies and Services,384302,Miscellaneous Expenses,05-Mar-2014,2714260-FEB2014,"4,976.40",TEESDALE YMCA.
Children and Adult Services,Education,Transport,230006,Contract Hire,05-Mar-2014,228852-006,"1,720.00",MICHAEL CONNOR.
Children and Adult Services,Education,Transport,230008,Contract Hire,05-Mar-2014,228922-1899,"1,044.00",STATION TAXIS (SUNDERLAND).
Children and Adult Services,Education,Third Party Payments,440999,Other Third Party Payments,05-Mar-2014,2714055-DCC001/2014,"3,315.00",ENERGIZE TRAINING.
Children and Adult Services,Education,Transport,230007,Contract Hire,05-Mar-2014,2714065-0286,635.40,FMR SILVA PITA.
Children and Adult Services,Education,Transport,230008,Contract Hire,05-Mar-2014,2714086-17,"1,365.00",HENRYS TAXIS.
Children and Adult Services,Education,Transport,230008,Contract Hire,05-Mar-2014,2714091-INV3,840.00,HORNDALE AJ`S TAXIS.
Children and Adult Services,Education,Construction Work,908105,Construction work,05-Mar-2014,2714099-DURH/0467,"272,640.81",INSPIREDSPACES DURHAM LTD.
Children and Adult Services,Education,Transport,230008,Contract Hire,05-Mar-2014,2714106-38,870.00,JACK`S TAXIS.
Children and Adult Services,Education,Transport,230006,Contract Hire,05-Mar-2014,2714107-F487-28/2/14,519.00,JAFFAS TAXIS.
Children and Adult Services,Education,Transport,230008,Contract Hire,05-Mar-2014,2714110-460,882.00,JDS PRIVATE HIRE DURHAM.
Children and Adult Services,Education,Transport,230008,Contract Hire,05-Mar-2014,2714110-461,"1,750.00",JDS PRIVATE HIRE DURHAM.
Children and Adult Services,Education,Transport,230008,Contract Hire,05-Mar-2014,2714110-465,"1,200.00",JDS PRIVATE HIRE DURHAM.
Children and Adult Services,Education,Transport,230008,Contract Hire,05-Mar-2014,2714110-466,690.00,JDS PRIVATE HIRE DURHAM.
Children and Adult Services,Education,Transport,230008,Contract Hire,05-Mar-2014,2714110-467,"1,140.00",JDS PRIVATE HIRE DURHAM.
Children and Adult Services,Education,Transport,230008,Contract Hire,05-Mar-2014,2714110-469,960.00,JDS PRIVATE HIRE DURHAM.
Children and Adult Services,Education,Transport,230008,Contract Hire,05-Mar-2014,2714110-470,"1,071.00",JDS PRIVATE HIRE DURHAM.
Children and Adult Services,Education,Transport,230008,Contract Hire,05-Mar-2014,2714110-472,780.00,JDS PRIVATE HIRE DURHAM.
Children and Adult Services,Education,Transport,230007,Contract Hire,05-Mar-2014,2714111-2013/38,"1,131.00",JM HUMBLE COACH HIRE.
Children and Adult Services,Education,Transport,230008,Contract Hire,05-Mar-2014,2714117-58,"1,404.00",JOHNS TAXIS (CHESTER LE STREET).
Children and Adult Services,Education,Transport,230009,Contract Hire,05-Mar-2014,2714118-72316,"1,230.00",JOVIAL PRIVATE HIRE.
Children and Adult Services,Education,Transport,230007,Contract Hire,05-Mar-2014,2714118-SJPS1,930.00,JOVIAL PRIVATE HIRE.
Children and Adult Services,Education,Transport,230008,Contract Hire,05-Mar-2014,2714137-ALI,"1,350.00",MA BODDY.
Children and Adult Services,Education,Transport,230007,Contract Hire,05-Mar-2014,2714137-6,750.00,MA BODDY.
Children and Adult Services,Education,Transport,230008,Contract Hire,05-Mar-2014,2714137-EV-10,"1,328.25",MA BODDY.
Children and Adult Services,Education,Transport,230008,Contract Hire,05-Mar-2014,2714140-06,"1,260.00",MARTIN`S TAXIS.
Children and Adult Services,Education,Transport,230008,Contract Hire,05-Mar-2014,2714144-FEB2014/131,"1,634.00",MCDONALD TRAVEL.
Children and Adult Services,Education,Transport,230008,Contract Hire,05-Mar-2014,2714144-FEB2014/132,930.00,MCDONALD TRAVEL.
Children and Adult Services,Education,Transport,230008,Contract Hire,05-Mar-2014,2714144-W043-28/2/14,"1,635.00",MCDONALD TRAVEL.
Children and Adult Services,Education,Construction Work,908105,Construction work,05-Mar-2014,2714147,"1,504.06",MGL DEMOLITION LTD.
Children and Adult Services,Education,Transport,230008,Contract Hire,05-Mar-2014,2714151-341-28/2/14,"1,540.00",MOLLYS TAXIS.
Children and Adult Services,Education,Transport,230008,Contract Hire,05-Mar-2014,2714151-397,"1,260.00",MOLLYS TAXIS.
Children and Adult Services,Education,Transport,230008,Contract Hire,05-Mar-2014,2714151-398,"1,870.00",MOLLYS TAXIS.
Children and Adult Services,Education,Transport,230007,Contract Hire,05-Mar-2014,2714155-50,850.00,MR DAVID CULLEN.
Children and Adult Services,Education,Transport,230007,Contract Hire,05-Mar-2014,2714155-52,850.00,MR DAVID CULLEN.
Children and Adult Services,Education,Transport,230006,Contract Hire,05-Mar-2014,2714155-53,504.00,MR DAVID CULLEN.
Children and Adult Services,Education,Transport,230007,Contract Hire,05-Mar-2014,2714156-0214,570.00,MR DEREK HENDERSON.
Children and Adult Services,Education,Supplies and Services,338045,Services,05-Mar-2014,2714157-256546-06022014,"10,050.00",MR SAM HEALY.
Children and Adult Services,Education,Transport,230008,Contract Hire,05-Mar-2014,2714193-00781,"1,050.00",PHILLIPS TAXI GROUP LTD.
Children and Adult Services,Education,Transport,230008,Contract Hire,05-Mar-2014,2714200-140118,"1,012.50",PRATTS TAXIS.
Children and Adult Services,Education,Transport,230007,Contract Hire,05-Mar-2014,2714201-3208/3031,960.00,PREMIER PRIVATE HIRE.
Children and Adult Services,Education,Transport,230007,Contract Hire,05-Mar-2014,2714204-1109,"6,900.00",PYGALL COACH HIRE.
Children and Adult Services,Education,Transport,230007,Contract Hire,05-Mar-2014,2714204-1110,"2,250.00",PYGALL COACH HIRE.
Children and Adult Services,Education,Transport,230007,Contract Hire,05-Mar-2014,2714204-1111,"1,470.00",PYGALL COACH HIRE.
Children and Adult Services,Education,Transport,230007,Contract Hire,05-Mar-2014,2714245-218,"1,497.00",STEPHEN MAUDE LTD T/A MAUDES COACHES.
Children and Adult Services,Education,Transport,230007,Contract Hire,05-Mar-2014,2714245-219,"1,647.00",STEPHEN MAUDE LTD T/A MAUDES COACHES.
Children and Adult Services,Education,Transport,230007,Contract Hire,05-Mar-2014,2714245-220,"1,440.00",STEPHEN MAUDE LTD T/A MAUDES COACHES.
Children and Adult Services,Education,Transport,230007,Contract Hire,05-Mar-2014,2714245-221,870.00,STEPHEN MAUDE LTD T/A MAUDES COACHES.
Children and Adult Services,Education,Supplies and Services,384199,Miscellaneous Expenses,05-Mar-2014,2714267-SSP0101/07,"1,000.00",THE YOGA FACTORY.
Children and Adult Services,Education,Transfer Payments,510026,School Children,05-Mar-2014,2714290-CAS-03-2014-015,"5,317.65",WHEATLEY HILL COMMUNITY NURSERY LTD.
Children and Adult Services,Head of Adults,Third Party Payments,470101,Purchase of Care,05-Mar-2014,228743-2148082,803.57,CARELINE LIFESTYLES LTD.
Children and Adult Services,Head of Adults,Third Party Payments,470101,Purchase of Care,05-Mar-2014,228743-2148083,"2,500.00",CARELINE LIFESTYLES LTD.
Children and Adult Services,Head of Adults,Third Party Payments,470101,Purchase of Care,05-Mar-2014,228743-2148084,"2,016.00",CARELINE LIFESTYLES LTD.
Children and Adult Services,Head of Adults,Third Party Payments,478101,Purchase of Care,05-Mar-2014,228878-2145820,"1,285.60",REDACTED - PAYMENT TO INDIVIDUAL
Children and Adult Services,Head of Adults,Supplies and Services,384616,Miscellaneous Expenses,05-Mar-2014,228905-TSI012870,"2,488.32",PLACES FOR PEOPLE INDIVIDUAL SUPPORT.
Children and Adult Services,Head of Adults,Supplies and Services,384616,Miscellaneous Expenses,05-Mar-2014,228905-TSI012873,"3,461.12",PLACES FOR PEOPLE INDIVIDUAL SUPPORT.
Children and Adult Services,Head of Adults,Third Party Payments,473101,Purchase of Care,05-Mar-2014,2713959-INCS005020,852.75,ACTION ON HEARING LOSS.
Children and Adult Services,Head of Adults,Supplies and Services,304259,Equipment and Materials,05-Mar-2014,2713963-12458,749.00,AH & D CUTHBERTSON LTD.
Children and Adult Services,Head of Adults,Supplies and Services,384616,Miscellaneous Expenses,05-Mar-2014,2714058-11944,"1,124.75",FAIROAK HOUSING ASSOCIATION.
Children and Adult Services,Head of Adults,Supplies and Services,384616,Miscellaneous Expenses,05-Mar-2014,2714068-SH401314,"4,285.20",FOUR HOUSING GROUP.
Children and Adult Services,Head of Adults,Supplies and Services,384616,Miscellaneous Expenses,05-Mar-2014,2714068-SH451314,"2,292.22",FOUR HOUSING GROUP.
Children and Adult Services,Head of Adults,Supplies and Services,384616,Miscellaneous Expenses,05-Mar-2014,2714146-AH1933471,"20,241.01",MENCAP.
Children and Adult Services,Head of Adults,Third Party Payments,473101,Purchase of Care,05-Mar-2014,2714174-AJ/JAN/14,815.50,NORTHEAST DISABILITIES RESOURCE CENTRE.
Children and Adult Services,Head of Adults,Income,720044,Fees and Charges,05-Mar-2014,2714235,"19,955.40",SOVEREIGN CARE NE.
Children and Adult Services,Head of Adults,Employees,080025,Agency Staff,05-Mar-2014,2714258-4810001621,813.75,TEES ESK & WEAR VALLEYS NHS FOUNDATION TRUST.
Children and Adult Services,Head of Adults,Employees,080025,Agency Staff,05-Mar-2014,2714258-4810001622,"1,627.42",TEES ESK & WEAR VALLEYS NHS FOUNDATION TRUST.
Children and Adult Services,Head of Adults,Employees,080025,Agency Staff,05-Mar-2014,2714258-4810001623,"1,627.42",TEES ESK & WEAR VALLEYS NHS FOUNDATION TRUST.
Children and Adult Services,Head of Adults,Employees,080025,Agency Staff,05-Mar-2014,2714258-4810001870,"1,627.42",TEES ESK & WEAR VALLEYS NHS FOUNDATION TRUST.
Children and Adult Services,Head of Adults,Employees,080025,Agency Staff,05-Mar-2014,2714258-4810001871,"1,627.42",TEES ESK & WEAR VALLEYS NHS FOUNDATION TRUST.
Children and Adult Services,Head of Adults,Employees,080025,Agency Staff,05-Mar-2014,2714258-4810001875,"3,583.09",TEES ESK & WEAR VALLEYS NHS FOUNDATION TRUST.
Children and Adult Services,Public Health,Third Party Payments,460803,Contract Payments,05-Mar-2014,228766-12/2013/DURHAM,"5,150.00",DR CF KHAN.
Children and Adult Services,Public Health,Third Party Payments,460803,Contract Payments,05-Mar-2014,228805-FV165/JAN,858.00,G WHITFIELD LTD.
Children and Adult Services,Public Health,Supplies and Services,384199,Miscellaneous Expenses,05-Mar-2014,228901-00000362,"2,500.00",PARKRUN LTD.
Children and Adult Services,Public Health,Supplies and Services,304259,Equipment and Materials,05-Mar-2014,228912-5723,"5,999.52",RELAX KIDS.
Children and Adult Services,Public Health,Third Party Payments,460803,Contract Payments,05-Mar-2014,2713970-DEC/2013,605.00,ASDA PHARMACY.
Children and Adult Services,Public Health,Third Party Payments,460803,Contract Payments,05-Mar-2014,2713970-JAN/2013,643.00,ASDA PHARMACY.
Children and Adult Services,Public Health,Third Party Payments,460803,Contract Payments,05-Mar-2014,2713991-FLO73/NRT/0114,747.09,BOOTS THE CHEMISTS LTD.
Children and Adult Services,Public Health,Premises,145009,Cleaning and Domestic Supplies,05-Mar-2014,2714012-3980003633,"1,588.74",CO DURHAM & DARLINGTON NHS FOUNDATION TRUST.
Children and Adult Services,Public Health,Third Party Payments,460803,Contract Payments,05-Mar-2014,2714102-FDH51/0114,990.00,INTRAHEALTH LTD.
Children and Adult Services,Public Health,Supplies and Services,384199,Miscellaneous Expenses,05-Mar-2014,2714206-16788,522.50,R LIGHTFOOT LTD.
Children and Adult Services,Public Health,Third Party Payments,460803,Contract Payments,05-Mar-2014,2714216,699.00,ROBERTS & ROBERTS LTD T/A HIGGINBOTTOM PHARMACY.
Children and Adult Services,Public Health,Third Party Payments,460803,Contract Payments,05-Mar-2014,2714222,"1,063.50",SACRISTON SURGERY.
Children and Adult Services,Public Health,Third Party Payments,460803,Contract Payments,05-Mar-2014,2714230,576.00,SHOTTON PHARMACY.
Children and Adult Services,Public Health,Supplies and Services,352001,Conference Expenses,05-Mar-2014,2714277-OSHPT100214,"3,142.80",UK RECOVERY WALK CHARITY.
Children and Adult Services,Public Health,Third Party Payments,460803,Contract Payments,05-Mar-2014,2714288-A83634/Q2/2013,714.50,WEST CORNFORTH MEDICAL CENTRE.
Corporate Resources,Corporate Services Financing,Debtors,930031,Debtor-outstand insur claims,05-Mar-2014,2714036-220557,"2,510.00",DTZ.
Corporate Resources,Corporate Services Financing,Debtors,930031,Debtor-outstand insur claims,05-Mar-2014,2714123,"4,382.00",KENNEDYS LAW LLP.
Corporate Resources,Financial Services,Supplies and Services,342051,Computers and Communications,05-Mar-2014,2714010-M/IC019969,"1,641.60",CIVICA UK LTD.
Corporate Resources,Human Resources,Supplies and Services,338210,Services,05-Mar-2014,2714062-93331951,933.33,FIRSTASSIST SERVICES LTD.
Corporate Resources,I.C.T. Services,Employees,040149,"Recruitment, Instruction and Training",05-Mar-2014,2714163-4038466,990.00,MTC SUNDERLAND.
Corporate Resources,I.C.T. Services,Debtors,930174,MFD - Paper Holdings,05-Mar-2014,2714251-6451798,528.00,SUPPLIES TEAM LTD.
Corporate Resources,I.C.T. Services,Supplies and Services,304639,Equipment and Materials,05-Mar-2014,2714273-IN123077494,"6,472.20",TOSHIBA INFORMATION SYSTEMS (UK) LTD.
Corporate Resources,I.C.T. Services,Stock,926900,Stock in hand-Inventory system,05-Mar-2014,2714280-2338195,"15,950.00",VIGLEN LTD.
Corporate Resources,Legal & Democratic Services,Supplies and Services,384151,Miscellaneous Expenses,05-Mar-2014,2714012-3910002396,"36,219.14",CO DURHAM & DARLINGTON NHS FOUNDATION TRUST.
Corporate Resources,Legal & Democratic Services,Supplies and Services,328041,"Clothing, Uniforms and Laundry",05-Mar-2014,2714037-20820,"1,293.33",DURHAM BUSINESSWEAR LTD.
Corporate Resources,Legal & Democratic Services,Supplies and Services,338057,Services,05-Mar-2014,2714179-NGS-14088,748.00,NORTHGENE LTD.
Corporate Resources,Legal & Democratic Services,Supplies and Services,372009,Subscriptions,05-Mar-2014,2714270-6800148453,950.00,THOMSON REUTERS.
Dedicated Schools Grant,Dedicated Schools Grant,Third Party Payments,440080,Other Third Party Payments,05-Mar-2014,228816-SIN048701,"3,993.90",HENSHAWS SOCIETY FOR THE BLIND.
Dedicated Schools Grant,Dedicated Schools Grant,Third Party Payments,440080,Other Third Party Payments,05-Mar-2014,2713976-203301912,"12,467.96",BARNARDOS.
Dedicated Schools Grant,Dedicated Schools Grant,Transport,230011,Contract Hire,05-Mar-2014,2714025-112,902.00,D MCDONNELL.
Dedicated Schools Grant,Dedicated Schools Grant,Transport,230010,Contract Hire,05-Mar-2014,2714082-Z00021,900.00,GS HOY.
Dedicated Schools Grant,Dedicated Schools Grant,Transport,230010,Contract Hire,05-Mar-2014,2714091-INV2,"1,220.00",HORNDALE AJ`S TAXIS.
Dedicated Schools Grant,Dedicated Schools Grant,Transport,230010,Contract Hire,05-Mar-2014,2714110-462,750.00,JDS PRIVATE HIRE DURHAM.
Dedicated Schools Grant,Dedicated Schools Grant,Transport,230010,Contract Hire,05-Mar-2014,2714111-2013/39,834.00,JM HUMBLE COACH HIRE.
Dedicated Schools Grant,Dedicated Schools Grant,Employees,080025,Agency Staff,05-Mar-2014,2714256-877079,"1,474.00",TEACHING PERSONNEL LTD.
Neighbourhood Services,Culture & Sport,Supplies and Services,312013,"Newspapers, Books and Periodicals",05-Mar-2014,228735-6864,"4,185.00",BIBLIOGRAPHIC DATA SERVICES LTD.
Neighbourhood Services,Culture & Sport,Supplies and Services,312013,"Newspapers, Books and Periodicals",05-Mar-2014,2713971-4203771,515.99,ASKEWS & HOLTS LIBRARY SERVICES LTD.
Neighbourhood Services,Culture & Sport,Supplies and Services,312013,"Newspapers, Books and Periodicals",05-Mar-2014,2713971-4203895,606.68,ASKEWS & HOLTS LIBRARY SERVICES LTD.
Neighbourhood Services,Culture & Sport,Supplies and Services,384199,Miscellaneous Expenses,05-Mar-2014,2713982-00030,"7,140.16",BISHOP CATERING LTD.
Neighbourhood Services,Culture & Sport,Supplies and Services,324001,Provisions,05-Mar-2014,2713999-EW54946074,"1,348.49",CARLSBERG UK LTD.
Neighbourhood Services,Culture & Sport,Supplies and Services,324001,Provisions,05-Mar-2014,2713999-EW54967130,668.25,CARLSBERG UK LTD.
Neighbourhood Services,Culture & Sport,Supplies and Services,324001,Provisions,05-Mar-2014,2713999-EW54967797,"1,455.64",CARLSBERG UK LTD.
Neighbourhood Services,Culture & Sport,Supplies and Services,324001,Provisions,05-Mar-2014,2713999-EW54989767,973.63,CARLSBERG UK LTD.
Neighbourhood Services,Culture & Sport,Supplies and Services,338047,Services,05-Mar-2014,2714003-CMT1556,"2,110.50",CHAMBERS MANAGEMENT TOURING LTD.
Neighbourhood Services,Culture & Sport,Third Party Payments,430100,Rendered by Private Contractors,05-Mar-2014,2714018-PS22978,"47,274.49",COMPETITION LINE UK LTD.
Neighbourhood Services,Culture & Sport,Third Party Payments,430100,Rendered by Private Contractors,05-Mar-2014,2714018-PS22979,"7,322.42",COMPETITION LINE UK LTD.
Neighbourhood Services,Culture & Sport,Supplies and Services,384199,Miscellaneous Expenses,05-Mar-2014,2714029-DLI-001,625.00,DAVID SCOTT.
Neighbourhood Services,Culture & Sport,Supplies and Services,324001,Provisions,05-Mar-2014,2714030-3423,554.40,DEERNESS KENNELS.
Neighbourhood Services,Culture & Sport,Supplies and Services,338047,Services,05-Mar-2014,2714040,"2,149.32",DURHAM DRAMATIC SOCIETY.
Neighbourhood Services,Culture & Sport,Supplies and Services,338099,Services,05-Mar-2014,2714042-PO4100414185,"1,904.00",DURHAM SCENIC WORKSHOPS LTD.
Neighbourhood Services,Culture & Sport,Supplies and Services,338047,Services,05-Mar-2014,2714043,"1,319.35",DURHAM SINFONIA.
Neighbourhood Services,Culture & Sport,Supplies and Services,312013,"Newspapers, Books and Periodicals",05-Mar-2014,2714061-IN04612020,606.67,FINANCIAL TIMES LTD.
Neighbourhood Services,Culture & Sport,Supplies and Services,384199,Miscellaneous Expenses,05-Mar-2014,2714073-FM/969A,"4,000.00",FRUSION ARTISTS.
Neighbourhood Services,Culture & Sport,Supplies and Services,364999,Grants to Voluntary Organisations,05-Mar-2014,2714089-620,"2,343.50",HIGHLIGHTS PRODUCTIONS LTD.
Neighbourhood Services,Culture & Sport,Supplies and Services,338047,Services,05-Mar-2014,2714130-10145655,"3,052.96",LIONS GATE UK LTD.
Neighbourhood Services,Culture & Sport,Supplies and Services,338047,Services,05-Mar-2014,2714130-10145657,"5,407.53",LIONS GATE UK LTD.
Neighbourhood Services,Culture & Sport,Supplies and Services,312013,"Newspapers, Books and Periodicals",05-Mar-2014,2714138-I072928,"1,135.56",MAGNA LARGE PRINT BOOKS.
Neighbourhood Services,Culture & Sport,Supplies and Services,338047,Services,05-Mar-2014,2714141-454,"6,272.66",MASTERS ENTERTAINMENT CORPORATION LTD.
Neighbourhood Services,Culture & Sport,Premises,120009,Energy Costs,05-Mar-2014,2714172-48314519,596.77,NHS PROPERTY SERVICES LTD.
Neighbourhood Services,Culture & Sport,Supplies and Services,328041,"Clothing, Uniforms and Laundry",05-Mar-2014,2714223-4002071,630.00,SAGITTARIAN EMBROIDERY.
Neighbourhood Services,Culture & Sport,Supplies and Services,328041,"Clothing, Uniforms and Laundry",05-Mar-2014,2714223-4002073,630.00,SAGITTARIAN EMBROIDERY.
Neighbourhood Services,Culture & Sport,Supplies and Services,328041,"Clothing, Uniforms and Laundry",05-Mar-2014,2714223-4002075,"1,050.00",SAGITTARIAN EMBROIDERY.
Neighbourhood Services,Culture & Sport,Supplies and Services,328041,"Clothing, Uniforms and Laundry",05-Mar-2014,2714223-4002081,630.00,SAGITTARIAN EMBROIDERY.
Neighbourhood Services,Culture & Sport,Supplies and Services,328041,"Clothing, Uniforms and Laundry",05-Mar-2014,2714223-4002083,630.00,SAGITTARIAN EMBROIDERY.
Neighbourhood Services,Culture & Sport,Supplies and Services,338047,Services,05-Mar-2014,2714226-401,"1,926.20",SHAKESPEARE SCHOOLS FESTIVAL.
Neighbourhood Services,Culture & Sport,Supplies and Services,338047,Services,05-Mar-2014,2714276-GB14B0014791,"2,981.57",TWENTIETH CENTURY FOX FILM CO LTD.
Neighbourhood Services,Culture & Sport,Supplies and Services,338047,Services,05-Mar-2014,2714279-SI002724,"1,963.96",VERTIGO DISTRIBUTION LTD.
Neighbourhood Services,Culture & Sport,Supplies and Services,338047,Services,05-Mar-2014,2714279-SI002725,"1,836.04",VERTIGO DISTRIBUTION LTD.
Neighbourhood Services,Culture & Sport,Supplies and Services,338047,Services,05-Mar-2014,2714279-SI002726,894.07,VERTIGO DISTRIBUTION LTD.
Neighbourhood Services,Direct Services,Income,720299,Fees and Charges,05-Mar-2014,228770-NEI-EXP-02-2014-035,"2,013.00",DR LAMBERT.
Neighbourhood Services,Direct Services,Supplies and Services,384974,Miscellaneous Expenses,05-Mar-2014,228940-NEI-EXP-02-2014-037,"2,000.00",VEHICLE & OPERATOR SERVICES AGENCY (VOSA).
Neighbourhood Services,Direct Services,Supplies and Services,304259,Equipment and Materials,05-Mar-2014,2714121-SOH21021401,"3,295.50",KANE INTERNATIONAL LTD.
Neighbourhood Services,Direct Services,Supplies and Services,304221,Equipment and Materials,05-Mar-2014,2714129-4914387,"1,246.09",LINDAB LTD.
Neighbourhood Services,Direct Services,Premises,108099,Service Repairs and Maintenance,05-Mar-2014,2714188-XL107949,880.66,PARK ELECTRICAL DISTRIBUTORS LTD.
Neighbourhood Services,Direct Services,Supplies and Services,338078,Services,05-Mar-2014,2714205-3959,557.70,QW SECURITY LTD.
Neighbourhood Services,Direct Services,Supplies and Services,304221,Equipment and Materials,05-Mar-2014,2714210-0000151604,"3,302.00",REZNOR UK LTD.
Neighbourhood Services,Direct Services,"Vehicles, Equipment, Furniture and Fittings",912541,Purchase-vehicles,05-Mar-2014,2714238-11125012,"7,948.67",SPRINGFIELD MOTOR GROUP.
Neighbourhood Services,Direct Services,"Vehicles, Equipment, Furniture and Fittings",912541,Purchase-vehicles,05-Mar-2014,2714238-11125013,"7,948.67",SPRINGFIELD MOTOR GROUP.
Neighbourhood Services,Direct Services,"Vehicles, Equipment, Furniture and Fittings",912541,Purchase-vehicles,05-Mar-2014,2714238-11125014,"7,948.67",SPRINGFIELD MOTOR GROUP.
Neighbourhood Services,Direct Services,"Vehicles, Equipment, Furniture and Fittings",912541,Purchase-vehicles,05-Mar-2014,2714238-11125015,"7,948.67",SPRINGFIELD MOTOR GROUP.
Neighbourhood Services,Direct Services,"Vehicles, Equipment, Furniture and Fittings",912541,Purchase-vehicles,05-Mar-2014,2714238-11125016,"7,948.67",SPRINGFIELD MOTOR GROUP.
Neighbourhood Services,Direct Services,Third Party Payments,430100,Rendered by Private Contractors,05-Mar-2014,2714239-4154,"1,514.00",ST ASTIER LTD.
Neighbourhood Services,Direct Services,Supplies and Services,304221,Equipment and Materials,05-Mar-2014,2714295-10076531,699.84,WOLSELEY UK LTD.
Neighbourhood Services,Projects and Business services,Premises,120009,Energy Costs,05-Mar-2014,2714181-NNO7JNR6,"2,280.62",NPOWER.
Neighbourhood Services,Technical Services,Supplies and Services,304221,Equipment and Materials,05-Mar-2014,228729-11377,"1,832.10",ALSTON NATURAL STONE LTD.
Neighbourhood Services,Technical Services,Supplies and Services,304221,Equipment and Materials,05-Mar-2014,228730-3574,"2,018.50",ALTHON LTD.
Neighbourhood Services,Technical Services,Supplies and Services,338027,Services,05-Mar-2014,2713960-28182664,"4,474.60",AECOM LTD.
Neighbourhood Services,Technical Services,Supplies and Services,304221,Equipment and Materials,05-Mar-2014,2713961-19321778,550.56,AGGREGATE INDUSTRIES UK LTD.
Neighbourhood Services,Technical Services,Supplies and Services,304221,Equipment and Materials,05-Mar-2014,2713961-19327699,669.08,AGGREGATE INDUSTRIES UK LTD.
Neighbourhood Services,Technical Services,Supplies and Services,304221,Equipment and Materials,05-Mar-2014,2713961-19335042,"1,187.92",AGGREGATE INDUSTRIES UK LTD.
Neighbourhood Services,Technical Services,Supplies and Services,304221,Equipment and Materials,05-Mar-2014,2713961-19335043,"1,418.04",AGGREGATE INDUSTRIES UK LTD.
Neighbourhood Services,Technical Services,Supplies and Services,304221,Equipment and Materials,05-Mar-2014,2713961-19340610,834.96,AGGREGATE INDUSTRIES UK LTD.
Neighbourhood Services,Technical Services,Supplies and Services,304221,Equipment and Materials,05-Mar-2014,2713961-19340611,"1,745.92",AGGREGATE INDUSTRIES UK LTD.
Neighbourhood Services,Technical Services,Supplies and Services,304221,Equipment and Materials,05-Mar-2014,2713961-19346087,888.32,AGGREGATE INDUSTRIES UK LTD.
Neighbourhood Services,Technical Services,Supplies and Services,304221,Equipment and Materials,05-Mar-2014,2713961-19346088,892.64,AGGREGATE INDUSTRIES UK LTD.
Neighbourhood Services,Technical Services,Supplies and Services,304221,Equipment and Materials,05-Mar-2014,2713961-19351932,"1,242.48",AGGREGATE INDUSTRIES UK LTD.
Neighbourhood Services,Technical Services,Supplies and Services,304221,Equipment and Materials,05-Mar-2014,2713962-19279321,"1,700.70",AGGREGATE INDUSTRIES UK LTD.
Neighbourhood Services,Technical Services,Supplies and Services,304357,Equipment and Materials,05-Mar-2014,2713995-NEW5106697,"1,173.35",BURNT TREE GROUP LTD.
Neighbourhood Services,Technical Services,Supplies and Services,304357,Equipment and Materials,05-Mar-2014,2713995-NEW8105896,"1,173.35",BURNT TREE GROUP LTD.
Neighbourhood Services,Technical Services,Stock,926900,Stock in hand-Inventory system,05-Mar-2014,2713998-851400326,"3,287.00",CARLISLE CONSTRUCTION MATERIALS LTD.
Neighbourhood Services,Technical Services,Construction Work,908105,Construction work,05-Mar-2014,2714022-10061,647.28,COUPE LINE LTD.
Neighbourhood Services,Technical Services,Construction Work,908105,Construction work,05-Mar-2014,2714022-10062,861.62,COUPE LINE LTD.
Neighbourhood Services,Technical Services,Construction Work,908105,Construction work,05-Mar-2014,2714022-10065,"1,109.70",COUPE LINE LTD.
Neighbourhood Services,Technical Services,Construction Work,908105,Construction work,05-Mar-2014,2714022-10066,804.60,COUPE LINE LTD.
Neighbourhood Services,Technical Services,Construction Work,908105,Construction work,05-Mar-2014,2714022-10067,"1,054.55",COUPE LINE LTD.
Neighbourhood Services,Technical Services,Supplies and Services,304357,Equipment and Materials,05-Mar-2014,2714074-DCC230214,"13,400.18",GAP GROUP LTD.
Neighbourhood Services,Technical Services,Third Party Payments,430100,Rendered by Private Contractors,05-Mar-2014,2714090-2193,"9,606.42",HIGHWAY CONSTRUCTION SERVICES LTD.
Neighbourhood Services,Technical Services,Third Party Payments,430100,Rendered by Private Contractors,05-Mar-2014,2714090-2194,"21,016.19",HIGHWAY CONSTRUCTION SERVICES LTD.
Neighbourhood Services,Technical Services,Stock,926900,Stock in hand-Inventory system,05-Mar-2014,2714100-438180,"2,307.20",INSTARMAC GROUP PLC.
Neighbourhood Services,Technical Services,Stock,926900,Stock in hand-Inventory system,05-Mar-2014,2714100-439367,"1,384.32",INSTARMAC GROUP PLC.
Neighbourhood Services,Technical Services,Third Party Payments,460151,Contract Payments,05-Mar-2014,2714100-439400,939.12,INSTARMAC GROUP PLC.
Neighbourhood Services,Technical Services,Stock,926900,Stock in hand-Inventory system,05-Mar-2014,2714100-439569,"1,384.32",INSTARMAC GROUP PLC.
Neighbourhood Services,Technical Services,Stock,926900,Stock in hand-Inventory system,05-Mar-2014,2714116-NI024111,"16,166.70",JOHN MACLEAN & SONS ELECTRICAL (DINGWALL) LTD.
Neighbourhood Services,Technical Services,Supplies and Services,304221,Equipment and Materials,05-Mar-2014,2714127-9030605977,529.50,LAFARGE TARMAC TRADING LTD.
Neighbourhood Services,Technical Services,Supplies and Services,304221,Equipment and Materials,05-Mar-2014,2714127-9030610694,745.61,LAFARGE TARMAC TRADING LTD.
Neighbourhood Services,Technical Services,Supplies and Services,304221,Equipment and Materials,05-Mar-2014,2714166-33336,"1,601.60",NAL LTD.
Neighbourhood Services,Technical Services,Third Party Payments,460351,Contract Payments,05-Mar-2014,2714175-031107,533.76,NORTHERN DISPOSAL SERVICES LTD.
Neighbourhood Services,Technical Services,Stock,926900,Stock in hand-Inventory system,05-Mar-2014,2714188-XL108124,928.00,PARK ELECTRICAL DISTRIBUTORS LTD.
Neighbourhood Services,Technical Services,Supplies and Services,304357,Equipment and Materials,05-Mar-2014,2714224-18929,"1,155.00",SALFORD VAN HIRE LTD.
Neighbourhood Services,Technical Services,Supplies and Services,304357,Equipment and Materials,05-Mar-2014,2714224-19939,770.00,SALFORD VAN HIRE LTD.
Neighbourhood Services,Technical Services,Third Party Payments,430100,Rendered by Private Contractors,05-Mar-2014,2714241-1744,"3,661.13",STAINTON LIGHTING DESIGN SERVICES LTD.
Neighbourhood Services,Technical Services,Stock,926900,Stock in hand-Inventory system,05-Mar-2014,2714268-N/IN116395,910.31,THOMAS OWEN & SONS (NEWCASTLE) LTD.
RED HRA,Housing Revenue Account,Supplies and Services,344033,Telephones,05-Mar-2014,2713997-12609745,758.34,CABLE & WIRELESS UK.
RED HRA,Housing Revenue Account,Supplies and Services,384170,Miscellaneous Expenses,05-Mar-2014,2714071-6/374142,"4,022.77",FRED WILLIAMSON & SONS LTD.
RED HRA,Housing Revenue Account,Supplies and Services,342225,Computers and Communications,05-Mar-2014,2714177-91295302,"2,760.78",NORTHGATE INFORMATION SOLUTIONS UK LTD.
RED HRA,HRA Capital,Construction Work,908105,Construction work,05-Mar-2014,2714031-191374,867.98,DELTA ELECTRICAL & MECHANICAL SERVICES.
RED HRA,HRA Capital,Construction Work,908105,Construction work,05-Mar-2014,2714049-SINV/00003258,"2,556.00",EAST DURHAM HOMES.
RED HRA,HRA Capital,Construction Work,908105,Construction work,05-Mar-2014,2714124-13080003,"86,661.68",KIER SERVICES LTD.
RED HRA,HRA Capital,Construction Work,908105,Construction work,05-Mar-2014,2714250-LTS/524/047,"3,733.45",SUNTER LTD.
RED HRA,HRA Capital,Construction Work,908105,Construction work,05-Mar-2014,2714297-30253,"9,951.86",YWC GROUP LTD.
RED HRA,HRA Capital,Construction Work,908105,Construction work,05-Mar-2014,2714297-30305,"2,842.15",YWC GROUP LTD.
RED HRA,HRA Capital,Construction Work,908105,Construction work,05-Mar-2014,2714297-30307,581.22,YWC GROUP LTD.
RED HRA,HRA Capital,Construction Work,908105,Construction work,05-Mar-2014,2714297-30359,"5,042.34",YWC GROUP LTD.
RED HRA,HRA Capital,Construction Work,908105,Construction work,05-Mar-2014,2714297-30395,873.59,YWC GROUP LTD.
RED HRA,HRA Centrally Managed,Creditors,952191,Creditor-HRA-rents-refunds,05-Mar-2014,228856,506.62,REDACTED - PAYMENT TO INDIVIDUAL
RED HRA,HRA Centrally Managed,Creditors,952191,Creditor-HRA-rents-refunds,05-Mar-2014,228858,626.47,REDACTED - PAYMENT TO INDIVIDUAL
RED HRA,HRA Centrally Managed,Creditors,952191,Creditor-HRA-rents-refunds,05-Mar-2014,228871,900.00,REDACTED - PAYMENT TO INDIVIDUAL
Regeneration & Economic Development,Economic Development and Housing,Cap Exp on Grants & Other Financial Assistance (REFCUS),918401,Capital grants,05-Mar-2014,228752-RED-02-2014-168,"8,755.00",DAVID CRAWFORD PLUMBING & HEATING.
Regeneration & Economic Development,Economic Development and Housing,Supplies and Services,384700,Miscellaneous Expenses,05-Mar-2014,228815-RED-02-2014-296,"1,014.00",HEEL & TOE.
Regeneration & Economic Development,Economic Development and Housing,Cap Exp on Grants & Other Financial Assistance (REFCUS),918401,Capital grants,05-Mar-2014,228819-RED-02-2014-213,"25,565.98",HPS MAINTENANCE & RESTORATION.
Regeneration & Economic Development,Economic Development and Housing,Cap Exp on Grants & Other Financial Assistance (REFCUS),918401,Capital grants,05-Mar-2014,228837-RED-02-2014-250,"1,364.69",LORMOR & HALL CONSTRUCTION.
Regeneration & Economic Development,Economic Development and Housing,Cap Exp on Grants & Other Financial Assistance (REFCUS),918401,Capital grants,05-Mar-2014,228844-RED-02-2014-218,575.00,REDACTED - PAYMENT TO INDIVIDUAL
Regeneration & Economic Development,Economic Development and Housing,Cap Exp on Grants & Other Financial Assistance (REFCUS),918401,Capital grants,05-Mar-2014,228844-RED-02-2014-266,575.00,REDACTED - PAYMENT TO INDIVIDUAL
Regeneration & Economic Development,Economic Development and Housing,Supplies and Services,338029,Services,05-Mar-2014,2713985-20,"12,575.57",BLUE SKY THINK LLP.
Regeneration & Economic Development,Economic Development and Housing,Cap Exp on Grants & Other Financial Assistance (REFCUS),918401,Capital grants,05-Mar-2014,2714024-RED-03-2014-016,"2,960.00",CUMMINGS CONTRACTORS.
Regeneration & Economic Development,Economic Development and Housing,Supplies and Services,384700,Miscellaneous Expenses,05-Mar-2014,2714027-RED-03-2014-013,"2,000.00",DALE & VALLEY HOMES.
Regeneration & Economic Development,Economic Development and Housing,Cap Exp on Grants & Other Financial Assistance (REFCUS),918401,Capital grants,05-Mar-2014,2714047-RED-03-2014-017,"1,632.76",EASIBATHE LTD.
Regeneration & Economic Development,Economic Development and Housing,Cap Exp on Grants & Other Financial Assistance (REFCUS),918401,Capital grants,05-Mar-2014,2714052-RED-03-2014-014,"2,220.00",ELLIOT HIRD & PARTNERS LTD.
Regeneration & Economic Development,Economic Development and Housing,Supplies and Services,338029,Services,05-Mar-2014,2714057-101009/03,"1,500.00",FAIRHURST.
Regeneration & Economic Development,Economic Development and Housing,Construction Work,908105,Construction work,05-Mar-2014,2714060-144169-0,"4,522.00",FILTRONIC BROADBAND LTD.
Regeneration & Economic Development,Economic Development and Housing,Construction Work,908105,Construction work,05-Mar-2014,2714060-144171-0,"3,075.24",FILTRONIC BROADBAND LTD.
Regeneration & Economic Development,Economic Development and Housing,Construction Work,908105,Construction work,05-Mar-2014,2714060-144172-0,"1,507.20",FILTRONIC BROADBAND LTD.
Regeneration & Economic Development,Economic Development and Housing,Supplies and Services,384199,Miscellaneous Expenses,05-Mar-2014,2714067-FC008042,"3,000.00",FOUR COMMUNICATIONS PLC.
Regeneration & Economic Development,Economic Development and Housing,Supplies and Services,384199,Miscellaneous Expenses,05-Mar-2014,2714067-FC008400,"3,000.00",FOUR COMMUNICATIONS PLC.
Regeneration & Economic Development,Economic Development and Housing,Fees,901001,Internal fees,05-Mar-2014,2714068-SITRH/0006091,508.80,FOUR HOUSING GROUP.
Regeneration & Economic Development,Economic Development and Housing,Fees,901001,Internal fees,05-Mar-2014,2714068-SITRH/0006120,"2,287.56",FOUR HOUSING GROUP.
Regeneration & Economic Development,Economic Development and Housing,Fees,901001,Internal fees,05-Mar-2014,2714068-SITRH/0006123,"1,043.40",FOUR HOUSING GROUP.
Regeneration & Economic Development,Economic Development and Housing,Supplies and Services,368008,Incentives to Industrialists,05-Mar-2014,2714081-9429,"11,857.15",GROUNDWORK NORTH EAST.
Regeneration & Economic Development,Economic Development and Housing,Fees,901002,Professional fees,05-Mar-2014,2714104-4696,750.00,IS CONSULTANCY UK LTD.
Regeneration & Economic Development,Economic Development and Housing,Construction Work,908105,Construction work,05-Mar-2014,2714180-913037338,"1,110.00",NORTHUMBRIAN WATER LTD.
Regeneration & Economic Development,Economic Development and Housing,Cap Exp on Grants & Other Financial Assistance (REFCUS),918401,Capital grants,05-Mar-2014,2714190-RED-03-2014-018,"4,098.00",PEART ACCESS RAMPS.
Regeneration & Economic Development,Economic Development and Housing,Premises,108099,Service Repairs and Maintenance,05-Mar-2014,2714196-60936239,"1,755.12",PHS GROUP PLC.
Regeneration & Economic Development,Economic Development and Housing,Supplies and Services,384700,Miscellaneous Expenses,05-Mar-2014,2714233-RED-03-2014-012,"1,000.00",SOCIAL RESOURCE CENTRE LTD.
Regeneration & Economic Development,Economic Development and Housing,Supplies and Services,384199,Miscellaneous Expenses,05-Mar-2014,2714243-2237,705.00,STARK HARTLEY ATKINSON LTD.
Regeneration & Economic Development,Economic Development and Housing,Fees,901002,Professional fees,05-Mar-2014,2714249-NE12049:1-19,"1,000.00",SUMMERS INMAN.
Regeneration & Economic Development,Economic Development and Housing,Supplies and Services,336005,Advertising,05-Mar-2014,2714261-406348,750.00,TEN ALPS COMMUNICATIONS LTD.
Regeneration & Economic Development,Economic Development and Housing,Fees,901002,Professional fees,05-Mar-2014,2714265-129,"1,903.04",THE WITHAM.
Regeneration & Economic Development,Economic Development and Housing,Supplies and Services,384199,Miscellaneous Expenses,05-Mar-2014,2714265-4102,849.75,THE WITHAM.
Regeneration & Economic Development,Economic Development and Housing,Supplies and Services,384199,Miscellaneous Expenses,05-Mar-2014,2714265-67,"2,247.50",THE WITHAM.
Regeneration & Economic Development,Economic Development and Housing,Cap Exp on Grants & Other Financial Assistance (REFCUS),918401,Capital grants,05-Mar-2014,2714271-RED-03-2014-015,"3,550.00",THYSSENKRUPP ENCASA LTD.
Regeneration & Economic Development,"Spatial Policy, Planning, Assets & Environment",Supplies and Services,338045,Services,05-Mar-2014,228864-337829,"4,225.00",MR IAN PONTER.
Regeneration & Economic Development,"Spatial Policy, Planning, Assets & Environment",Construction Work,908105,Construction work,05-Mar-2014,2713993-90210597,"33,867.45",BRITISH GAS ENERGY PERFORMANCE.
Regeneration & Economic Development,"Spatial Policy, Planning, Assets & Environment",Third Party Payments,440999,Other Third Party Payments,05-Mar-2014,2714148-3359,"3,265.80",MICROCOPY SYSTEMS LTD.
Regeneration & Economic Development,"Spatial Policy, Planning, Assets & Environment",Supplies and Services,384700,Miscellaneous Expenses,05-Mar-2014,2714211-RED-03-2014-011,"1,165.00",REDACTED - PAYMENT TO INDIVIDUAL
Regeneration & Economic Development,Transport and Contracted Services,Supplies and Services,372009,Subscriptions,05-Mar-2014,228821-113894,"1,155.00",INSIGHT CERTIFICATION LTD.
Regeneration & Economic Development,Transport and Contracted Services,Premises,125009,Rents,05-Mar-2014,2714009-RENT-MARCH14,"15,000.00",CITY OF DURHAM FREEMEN.
Regeneration & Economic Development,Transport and Contracted Services,Supplies and Services,384199,Miscellaneous Expenses,05-Mar-2014,2714131-3241,"161,771.00",LIVING STREETS.
Regeneration & Economic Development,Transport and Contracted Services,Third Party Payments,430109,Rendered by Private Contractors,05-Mar-2014,2714220-INV1196,"3,436.48",RTEM LTD.
Assistant Chief Executive,Partnerships & Community Engagement Div.,Cap Exp on Grants & Other Financial Assistance (REFCUS),918004,Contributions to other bodies,06-Mar-2014,2714565-VOUCHER13NB-SPEN004,"3,600.00",ST PETERS CRAFT GROUP.
Children and Adult Services,Childrens care,Third Party Payments,425041,Rendered by Voluntary Organisations,06-Mar-2014,2714564-995590,"2,250.00",ST FRANCIS CHILDRENS SOCIETY.
Children and Adult Services,Commissioning inc Supporting People,Supplies and Services,384700,Miscellaneous Expenses,06-Mar-2014,2714566,"8,350.00",STANLEY INDOOR BOWLS CENTRE.
Children and Adult Services,Commissioning inc Supporting People,Third Party Payments,479111,Purchase of Care,06-Mar-2014,2714577-4810001018,"5,807.50",TEES ESK & WEAR VALLEYS NHS FOUNDATION TRUST.
Children and Adult Services,Early Intervention and Involvement,Supplies and Services,344033,Telephones,06-Mar-2014,2714348-NE19041828Q0567S,"1,157.18",BRITISH TELECOMMUNICATIONS PLC.
Children and Adult Services,Early Intervention and Involvement,Supplies and Services,384199,Miscellaneous Expenses,06-Mar-2014,2714428-16,"1,260.00",INSPIRE YOUTH CIC.
Children and Adult Services,Early Intervention and Involvement,Supplies and Services,384199,Miscellaneous Expenses,06-Mar-2014,2714428-17,504.00,INSPIRE YOUTH CIC.
Children and Adult Services,Early Intervention and Involvement,Supplies and Services,352001,Conference Expenses,06-Mar-2014,2714554-808,650.00,SCHOOL & FAMILY NURTURING PROGRAMME.
Children and Adult Services,Early Intervention and Involvement,Supplies and Services,352001,Conference Expenses,06-Mar-2014,2714591-804,650.00,TRAINING LADDER LTD.
Children and Adult Services,Education,Transport,230007,Contract Hire,06-Mar-2014,2714298-21401,585.00,24/7 TAXI SERVICES LTD.
Children and Adult Services,Education,Transport,230007,Contract Hire,06-Mar-2014,2714298-21402,572.00,24/7 TAXI SERVICES LTD.
Children and Adult Services,Education,Transport,230008,Contract Hire,06-Mar-2014,2714298-21403,"1,190.00",24/7 TAXI SERVICES LTD.
Children and Adult Services,Education,Transport,230006,Contract Hire,06-Mar-2014,2714298-21405,840.00,24/7 TAXI SERVICES LTD.
Children and Adult Services,Education,Transport,230006,Contract Hire,06-Mar-2014,2714298-21406,543.50,24/7 TAXI SERVICES LTD.
Children and Adult Services,Education,Transport,230008,Contract Hire,06-Mar-2014,2714298-21408,975.00,24/7 TAXI SERVICES LTD.
Children and Adult Services,Education,Transport,230008,Contract Hire,06-Mar-2014,2714298-21409,675.00,24/7 TAXI SERVICES LTD.
Children and Adult Services,Education,Transport,230008,Contract Hire,06-Mar-2014,2714298-21411,"1,742.50",24/7 TAXI SERVICES LTD.
Children and Adult Services,Education,Transport,230008,Contract Hire,06-Mar-2014,2714298-21412,630.00,24/7 TAXI SERVICES LTD.
Children and Adult Services,Education,Transport,230008,Contract Hire,06-Mar-2014,2714298-21413,"1,429.50",24/7 TAXI SERVICES LTD.
Children and Adult Services,Education,Transport,230008,Contract Hire,06-Mar-2014,2714298-21415,"1,138.50",24/7 TAXI SERVICES LTD.
Children and Adult Services,Education,Transport,230008,Contract Hire,06-Mar-2014,2714299-05FEB14,900.00,A & P TAXIS.
Children and Adult Services,Education,Transport,230008,Contract Hire,06-Mar-2014,2714300-A220750,"1,020.00",A MURRAY TRAVEL.
Children and Adult Services,Education,Transport,230007,Contract Hire,06-Mar-2014,2714301-A1DCC/508,708.45,A1 TAXIS.
Children and Adult Services,Education,Transport,230007,Contract Hire,06-Mar-2014,2714304-30,780.00,AALPHA TAXIS.
Children and Adult Services,Education,Transport,230008,Contract Hire,06-Mar-2014,2714305-0177,"1,380.00",ABC & OUSTON CABS.
Children and Adult Services,Education,Transport,230008,Contract Hire,06-Mar-2014,2714305-0178,630.00,ABC & OUSTON CABS.
Children and Adult Services,Education,Transport,230008,Contract Hire,06-Mar-2014,2714305-0179,506.00,ABC & OUSTON CABS.
Children and Adult Services,Education,Transport,230008,Contract Hire,06-Mar-2014,2714305-0180,"1,749.00",ABC & OUSTON CABS.
Children and Adult Services,Education,Transport,230008,Contract Hire,06-Mar-2014,2714305-0181,840.00,ABC & OUSTON CABS.
Children and Adult Services,Education,Transport,230008,Contract Hire,06-Mar-2014,2714306-57-28/02/2014,"1,050.00",ABLE NOVAK TAXIS.
Children and Adult Services,Education,Transport,230008,Contract Hire,06-Mar-2014,2714306-58-28/02/2014,"1,500.00",ABLE NOVAK TAXIS.
Children and Adult Services,Education,Transport,230007,Contract Hire,06-Mar-2014,2714307-548,952.00,AC TAXIS.
Children and Adult Services,Education,Transport,230008,Contract Hire,06-Mar-2014,2714310-03/14,780.00,ADVANCE TRAVEL.
Children and Adult Services,Education,Transport,230008,Contract Hire,06-Mar-2014,2714316-0284,825.00,AJS PRIVATE HIRE.
Children and Adult Services,Education,Transport,230006,Contract Hire,06-Mar-2014,2714317-388020,570.00,ALANS CABS.
Children and Adult Services,Education,Transport,230007,Contract Hire,06-Mar-2014,2714318-017,"1,000.00",ALANS TAXIS.
Children and Adult Services,Education,Transport,230008,Contract Hire,06-Mar-2014,2714322-42,"1,020.00",ANDY CABS.
Children and Adult Services,Education,Transport,230008,Contract Hire,06-Mar-2014,2714328-DC11FEB14,"1,575.00",ATLAS TAXIS BISHOP AUCKLAND.
Children and Adult Services,Education,Transport,230008,Contract Hire,06-Mar-2014,2714328-DDC3FEB14,"1,371.75",ATLAS TAXIS BISHOP AUCKLAND.
Children and Adult Services,Education,Transport,230008,Contract Hire,06-Mar-2014,2714328-DDC5FEB14,"1,275.00",ATLAS TAXIS BISHOP AUCKLAND.
Children and Adult Services,Education,Transport,230008,Contract Hire,06-Mar-2014,2714328-DDC6FEB14,"2,284.80",ATLAS TAXIS BISHOP AUCKLAND.
Children and Adult Services,Education,Transport,230008,Contract Hire,06-Mar-2014,2714328-NO87,"1,425.00",ATLAS TAXIS BISHOP AUCKLAND.
Children and Adult Services,Education,Transport,230008,Contract Hire,06-Mar-2014,2714329-2802014,825.00,AVALON TAXIS.
Children and Adult Services,Education,Transport,230007,Contract Hire,06-Mar-2014,2714331-5184-28/2/14,520.00,AW TAXIS.
Children and Adult Services,Education,Transport,230008,Contract Hire,06-Mar-2014,2714334-409,"1,187.40",BEELINE MINI BUSES.
Children and Adult Services,Education,Transport,230008,Contract Hire,06-Mar-2014,2714334-410,"1,125.00",BEELINE MINI BUSES.
Children and Adult Services,Education,Transport,230008,Contract Hire,06-Mar-2014,2714335-10FEBRUARY14,"1,200.00",BEELINE PRIVATE HIRE.
Children and Adult Services,Education,Transport,230008,Contract Hire,06-Mar-2014,2714335-1FEBRUARY14,"1,494.45",BEELINE PRIVATE HIRE.
Children and Adult Services,Education,Transport,230008,Contract Hire,06-Mar-2014,2714335-9FEBRUARY14,845.00,BEELINE PRIVATE HIRE.
Children and Adult Services,Education,Transport,230008,Contract Hire,06-Mar-2014,2714336-29,"1,200.00",BEELINE TAXIS.
Children and Adult Services,Education,Transport,230008,Contract Hire,06-Mar-2014,2714343-BZ00092,825.00,BREZ`S TAXIS.
Children and Adult Services,Education,Transport,230008,Contract Hire,06-Mar-2014,2714344-0214-28/02/2014,"1,790.88",BRIAN WAKE T/A BRIAN`S TAXIS.
Children and Adult Services,Education,Transport,230007,Contract Hire,06-Mar-2014,2714345-0403,506.55,BRIANS MINIBUSES.
Children and Adult Services,Education,Transport,230008,Contract Hire,06-Mar-2014,2714350-FEBRUARY2014,"1,039.50",BURNDALE PRIVATE HIRE.
Children and Adult Services,Education,Transport,230008,Contract Hire,06-Mar-2014,2714352-BIL0039,975.00,CA MUSGROVE.
Children and Adult Services,Education,Transport,230008,Contract Hire,06-Mar-2014,2714358-77,"1,125.00",CASTLE CARS.
Children and Adult Services,Education,Transport,230008,Contract Hire,06-Mar-2014,2714368-13-SC14,"1,680.00",CLUBMAN CABS.
Children and Adult Services,Education,Transport,230008,Contract Hire,06-Mar-2014,2714369-FEB0001,825.00,CM TAXIS.
Children and Adult Services,Education,Transport,230007,Contract Hire,06-Mar-2014,2714371-C/8050,"4,755.00",COCHRANES T/A KELVIN TRAVEL.
Children and Adult Services,Education,Transport,230007,Contract Hire,06-Mar-2014,2714371-C/8051,"1,877.50",COCHRANES T/A KELVIN TRAVEL.
Children and Adult Services,Education,Transport,230007,Contract Hire,06-Mar-2014,2714371-C/8052,"3,720.00",COCHRANES T/A KELVIN TRAVEL.
Children and Adult Services,Education,Transport,230007,Contract Hire,06-Mar-2014,2714371-C/8053,"2,077.50",COCHRANES T/A KELVIN TRAVEL.
Children and Adult Services,Education,Transport,230007,Contract Hire,06-Mar-2014,2714379-4029/02/14,"1,485.00",COUNTY COACHES.
Children and Adult Services,Education,Transport,230008,Contract Hire,06-Mar-2014,2714384-OAK024,"1,151.88",D IRVING T/A BJ TAXIS.
Children and Adult Services,Education,Transport,230008,Contract Hire,06-Mar-2014,2714385-DI201402,660.00,D&I TAXIS.
Children and Adult Services,Education,Transport,230008,Contract Hire,06-Mar-2014,2714386-1312,990.00,DA TAXIS.
Children and Adult Services,Education,Transport,230008,Contract Hire,06-Mar-2014,2714386-1313,"1,050.00",DA TAXIS.
Children and Adult Services,Education,Transport,230008,Contract Hire,06-Mar-2014,2714386-1314,"1,340.28",DA TAXIS.
Children and Adult Services,Education,Transport,230008,Contract Hire,06-Mar-2014,2714386-1315,"1,050.00",DA TAXIS.
Children and Adult Services,Education,Transport,230008,Contract Hire,06-Mar-2014,2714386-1316,748.00,DA TAXIS.
Children and Adult Services,Education,Transport,230008,Contract Hire,06-Mar-2014,2714386-1318,"1,245.00",DA TAXIS.
Children and Adult Services,Education,Transport,230008,Contract Hire,06-Mar-2014,2714387-052,"1,417.50",DA TRAVEL.
Children and Adult Services,Education,Transport,230008,Contract Hire,06-Mar-2014,2714387-054,910.00,DA TRAVEL.
Children and Adult Services,Education,Transport,230008,Contract Hire,06-Mar-2014,2714387-055,759.00,DA TRAVEL.
Children and Adult Services,Education,Transport,230007,Contract Hire,06-Mar-2014,2714396-D5,510.00,DUNCAN G CUMMINGS T/A DC TAXIS.
Children and Adult Services,Education,Transport,230008,Contract Hire,06-Mar-2014,2714424-070,"1,374.00",I CLYDESDALE T/A BURNOPFIELD TAXIS.
Children and Adult Services,Education,Transport,230008,Contract Hire,06-Mar-2014,2714424-071,"1,050.00",I CLYDESDALE T/A BURNOPFIELD TAXIS.
Children and Adult Services,Education,Transport,230008,Contract Hire,06-Mar-2014,2714426-6,750.00,IAN SHEPLEY T/A SHEPPA`S TAXIS.
Children and Adult Services,Education,Supplies and Services,372009,Subscriptions,06-Mar-2014,2714427-100308,"4,555.00",IDOX SOFTWARE LTD.
Children and Adult Services,Education,Transport,230008,Contract Hire,06-Mar-2014,2714435-2240,"1,401.90",JEFF ANDERSON COACHES LTD.
Children and Adult Services,Education,Transport,230008,Contract Hire,06-Mar-2014,2714435-2241,"1,431.90",JEFF ANDERSON COACHES LTD.
Children and Adult Services,Education,Transport,230008,Contract Hire,06-Mar-2014,2714443-24,"1,050.00",K & B TAXIS.
Children and Adult Services,Education,Transport,230008,Contract Hire,06-Mar-2014,2714444-A033-FEB2014,825.00,K & R TAXIS.
Children and Adult Services,Education,Transport,230008,Contract Hire,06-Mar-2014,2714445-06,"1,725.00",KD TAXIS.
Children and Adult Services,Education,Transport,230008,Contract Hire,06-Mar-2014,2714446-1363,"1,200.00",KEN CHAMBERS T/A SHILDON TAXIS.
Children and Adult Services,Education,Transport,230008,Contract Hire,06-Mar-2014,2714446-1364,"1,200.00",KEN CHAMBERS T/A SHILDON TAXIS.
Children and Adult Services,Education,Transport,230008,Contract Hire,06-Mar-2014,2714446-1365,"1,875.00",KEN CHAMBERS T/A SHILDON TAXIS.
Children and Adult Services,Education,Transport,230008,Contract Hire,06-Mar-2014,2714446-1367,"1,200.00",KEN CHAMBERS T/A SHILDON TAXIS.
Children and Adult Services,Education,Transport,230007,Contract Hire,06-Mar-2014,2714447-1855,600.00,KEN HINDS.
Children and Adult Services,Education,Transport,230008,Contract Hire,06-Mar-2014,2714450-010214,990.00,KEVIN EDMUNDSON.
Children and Adult Services,Education,Transfer Payments,510026,School Children,06-Mar-2014,2714452-CAS-03-2014-023,"8,817.70",KIRK MERRINGTON PRE SCHOOL.
Children and Adult Services,Education,Transport,230008,Contract Hire,06-Mar-2014,2714453-KW219,600.00,KWIK CABS.
Children and Adult Services,Education,Transport,230008,Contract Hire,06-Mar-2014,2714453-KW220,825.00,KWIK CABS.
Children and Adult Services,Education,Transport,230008,Contract Hire,06-Mar-2014,2714453-KW221,825.00,KWIK CABS.
Children and Adult Services,Education,Transport,230008,Contract Hire,06-Mar-2014,2714453-KW222,525.00,KWIK CABS.
Children and Adult Services,Education,Transport,230008,Contract Hire,06-Mar-2014,2714454-5-28/02/2014,"1,350.00",L & R PRIVATE HIRE.
Children and Adult Services,Education,Transport,230008,Contract Hire,06-Mar-2014,2714458-1017,"1,050.00",LD TAXIS.
Children and Adult Services,Education,Transport,230005,Contract Hire,06-Mar-2014,2714461-19439,"2,396.00",LEE`S COACHES LTD.
Children and Adult Services,Education,Transport,230008,Contract Hire,06-Mar-2014,2714462-065,868.00,LEE`S TAXIS.
Children and Adult Services,Education,Transport,230008,Contract Hire,06-Mar-2014,2714462-066,"1,155.00",LEE`S TAXIS.
Children and Adult Services,Education,Transport,230008,Contract Hire,06-Mar-2014,2714462-067,"1,461.00",LEE`S TAXIS.
Children and Adult Services,Education,Supplies and Services,338094,Services,06-Mar-2014,2714463-18002323,720.00,LEISURE IN THE COMMUNITY LTD.
Children and Adult Services,Education,Supplies and Services,338027,Services,06-Mar-2014,2714464-1003128,600.00,LEISUREWORKS.
Children and Adult Services,Education,Transport,230008,Contract Hire,06-Mar-2014,2714469-1739,"1,500.00",LOCAL TRANSPORT LTD.
Children and Adult Services,Education,Transport,230008,Contract Hire,06-Mar-2014,2714469-1740,"2,586.90",LOCAL TRANSPORT LTD.
Children and Adult Services,Education,Transport,230008,Contract Hire,06-Mar-2014,2714469-1743,"1,440.00",LOCAL TRANSPORT LTD.
Children and Adult Services,Education,Transport,230008,Contract Hire,06-Mar-2014,2714470-60-28/02/2014,"1,320.00",LORRAINES TAXIS.
Children and Adult Services,Education,Transport,230008,Contract Hire,06-Mar-2014,2714470-61-28/02/2014,"1,245.00",LORRAINES TAXIS.
Children and Adult Services,Education,Transport,230008,Contract Hire,06-Mar-2014,2714473-51,"2,200.00",M BUTCHER.
Children and Adult Services,Education,Transport,230008,Contract Hire,06-Mar-2014,2714475-021401,"1,500.00",MARK & JOHN CHISHOLM T/A (CHEVRON).
Children and Adult Services,Education,Transport,230008,Contract Hire,06-Mar-2014,2714475-021405,780.00,MARK & JOHN CHISHOLM T/A (CHEVRON).
Children and Adult Services,Education,Transport,230008,Contract Hire,06-Mar-2014,2714481-KDC010214,"1,808.00",MJ TIMNEY T/A KDC & C&M TAXIS.
Children and Adult Services,Education,Transport,230007,Contract Hire,06-Mar-2014,2714483-16,728.00,MR BW YOUNG.
Children and Adult Services,Education,Transport,230007,Contract Hire,06-Mar-2014,2714484-6036,"1,080.00",MR CHRISTOPHER BRECHIN T/A CB TAXI`S.
Children and Adult Services,Education,Transport,230008,Contract Hire,06-Mar-2014,2714485-BRECK02-14,"2,146.00",MR CT WALKER T/A COLIN`S TAXIS.
Children and Adult Services,Education,Transport,230008,Contract Hire,06-Mar-2014,2714485-ELH02-14,"1,404.00",MR CT WALKER T/A COLIN`S TAXIS.
Children and Adult Services,Education,Transport,230008,Contract Hire,06-Mar-2014,2714485-MEAD02-14,"2,229.25",MR CT WALKER T/A COLIN`S TAXIS.
Children and Adult Services,Education,Transport,230008,Contract Hire,06-Mar-2014,2714485-WAL102-14,"2,097.90",MR CT WALKER T/A COLIN`S TAXIS.
Children and Adult Services,Education,Transport,230008,Contract Hire,06-Mar-2014,2714485-WAL202-14,"1,710.00",MR CT WALKER T/A COLIN`S TAXIS.
Children and Adult Services,Education,Transport,230008,Contract Hire,06-Mar-2014,2714485-WINDS02-14,"2,517.90",MR CT WALKER T/A COLIN`S TAXIS.
Children and Adult Services,Education,Transport,230008,Contract Hire,06-Mar-2014,2714486-1-150,"1,350.00",MR D KEMP T/A ACE EXECUTIVE.
Children and Adult Services,Education,Transport,230008,Contract Hire,06-Mar-2014,2714493-17B,731.40,MR RAYMOND RENWICK.
Children and Adult Services,Education,Transport,230006,Contract Hire,06-Mar-2014,2714493-6E,624.00,MR RAYMOND RENWICK.
Children and Adult Services,Education,Transport,230008,Contract Hire,06-Mar-2014,2714494-2785,"1,350.00",MR S BOWERS.
Children and Adult Services,Education,Transport,230008,Contract Hire,06-Mar-2014,2714494-2786-M008C,"1,140.00",MR S BOWERS.
Children and Adult Services,Education,Transport,230008,Contract Hire,06-Mar-2014,2714494-2786-MO27A,750.00,MR S BOWERS.
Children and Adult Services,Education,Transport,230008,Contract Hire,06-Mar-2014,2714496-AA264,"1,680.00",MR T GUNN.
Children and Adult Services,Education,Supplies and Services,338027,Services,06-Mar-2014,2714507-391,750.00,NORTH EAST ENVIRONMENT NETWORK LTD.
Children and Adult Services,Education,Supplies and Services,338027,Services,06-Mar-2014,2714507-392,950.00,NORTH EAST ENVIRONMENT NETWORK LTD.
Children and Adult Services,Education,Supplies and Services,338027,Services,06-Mar-2014,2714507-394,900.00,NORTH EAST ENVIRONMENT NETWORK LTD.
Children and Adult Services,Education,Transport,230008,Contract Hire,06-Mar-2014,2714509-M0006230283,"1,520.00",NORTH TYNESIDE COUNCIL.
Children and Adult Services,Education,Transport,230008,Contract Hire,06-Mar-2014,2714520-DCC07,"1,200.00",PAUL`S TAXIS..
Children and Adult Services,Education,Transport,230008,Contract Hire,06-Mar-2014,2714521-400,750.00,PETERLEE EXECUTIVE CARS.
Children and Adult Services,Education,Transport,230008,Contract Hire,06-Mar-2014,2714521-401,840.00,PETERLEE EXECUTIVE CARS.
Children and Adult Services,Education,Transport,230008,Contract Hire,06-Mar-2014,2714521-404,840.00,PETERLEE EXECUTIVE CARS.
Children and Adult Services,Education,Transport,230006,Contract Hire,06-Mar-2014,2714521-406,"1,110.00",PETERLEE EXECUTIVE CARS.
Children and Adult Services,Education,Transport,230008,Contract Hire,06-Mar-2014,2714522-0291,570.00,PETER`S PRIVATE HIRE/PETER BEST.
Children and Adult Services,Education,Transport,230008,Contract Hire,06-Mar-2014,2714523-654,"1,320.00",PG TRIPS.
Children and Adult Services,Education,Transport,230008,Contract Hire,06-Mar-2014,2714523-655,"1,020.00",PG TRIPS.
Children and Adult Services,Education,Supplies and Services,304259,Equipment and Materials,06-Mar-2014,2714524-2590953741,"1,121.00",PHONAK UK LTD.
Children and Adult Services,Education,Transport,230008,Contract Hire,06-Mar-2014,2714526-140119,840.00,PRATTS TAXIS.
Children and Adult Services,Education,Transport,230008,Contract Hire,06-Mar-2014,2714526-140120,"2,148.44",PRATTS TAXIS.
Children and Adult Services,Education,Transport,230006,Contract Hire,06-Mar-2014,2714526-40124,540.00,PRATTS TAXIS.
Children and Adult Services,Education,Transport,230008,Contract Hire,06-Mar-2014,2714530-022,952.50,R&R PRIVATE HIRE.
Children and Adult Services,Education,Transport,230008,Contract Hire,06-Mar-2014,2714532-13116,640.00,RAPID MINIBUSES.
Children and Adult Services,Education,Transport,230008,Contract Hire,06-Mar-2014,2714532-13117,"1,266.00",RAPID MINIBUSES.
Children and Adult Services,Education,Transport,230007,Contract Hire,06-Mar-2014,2714539-17,691.20,RJB & KE GAIR T/A ROBS PRIVATE HIRE.
Children and Adult Services,Education,Transport,230007,Contract Hire,06-Mar-2014,2714540-179,660.00,ROAD RUNNERS (NE) LTD.
Children and Adult Services,Education,Transport,230008,Contract Hire,06-Mar-2014,2714540-180,"1,140.00",ROAD RUNNERS (NE) LTD.
Children and Adult Services,Education,Transport,230006,Contract Hire,06-Mar-2014,2714540-182,"1,050.00",ROAD RUNNERS (NE) LTD.
Children and Adult Services,Education,Transport,230008,Contract Hire,06-Mar-2014,2714541-006-28/2/14,"1,275.00",RONS TAXI.
Children and Adult Services,Education,Transport,230008,Contract Hire,06-Mar-2014,2714542-1580,"1,526.25",RONS TAXIS.
Children and Adult Services,Education,Transport,230008,Contract Hire,06-Mar-2014,2714542-1581,"1,770.00",RONS TAXIS.
Children and Adult Services,Education,Transport,230008,Contract Hire,06-Mar-2014,2714546-SA037,735.00,S & A TAXIS.
Children and Adult Services,Education,Transport,230008,Contract Hire,06-Mar-2014,2714547-SO11/17,"1,350.00",S & S TRAVEL LTD.
Children and Adult Services,Education,Transport,230008,Contract Hire,06-Mar-2014,2714547-W075/17,"1,260.00",S & S TRAVEL LTD.
Children and Adult Services,Education,Transport,230008,Contract Hire,06-Mar-2014,2714547-WO52/06,"2,025.00",S & S TRAVEL LTD.
Children and Adult Services,Education,Transport,230008,Contract Hire,06-Mar-2014,2714553-62,"1,560.00",SAZ CABS.
Children and Adult Services,Education,Transport,230008,Contract Hire,06-Mar-2014,2714557-19,"1,120.00",SHARON`S TAXI.
Children and Adult Services,Education,Transport,230008,Contract Hire,06-Mar-2014,2714559-008,"1,000.00",SHOEY`S TAXIS.
Children and Adult Services,Education,Transport,230008,Contract Hire,06-Mar-2014,2714560-71328,"1,350.00",SHOTTON PRIVATE HIRE.
Children and Adult Services,Education,Transport,230008,Contract Hire,06-Mar-2014,2714561-032A,"2,145.00",SJ MACKENZIE T/A SCOTTS TAXIS.
Children and Adult Services,Education,Transport,230008,Contract Hire,06-Mar-2014,2714561-033A,"1,125.00",SJ MACKENZIE T/A SCOTTS TAXIS.
Children and Adult Services,Education,Transport,230008,Contract Hire,06-Mar-2014,2714561-034A,"1,800.00",SJ MACKENZIE T/A SCOTTS TAXIS.
Children and Adult Services,Education,Transport,230008,Contract Hire,06-Mar-2014,2714567-B004-28/2/14,"1,800.15",STEPHEN COXON.
Children and Adult Services,Education,Transport,230007,Contract Hire,06-Mar-2014,2714572-055/3080,"1,335.00",TA TRAVEL.
Children and Adult Services,Education,Transport,230007,Contract Hire,06-Mar-2014,2714572-055/4079,"1,035.00",TA TRAVEL.
Children and Adult Services,Education,Transport,230008,Contract Hire,06-Mar-2014,2714573-1854,870.00,TALBOTS TAXIS.
Children and Adult Services,Education,Transport,230008,Contract Hire,06-Mar-2014,2714575-02/2014/014,"1,575.00",TARNS TAXIS LTD.
Children and Adult Services,Education,Transport,230008,Contract Hire,06-Mar-2014,2714575-02/2014/017,975.00,TARNS TAXIS LTD.
Children and Adult Services,Education,Transport,230008,Contract Hire,06-Mar-2014,2714575-02/2014/018,600.00,TARNS TAXIS LTD.
Children and Adult Services,Education,Transport,230008,Contract Hire,06-Mar-2014,2714576-DCC/2014/06,"1,186.65",TAYLOR`S TAXIS.
Children and Adult Services,Education,Transport,230008,Contract Hire,06-Mar-2014,2714576-DCC/2014/07,"1,605.00",TAYLOR`S TAXIS.
Children and Adult Services,Education,Transport,230007,Contract Hire,06-Mar-2014,2714576-DCC/2014/08,"1,005.00",TAYLOR`S TAXIS.
Children and Adult Services,Education,Transport,230008,Contract Hire,06-Mar-2014,2714576-DCC/2014/10,"1,320.00",TAYLOR`S TAXIS.
Children and Adult Services,Education,Transport,230008,Contract Hire,06-Mar-2014,2714581-115,660.00,THE TAXI CO.
Children and Adult Services,Education,Transport,230006,Contract Hire,06-Mar-2014,2714581-117,924.00,THE TAXI CO.
Children and Adult Services,Education,Transport,230009,Contract Hire,06-Mar-2014,2714592-34.14,570.00,TRANSPORT.ADVENTURE.XI.
Children and Adult Services,Education,Transport,230007,Contract Hire,06-Mar-2014,2714592-35.13,510.00,TRANSPORT.ADVENTURE.XI.
Children and Adult Services,Education,Employees,040001,"Recruitment, Instruction and Training",06-Mar-2014,2714594-TARINV/15266999,652.50,TSL EDUCATION LTD.
Children and Adult Services,Education,Employees,040001,"Recruitment, Instruction and Training",06-Mar-2014,2714594-TARINV/15267735,652.50,TSL EDUCATION LTD.
Children and Adult Services,Education,Employees,040001,"Recruitment, Instruction and Training",06-Mar-2014,2714594-TARINV/15268096,652.50,TSL EDUCATION LTD.
Children and Adult Services,Education,Employees,040001,"Recruitment, Instruction and Training",06-Mar-2014,2714594-TARINV/15268548,652.50,TSL EDUCATION LTD.
Children and Adult Services,Education,Employees,040001,"Recruitment, Instruction and Training",06-Mar-2014,2714594-TARINV/15268725,652.50,TSL EDUCATION LTD.
Children and Adult Services,Education,Transport,230008,Contract Hire,06-Mar-2014,2714595-17,"1,140.00",TT TAXIS.
Children and Adult Services,Head of Adults,Transport,230005,Contract Hire,06-Mar-2014,2714303-AA892,920.00,AA MINIBUS HIRE.
Children and Adult Services,Head of Adults,Transport,230005,Contract Hire,06-Mar-2014,2714303-AA893,"1,776.00",AA MINIBUS HIRE.
Children and Adult Services,Head of Adults,Transport,230005,Contract Hire,06-Mar-2014,2714372-0001171,610.00,COLORS TAXIS LTD.
Children and Adult Services,Head of Adults,Supplies and Services,308011,Furniture,06-Mar-2014,2714381-M1035768,"1,023.60",CRAFTSMAN CONTRACT FURNITURE LTD.
Children and Adult Services,Head of Adults,Transport,230005,Contract Hire,06-Mar-2014,2714382-4477,720.00,CROFT BUSINESS SERVICES (UK) LTD T/A CROFT TAXIS.
Children and Adult Services,Head of Adults,Transport,230005,Contract Hire,06-Mar-2014,2714434-457,734.40,JDS PRIVATE HIRE DURHAM.
Children and Adult Services,Public Health,Third Party Payments,460802,Contract Payments,06-Mar-2014,2714395-A83635/HCQ1-Q3,"2,125.00",DR W POLLARD T/A BOWBURN MEDICAL CENTRE.
Corporate Resources,Centrally Administered Costs,Third Party Payments,440999,Other Third Party Payments,06-Mar-2014,2714365,"80,000.00",CIVICA UK LTD.
Corporate Resources,Corporate Finance,Supplies and Services,338045,Services,06-Mar-2014,2714468-40134988,"1,442.01",LOCAL GOVERNMENT ASSOCIATION.
Corporate Resources,I.C.T. Services,Debtors,930167,Debtor-Telephone Holding Account,06-Mar-2014,2714348,"14,797.24",BRITISH TELECOMMUNICATIONS PLC.
Corporate Resources,I.C.T. Services,"Vehicles, Equipment, Furniture and Fittings",912701,Computer equipment,06-Mar-2014,2714392-7402096206,"57,247.16",DELL COMPUTER CORPORATION LTD.
Corporate Resources,I.C.T. Services,Supplies and Services,304245,Equipment and Materials,06-Mar-2014,2714422-130100N,669.80,HOWARD SMITH PAPER GROUP.
Corporate Resources,I.C.T. Services,Stock,926900,Stock in hand-Inventory system,06-Mar-2014,2714563-OP/L8Q7881,"14,670.10",SPECIALIST COMPUTER CENTRES PLC.
Dedicated Schools Grant,Dedicated Schools Grant,Transport,230010,Contract Hire,06-Mar-2014,2714317-506020,785.00,ALANS CABS.
Dedicated Schools Grant,Dedicated Schools Grant,Transport,230010,Contract Hire,06-Mar-2014,2714317-615520,900.00,ALANS CABS.
Dedicated Schools Grant,Dedicated Schools Grant,Employees,040149,"Recruitment, Instruction and Training",06-Mar-2014,2714398-0000032295,540.00,EAST DURHAM COLLEGE.
Dedicated Schools Grant,Dedicated Schools Grant,Third Party Payments,425005,Rendered by Voluntary Organisations,06-Mar-2014,2714419-WI6284,"60,246.47",HESLEY CARE GROUP LTD.
Dedicated Schools Grant,Dedicated Schools Grant,Transport,230008,Contract Hire,06-Mar-2014,2714446-1366,525.00,KEN CHAMBERS T/A SHILDON TAXIS.
Dedicated Schools Grant,Dedicated Schools Grant,Transport,230008,Contract Hire,06-Mar-2014,2714446-1368,750.00,KEN CHAMBERS T/A SHILDON TAXIS.
Dedicated Schools Grant,Dedicated Schools Grant,Transport,230008,Contract Hire,06-Mar-2014,2714458-1016,"1,755.00",LD TAXIS.
Dedicated Schools Grant,Dedicated Schools Grant,Transport,230010,Contract Hire,06-Mar-2014,2714475-021403,"1,500.00",MARK & JOHN CHISHOLM T/A (CHEVRON).
Dedicated Schools Grant,Dedicated Schools Grant,Transport,230010,Contract Hire,06-Mar-2014,2714475-021404,"1,350.00",MARK & JOHN CHISHOLM T/A (CHEVRON).
Dedicated Schools Grant,Dedicated Schools Grant,Transport,230010,Contract Hire,06-Mar-2014,2714475-021409,"1,350.00",MARK & JOHN CHISHOLM T/A (CHEVRON).
Dedicated Schools Grant,Dedicated Schools Grant,Transport,230008,Contract Hire,06-Mar-2014,2714519-L052-27/02/2014,900.00,PAUL SMITH T/A LANGLEY TAXIS.
Dedicated Schools Grant,Dedicated Schools Grant,Transport,230010,Contract Hire,06-Mar-2014,2714574-2-28/02/2014,"1,132.00",TALLA`S TAXIS.
Dedicated Schools Grant,Dedicated Schools Grant,Transport,230010,Contract Hire,06-Mar-2014,2714587-TS14-17,"1,500.00",TOP STAR TRAVEL.
Dedicated Schools Grant,Dedicated Schools Grant,Transport,230010,Contract Hire,06-Mar-2014,2714593-2021,819.00,TRAVEL 6.
Neighbourhood Services,Culture & Sport,Supplies and Services,384237,Miscellaneous Expenses,06-Mar-2014,2714309-4020,850.00,ACTIV FIRST TRAINING.
Neighbourhood Services,Culture & Sport,Supplies and Services,304259,Equipment and Materials,06-Mar-2014,2714319-147750,644.20,ALBANY CONTRACT FURNITURE.
Neighbourhood Services,Culture & Sport,Supplies and Services,304337,Equipment and Materials,06-Mar-2014,2714321-AA10,"1,284.37",ALSTON ARTISTS.
Neighbourhood Services,Culture & Sport,Supplies and Services,352001,Conference Expenses,06-Mar-2014,2714323-1314/1845,625.00,APSE.
Neighbourhood Services,Culture & Sport,Premises,120021,Energy Costs,06-Mar-2014,2714354-17089174,918.60,CALOR GAS LTD.
Neighbourhood Services,Culture & Sport,Premises,120037,Energy Costs,06-Mar-2014,2714354-25326176,706.69,CALOR GAS LTD.
Neighbourhood Services,Culture & Sport,Supplies and Services,324001,Provisions,06-Mar-2014,2714355-EW55001315,894.64,CARLSBERG UK LTD.
Neighbourhood Services,Culture & Sport,Construction Work,908105,Construction work,06-Mar-2014,2714599-2165947,"2,008.00",VEOLIA ES (UK) LTD.
Neighbourhood Services,Culture & Sport,Supplies and Services,338066,Services,06-Mar-2014,2714603-B046,550.00,WARWICK ANDREWS.
Neighbourhood Services,Direct Services,Transport,210057,Repair and Maintenance of Vehicles,06-Mar-2014,2714357-280800,536.72,CARRS BILLINGTON AGRICULTURE.
Neighbourhood Services,Direct Services,Stock,926004,Stock,06-Mar-2014,2714360-2071010,"3,287.70",CERTAS ENERGY UK LTD.
Neighbourhood Services,Direct Services,Stock,926004,Stock,06-Mar-2014,2714360-2138595,"1,913.26",CERTAS ENERGY UK LTD.
Neighbourhood Services,Direct Services,Stock,926004,Stock,06-Mar-2014,2714360-2138599,"4,959.00",CERTAS ENERGY UK LTD.
Neighbourhood Services,Direct Services,Premises,145009,Cleaning and Domestic Supplies,06-Mar-2014,2714364-CC91341,563.75,CITY CLEAN.
Neighbourhood Services,Direct Services,Third Party Payments,430100,Rendered by Private Contractors,06-Mar-2014,2714376-85180,740.00,CORMETON ELECTRONICS LTD.
Neighbourhood Services,Direct Services,Third Party Payments,430100,Rendered by Private Contractors,06-Mar-2014,2714400-18919,672.92,ENTERPRISE ACCIDENT REPAIR CENTRE LTD.
Neighbourhood Services,Direct Services,Premises,145009,Cleaning and Domestic Supplies,06-Mar-2014,2714402-INV78877,627.50,FCC RECYCLING (UK)  LTD.
Neighbourhood Services,Direct Services,Premises,115125,Repairs to Grounds,06-Mar-2014,2714423-B33/0064068,707.95,HOWDENS JOINERY LTD.
Neighbourhood Services,Direct Services,Supplies and Services,304221,Equipment and Materials,06-Mar-2014,2714423-B33/0064069,625.60,HOWDENS JOINERY LTD.
Neighbourhood Services,Direct Services,Income,720299,Fees and Charges,06-Mar-2014,2714513-314886090017006,595.60,NORTHUMBRIAN WATER LTD.
Neighbourhood Services,Direct Services,Premises,108099,Service Repairs and Maintenance,06-Mar-2014,2714538-4968,691.00,RIVERGREEN DEVELOPMENTS PLC.
Neighbourhood Services,Direct Services,Supplies and Services,338078,Services,06-Mar-2014,2714549-2227,"1,558.35",SAFEGUARD SECURITY (NE) LTD.
Neighbourhood Services,Direct Services,Supplies and Services,304221,Equipment and Materials,06-Mar-2014,2714586-98280,"1,257.30",TOMMY WARDLE.
Neighbourhood Services,Direct Services,Premises,150015,Apportioned Exps of Operational Blds,06-Mar-2014,2714606-234595,624.47,WERNICK HIRE LTD.
Neighbourhood Services,Direct Services,Premises,150015,Apportioned Exps of Operational Blds,06-Mar-2014,2714606-244541,660.66,WERNICK HIRE LTD.
Neighbourhood Services,Direct Services,Premises,150015,Apportioned Exps of Operational Blds,06-Mar-2014,2714606-254407,557.70,WERNICK HIRE LTD.
Neighbourhood Services,"Environment,Health & Consumer Protection",Supplies and Services,372009,Subscriptions,06-Mar-2014,2714365-M/RG020569,"19,659.92",CIVICA UK LTD.
Neighbourhood Services,"Environment,Health & Consumer Protection",Supplies and Services,304999,Equipment and Materials,06-Mar-2014,2714552-3106024934,753.12,SARTORIUS MECHATRONICS UK LTD.
Neighbourhood Services,Projects and Business services,Supplies and Services,338027,Services,06-Mar-2014,2714359-2542,"2,150.00",CAULMERT  LTD.
Neighbourhood Services,Projects and Business services,Third Party Payments,430121,Rendered by Private Contractors,06-Mar-2014,2714399-7569,"1,050.80",ELECTRO SERVE CONTRACTS LTD.
Neighbourhood Services,Projects and Business services,Third Party Payments,430116,Rendered by Private Contractors,06-Mar-2014,2714399-7654,"2,471.65",ELECTRO SERVE CONTRACTS LTD.
Neighbourhood Services,Projects and Business services,Third Party Payments,430116,Rendered by Private Contractors,06-Mar-2014,2714399-7655,"1,407.00",ELECTRO SERVE CONTRACTS LTD.
Neighbourhood Services,Projects and Business services,Third Party Payments,430121,Rendered by Private Contractors,06-Mar-2014,2714399-7706,"1,084.77",ELECTRO SERVE CONTRACTS LTD.
Neighbourhood Services,Projects and Business services,Third Party Payments,430120,Rendered by Private Contractors,06-Mar-2014,2714404-CTIN06414383,"2,046.70",FINNING (UK) LTD.
Neighbourhood Services,Projects and Business services,Third Party Payments,430120,Rendered by Private Contractors,06-Mar-2014,2714404-CTIN06414384,"3,307.70",FINNING (UK) LTD.
Neighbourhood Services,Projects and Business services,Third Party Payments,430120,Rendered by Private Contractors,06-Mar-2014,2714404-CTIN06414385,"1,755.70",FINNING (UK) LTD.
Neighbourhood Services,Projects and Business services,Supplies and Services,304357,Equipment and Materials,06-Mar-2014,2714472-8,"1,200.00",M & E & MR WALTON.
Neighbourhood Services,Projects and Business services,Premises,120009,Energy Costs,06-Mar-2014,2714562-451557224/0007,639.80,SOUTHERN ELECTRIC.
Neighbourhood Services,Technical Services,Fees,901002,Professional fees,06-Mar-2014,2714311-28179628,"19,254.55",AECOM LTD.
Neighbourhood Services,Technical Services,Supplies and Services,304221,Equipment and Materials,06-Mar-2014,2714312-17688504,"1,180.24",AGGREGATE INDUSTRIES UK LTD.
Neighbourhood Services,Technical Services,Supplies and Services,304221,Equipment and Materials,06-Mar-2014,2714312-19351934,"1,360.04",AGGREGATE INDUSTRIES UK LTD.
Neighbourhood Services,Technical Services,Supplies and Services,304221,Equipment and Materials,06-Mar-2014,2714312-19357884,"1,864.96",AGGREGATE INDUSTRIES UK LTD.
Neighbourhood Services,Technical Services,Supplies and Services,304221,Equipment and Materials,06-Mar-2014,2714313-19293071,"1,179.24",AGGREGATE INDUSTRIES UK LTD.
Neighbourhood Services,Technical Services,Supplies and Services,304221,Equipment and Materials,06-Mar-2014,2714313-19327700,"2,059.64",AGGREGATE INDUSTRIES UK LTD.
Neighbourhood Services,Technical Services,Supplies and Services,304221,Equipment and Materials,06-Mar-2014,2714313-19366108,"3,392.64",AGGREGATE INDUSTRIES UK LTD.
Neighbourhood Services,Technical Services,Supplies and Services,304221,Equipment and Materials,06-Mar-2014,2714313-19372492,"1,130.88",AGGREGATE INDUSTRIES UK LTD.
Neighbourhood Services,Technical Services,Premises,150015,Apportioned Exps of Operational Blds,06-Mar-2014,2714367-247089,821.40,CLEE HILL PLANT LTD.
Neighbourhood Services,Technical Services,Third Party Payments,430100,Rendered by Private Contractors,06-Mar-2014,2714380-15775,"1,391.01",COUPE LINE LTD.
Neighbourhood Services,Technical Services,Third Party Payments,430100,Rendered by Private Contractors,06-Mar-2014,2714380-15776,920.76,COUPE LINE LTD.
Neighbourhood Services,Technical Services,Third Party Payments,430100,Rendered by Private Contractors,06-Mar-2014,2714380-15777,"17,951.27",COUPE LINE LTD.
Neighbourhood Services,Technical Services,Third Party Payments,430100,Rendered by Private Contractors,06-Mar-2014,2714380-15778,704.38,COUPE LINE LTD.
Neighbourhood Services,Technical Services,Third Party Payments,460350,Contract Payments,06-Mar-2014,2714383-471,"2,341.50",D & L HOPPS.
Neighbourhood Services,Technical Services,Supplies and Services,304358,Equipment and Materials,06-Mar-2014,2714437-15447,759.00,JOHN R BUTTERFIELD LTD.
Neighbourhood Services,Technical Services,Supplies and Services,304358,Equipment and Materials,06-Mar-2014,2714451-852,589.00,KEVIN SNOWDON GROUNDWORKS LTD.
Neighbourhood Services,Technical Services,Supplies and Services,304358,Equipment and Materials,06-Mar-2014,2714451-853,"1,117.50",KEVIN SNOWDON GROUNDWORKS LTD.
Neighbourhood Services,Technical Services,Supplies and Services,304358,Equipment and Materials,06-Mar-2014,2714451-854,755.00,KEVIN SNOWDON GROUNDWORKS LTD.
Neighbourhood Services,Technical Services,Supplies and Services,304358,Equipment and Materials,06-Mar-2014,2714451-856,"1,610.00",KEVIN SNOWDON GROUNDWORKS LTD.
Neighbourhood Services,Technical Services,Supplies and Services,304358,Equipment and Materials,06-Mar-2014,2714451-857,805.00,KEVIN SNOWDON GROUNDWORKS LTD.
Neighbourhood Services,Technical Services,Supplies and Services,304358,Equipment and Materials,06-Mar-2014,2714451-861,956.00,KEVIN SNOWDON GROUNDWORKS LTD.
Neighbourhood Services,Technical Services,Supplies and Services,304358,Equipment and Materials,06-Mar-2014,2714451-862,"1,087.50",KEVIN SNOWDON GROUNDWORKS LTD.
Neighbourhood Services,Technical Services,Supplies and Services,304221,Equipment and Materials,06-Mar-2014,2714477-ZBB0566165,"2,586.91",MARSHALLS MONO LTD.
Neighbourhood Services,Technical Services,Third Party Payments,430100,Rendered by Private Contractors,06-Mar-2014,2714528-64151,550.00,PROTECTOR SECURITY GROUP LTD.
Neighbourhood Services,Technical Services,Supplies and Services,304358,Equipment and Materials,06-Mar-2014,2714533-8744,"5,400.00",RD KEARTON & SONS LTD.
Neighbourhood Services,Technical Services,Supplies and Services,304358,Equipment and Materials,06-Mar-2014,2714558-2014008,"2,084.50",SHIREHAVEN LTD.
Neighbourhood Services,Technical Services,Supplies and Services,304358,Equipment and Materials,06-Mar-2014,2714558-2014009,"2,361.00",SHIREHAVEN LTD.
Neighbourhood Services,Technical Services,Stock,926900,Stock in hand-Inventory system,06-Mar-2014,2714571-1084070,805.00,T CROSSLING & CO LTD.
Neighbourhood Services,Technical Services,Stock,926900,Stock in hand-Inventory system,06-Mar-2014,2714571-1086231,"1,965.00",T CROSSLING & CO LTD.
Neighbourhood Services,Technical Services,Supplies and Services,304358,Equipment and Materials,06-Mar-2014,2714578-8191,810.00,TEWARD BROS LTD.
Neighbourhood Services,Technical Services,Stock,926900,Stock in hand-Inventory system,06-Mar-2014,2714583-0037226686,779.00,THOMAS & BETTS NETHERLANDS BV.
Neighbourhood Services,Technical Services,Supplies and Services,304221,Equipment and Materials,06-Mar-2014,2714585-23783,"1,557.50",TODDS HIGHWAY MAINTENANCE LTD.
Neighbourhood Services,Technical Services,Supplies and Services,338027,Services,06-Mar-2014,2714601-1230,"1,050.00",VOGEL ASSOCIATES.
Neighbourhood Services,Technical Services,Premises,150015,Apportioned Exps of Operational Blds,06-Mar-2014,2714606-254351,552.82,WERNICK HIRE LTD.
Neighbourhood Services,Technical Services,Premises,150015,Apportioned Exps of Operational Blds,06-Mar-2014,2714606-254354,569.80,WERNICK HIRE LTD.
Neighbourhood Services,Technical Services,Premises,150015,Apportioned Exps of Operational Blds,06-Mar-2014,2714606-254355,608.28,WERNICK HIRE LTD.
Neighbourhood Services,Technical Services,Premises,150015,Apportioned Exps of Operational Blds,06-Mar-2014,2714606-254357,569.80,WERNICK HIRE LTD.
RED HRA,Housing Revenue Account,Supplies and Services,358001,Housing Revenue Account,06-Mar-2014,2714388-80001786,"1,499,750.00",DALE & VALLEY HOMES.
RED HRA,HRA Capital,Construction Work,908105,Construction work,06-Mar-2014,2714514-24824603852,"1,296.06",NPOWER.
RED HRA,HRA Capital,Construction Work,908105,Construction work,06-Mar-2014,2714556-71399,660.00,SGS MIS ENVIRONMENTAL LTD.
Regeneration & Economic Development,Economic Development and Housing,Supplies and Services,338029,Services,06-Mar-2014,2714340-22,"7,572.20",BLUE SKY THINK LLP.
Regeneration & Economic Development,Economic Development and Housing,Construction Work,908105,Construction work,06-Mar-2014,2714403-144170-0,"4,378.50",FILTRONIC BROADBAND LTD.
Regeneration & Economic Development,Economic Development and Housing,Supplies and Services,384700,Miscellaneous Expenses,06-Mar-2014,2714492-RED-03-2014-021,725.00,MR RAJ DEVGAN T/A MASTER MOCHI.
Regeneration & Economic Development,Economic Development and Housing,Premises,120009,Energy Costs,06-Mar-2014,2714514-NNO7JSN4,895.89,NPOWER.
Regeneration & Economic Development,Economic Development and Housing,Premises,120009,Energy Costs,06-Mar-2014,2714514-NNO7JSN5,882.09,NPOWER.
Regeneration & Economic Development,"Spatial Policy, Planning, Assets & Environment",Transport,240001,Car Allowances,06-Mar-2014,2714370-10496,999.63,CO WHEELS CAR CLUB CIC.
Regeneration & Economic Development,"Spatial Policy, Planning, Assets & Environment","Vehicles, Equipment, Furniture and Fittings",912701,Computer equipment,06-Mar-2014,2714427-7001987,"20,440.00",IDOX SOFTWARE LTD.
Regeneration & Economic Development,"Spatial Policy, Planning, Assets & Environment",Supplies and Services,342007,Computers and Communications,06-Mar-2014,2714438-170,"2,020.00",JOHN VAN BREDA T/A BIODIVERSE IT.
Regeneration & Economic Development,Transport and Contracted Services,Supplies and Services,384199,Miscellaneous Expenses,06-Mar-2014,2714499-D/D37823432,"4,405.00",MS ONLINE LTD.
Regeneration & Economic Development,Transport and Contracted Services,Supplies and Services,344014,Telephones,06-Mar-2014,2714516-01053508946,825.11,ORANGE PERSONAL COMMUNICATIONS SERVICES LTD.
Assistant Chief Executive,Partnerships & Community Engagement Div.,Transfer Payments,525030,Other,07-Mar-2014,2714650-VOUCHER12AB-WEAR005SGF085,"1,000.00",BARRINGTON BITES.
Assistant Chief Executive,Partnerships & Community Engagement Div.,Cap Exp on Grants & Other Financial Assistance (REFCUS),918004,Contributions to other bodies,07-Mar-2014,2714749-VOUCHER13NB-TEES005,"4,000.00",EVENWOOD CRICKET CLUB.
Assistant Chief Executive,Partnerships & Community Engagement Div.,Transfer Payments,525030,Other,07-Mar-2014,2715017-VOUCHERMDUR004-AB11,"2,000.00",ST ANDREWS METHODIST CHURCH.
Children and Adult Services,Childrens care,Employees,080025,Agency Staff,07-Mar-2014,2714705-535797,"141,994.71",COMENSURA LTD.
Children and Adult Services,Commissioning inc Supporting People,Third Party Payments,479111,Purchase of Care,07-Mar-2014,2715049-430025000,"14,957.25",TEES ESK & WEAR VALLEYS NHS FOUNDATION TRUST.
Children and Adult Services,Commissioning inc Supporting People,Third Party Payments,479111,Purchase of Care,07-Mar-2014,2715049-4810000380,"14,957.25",TEES ESK & WEAR VALLEYS NHS FOUNDATION TRUST.
Children and Adult Services,Commissioning inc Supporting People,Supplies and Services,384700,Miscellaneous Expenses,07-Mar-2014,2715050,"2,500.00",TEESDALE DISABILITY ACCESS FORUM.
Children and Adult Services,Early Intervention and Involvement,Supplies and Services,308011,Furniture,07-Mar-2014,2714626-147712,"1,254.00",ALBANY CONTRACT FURNITURE.
Children and Adult Services,Early Intervention and Involvement,Supplies and Services,312009,"Newspapers, Books and Periodicals",07-Mar-2014,2714751-10158,749.50,FAMILY LINKS.
Children and Adult Services,Early Intervention and Involvement,Supplies and Services,338099,Services,07-Mar-2014,2714752-3352,675.00,FANE LTD.
Children and Adult Services,Early Intervention and Involvement,Supplies and Services,384302,Miscellaneous Expenses,07-Mar-2014,2714845,"1,560.00",LAUREL AVENUE COMMUNITY ASSOCIATION.
Children and Adult Services,Early Intervention and Involvement,Supplies and Services,304649,Equipment and Materials,07-Mar-2014,2714969-029179,527.95,ROMPA LTD.
Children and Adult Services,Early Intervention and Involvement,Supplies and Services,384199,Miscellaneous Expenses,07-Mar-2014,2715029-51,"1,820.00",SUCCESS NORTH EAST COMMUNITY INTEREST COMPANY.
Children and Adult Services,Early Intervention and Involvement,Supplies and Services,308011,Furniture,07-Mar-2014,2715031-6496268,910.00,SUPPLIES TEAM LTD.
Children and Adult Services,Education,Third Party Payments,440999,Other Third Party Payments,07-Mar-2014,2714618-INV01912,"3,568.00",ACUMEN COMMUNITY ENTERPRISE DEVELOPMENT TRUST LTD.
Children and Adult Services,Education,Income,705128,Government Grants,07-Mar-2014,2714696-812,"5,400.00",CLASSROOM MEDICS LTD.
Children and Adult Services,Education,Construction Work,908105,Construction work,07-Mar-2014,2714979-1040,"1,896.00",SAFE STRIP UK LTD.
Children and Adult Services,Education,Construction Work,908105,Construction work,07-Mar-2014,2714979-1045,"1,347.57",SAFE STRIP UK LTD.
Children and Adult Services,Education,Construction Work,908105,Construction work,07-Mar-2014,2714979-1046,"3,667.57",SAFE STRIP UK LTD.
Children and Adult Services,Education,Transfer Payments,510026,School Children,07-Mar-2014,2715111-CAS-03-2014-024,"3,000.00",YORK HOUSE NURSERY.
Children and Adult Services,Head of Adults,Third Party Payments,472101,Purchase of Care,07-Mar-2014,2714723-5210,"1,929.50",DCS & D LTD T/A HERITAGE HEALTHCARE.
Children and Adult Services,Planning & Service Strategy,Supplies and Services,336005,Advertising,07-Mar-2014,2714629-23289,772.00,ALLWAG PROMOTIONS LTD.
Children and Adult Services,Planning & Service Strategy,Supplies and Services,336005,Advertising,07-Mar-2014,2714629-23323,745.00,ALLWAG PROMOTIONS LTD.
Children and Adult Services,Planning & Service Strategy,Supplies and Services,338091,Services,07-Mar-2014,2714888-50056660,"5,200.00",NEW COLLEGE DURHAM.
Children and Adult Services,Public Health,Supplies and Services,384540,Miscellaneous Expenses,07-Mar-2014,2714629-23872,"2,565.00",ALLWAG PROMOTIONS LTD.
Children and Adult Services,Public Health,Third Party Payments,460803,Contract Payments,07-Mar-2014,2714949-6060020,"45,291.60",PUBLIC HEALTH ENGLAND (PHE).
Children and Adult Services,Public Health,Third Party Payments,460803,Contract Payments,07-Mar-2014,2715049-4810001832,"149,986.15",TEES ESK & WEAR VALLEYS NHS FOUNDATION TRUST.
Corporate Resources,I.C.T. Services,Stock,926900,Stock in hand-Inventory system,07-Mar-2014,2714809-1696389,"4,880.00",INSIGHT DIRECT (UK) LTD.
Corporate Resources,I.C.T. Services,Supplies and Services,332029,"Printing, Stationery and Gen Off Exps",07-Mar-2014,2714939-601539,"1,004.00",POTTS PRINTERS LTD.
Corporate Resources,I.C.T. Services,Stock,926900,Stock in hand-Inventory system,07-Mar-2014,2715088-2337963,"15,950.00",VIGLEN LTD.
Dedicated Schools Grant,Dedicated Schools Grant,Third Party Payments,410037,Rendered by Other Local Authorities,07-Mar-2014,2714785-0040124393,"2,930.00",HARTLEPOOL BOROUGH COUNCIL.
Dedicated Schools Grant,Dedicated Schools Grant,Third Party Payments,410037,Rendered by Other Local Authorities,07-Mar-2014,2714786-0040119986,"3,906.00",HARTLEPOOL BOROUGH COUNCIL.
Neighbourhood Services,Culture & Sport,Supplies and Services,384199,Miscellaneous Expenses,07-Mar-2014,2714627-FEB2014,"1,960.00",ALISTAIR PALMER.
Neighbourhood Services,Culture & Sport,Supplies and Services,384199,Miscellaneous Expenses,07-Mar-2014,2714868-MGNMC02022014,"2,400.00",MENISHA GELA.
Neighbourhood Services,Culture & Sport,Supplies and Services,338047,Services,07-Mar-2014,2714928-PHENT102852,805.54,PICTUREHOUSE ENTERTAINMENT LTD.
Neighbourhood Services,Culture & Sport,Supplies and Services,338047,Services,07-Mar-2014,2714928-PHENT102870,"1,827.38",PICTUREHOUSE ENTERTAINMENT LTD.
Neighbourhood Services,Culture & Sport,Supplies and Services,338047,Services,07-Mar-2014,2714928-PHENT102872,669.33,PICTUREHOUSE ENTERTAINMENT LTD.
Neighbourhood Services,Culture & Sport,Premises,115125,Repairs to Grounds,07-Mar-2014,2715047-14000349,"1,139.68",TECHNOGYM UK LTD.
Neighbourhood Services,Direct Services,"Vehicles, Equipment, Furniture and Fittings",912541,Purchase-vehicles,07-Mar-2014,2714678-447216,"18,698.00",CARRS BILLINGTON AGRICULTURE.
Neighbourhood Services,Direct Services,Premises,145009,Cleaning and Domestic Supplies,07-Mar-2014,2714750-17604,620.16,EXTRACLEAN.
Neighbourhood Services,Direct Services,Premises,108099,Service Repairs and Maintenance,07-Mar-2014,2714859-38779,770.00,MARIAN DOORS & SHUTTERS.
Neighbourhood Services,Direct Services,Premises,108099,Service Repairs and Maintenance,07-Mar-2014,2714859-39071,"1,107.00",MARIAN DOORS & SHUTTERS.
Neighbourhood Services,Direct Services,Construction Work,908105,Construction work,07-Mar-2014,2714869,"4,239.27",MGL DEMOLITION LTD.
Neighbourhood Services,Direct Services,Supplies and Services,304259,Equipment and Materials,07-Mar-2014,2714903-1086075,"3,647.60",NORTHERN TOOLS & ACCESSORIES.
Neighbourhood Services,Direct Services,Supplies and Services,304221,Equipment and Materials,07-Mar-2014,2714938-4120162355,806.58,PLUMBING TRADE SUPPLIES LTD.
Neighbourhood Services,Direct Services,Transport,230005,Contract Hire,07-Mar-2014,2714973-SLIN/00067829,"3,272.64",RTR RIVERSIDE TRUCK RENTAL LTD.
Neighbourhood Services,Direct Services,Transport,230005,Contract Hire,07-Mar-2014,2714973-SLIN/00067830,"4,830.00",RTR RIVERSIDE TRUCK RENTAL LTD.
Neighbourhood Services,Direct Services,Transport,230005,Contract Hire,07-Mar-2014,2714973-SLIN/00067831,"4,830.00",RTR RIVERSIDE TRUCK RENTAL LTD.
Neighbourhood Services,Direct Services,Transport,230005,Contract Hire,07-Mar-2014,2714973-SLIN/00067832,"4,830.00",RTR RIVERSIDE TRUCK RENTAL LTD.
Neighbourhood Services,Direct Services,Transport,230005,Contract Hire,07-Mar-2014,2714973-SLIN/00067833,"4,830.00",RTR RIVERSIDE TRUCK RENTAL LTD.
Neighbourhood Services,Direct Services,Transport,230005,Contract Hire,07-Mar-2014,2714973-SLIN/00067834,"4,830.00",RTR RIVERSIDE TRUCK RENTAL LTD.
Neighbourhood Services,Direct Services,Transport,230005,Contract Hire,07-Mar-2014,2714973-SLIN/00067837,"3,272.64",RTR RIVERSIDE TRUCK RENTAL LTD.
Neighbourhood Services,Direct Services,Transport,230005,Contract Hire,07-Mar-2014,2714973-SLIN/00067838,"3,272.64",RTR RIVERSIDE TRUCK RENTAL LTD.
Neighbourhood Services,Direct Services,Transport,215995,Running Costs of Vehicles,07-Mar-2014,2715004-000058,"1,008.00",SIMPLYTRAK (UK) LTD.
Neighbourhood Services,Direct Services,Third Party Payments,430100,Rendered by Private Contractors,07-Mar-2014,2715018-4157,"1,302.00",ST ASTIER LTD.
Neighbourhood Services,Direct Services,Supplies and Services,304221,Equipment and Materials,07-Mar-2014,2715035-1090978,738.40,T CROSSLING & CO LTD.
Neighbourhood Services,Direct Services,Supplies and Services,304999,Equipment and Materials,07-Mar-2014,2715106-103899/M,"12,419.31",WYBONE LTD.
Neighbourhood Services,"Environment,Health & Consumer Protection",Employees,040149,"Recruitment, Instruction and Training",07-Mar-2014,2715075-I0007686,"1,733.30",TYNE METROPOLITAN COLLEGE.
Neighbourhood Services,Technical Services,Fees,901002,Professional fees,07-Mar-2014,2714620-28181005,"9,370.69",AECOM LTD.
Neighbourhood Services,Technical Services,Third Party Payments,460350,Contract Payments,07-Mar-2014,2714788-4289,"4,657.00",HAWTHORN PLANT HIRE.
Neighbourhood Services,Technical Services,Supplies and Services,304358,Equipment and Materials,07-Mar-2014,2714817-1230,"1,296.00",J & JG GILL & SONS LTD.
Neighbourhood Services,Technical Services,Third Party Payments,460350,Contract Payments,07-Mar-2014,2714817-1279,"1,288.50",J & JG GILL & SONS LTD.
Neighbourhood Services,Technical Services,Supplies and Services,304358,Equipment and Materials,07-Mar-2014,2714817-1306,"4,396.00",J & JG GILL & SONS LTD.
Neighbourhood Services,Technical Services,Supplies and Services,304358,Equipment and Materials,07-Mar-2014,2714817-1307,942.00,J & JG GILL & SONS LTD.
Neighbourhood Services,Technical Services,Third Party Payments,460350,Contract Payments,07-Mar-2014,2714818-5304578,598.00,JA GILSON (AGRICULTURAL CONTRACTORS) LTD.
Neighbourhood Services,Technical Services,Supplies and Services,304358,Equipment and Materials,07-Mar-2014,2714818-5304583,"1,137.26",JA GILSON (AGRICULTURAL CONTRACTORS) LTD.
Neighbourhood Services,Technical Services,Supplies and Services,304358,Equipment and Materials,07-Mar-2014,2714818-5304585,"1,397.46",JA GILSON (AGRICULTURAL CONTRACTORS) LTD.
Neighbourhood Services,Technical Services,Supplies and Services,338045,Services,07-Mar-2014,2714841-346949,500.00,KINGS CHAMBERS.
Neighbourhood Services,Technical Services,Supplies and Services,304221,Equipment and Materials,07-Mar-2014,2714855-133852,"1,990.00",LUCY ZODION LTD.
Neighbourhood Services,Technical Services,Stock,926900,Stock in hand-Inventory system,07-Mar-2014,2714916-XL108970,"2,112.96",PARK ELECTRICAL DISTRIBUTORS LTD.
Neighbourhood Services,Technical Services,Stock,926900,Stock in hand-Inventory system,07-Mar-2014,2714916-XL109016,"7,971.88",PARK ELECTRICAL DISTRIBUTORS LTD.
Neighbourhood Services,Technical Services,Stock,926900,Stock in hand-Inventory system,07-Mar-2014,2715065-98320,750.00,TOMMY WARDLE.
Neighbourhood Services,Technical Services,Supplies and Services,304358,Equipment and Materials,07-Mar-2014,2715114-3784,"3,386.86",YOULL CONSTRUCTION LTD.
Neighbourhood Services,Technical Services,Supplies and Services,304358,Equipment and Materials,07-Mar-2014,2715114-3785,"1,219.50",YOULL CONSTRUCTION LTD.
Neighbourhood Services,Technical Services,Supplies and Services,304358,Equipment and Materials,07-Mar-2014,2715114-3802,708.25,YOULL CONSTRUCTION LTD.
Neighbourhood Services,Technical Services,Supplies and Services,304358,Equipment and Materials,07-Mar-2014,2715114-3806,616.00,YOULL CONSTRUCTION LTD.
RED HRA,HRA Capital,Construction Work,908105,Construction work,07-Mar-2014,2714833-B50363CERT8,"119,102.47",KEEPMOAT HOMES LTD.
RED HRA,HRA Capital,Construction Work,908105,Construction work,07-Mar-2014,2714833-B50364CERT5,"129,296.83",KEEPMOAT HOMES LTD.
RED HRA,HRA Capital,Construction Work,908105,Construction work,07-Mar-2014,2714833-B50365CERT5,"134,729.92",KEEPMOAT HOMES LTD.
RED HRA,HRA Capital,Construction Work,908105,Construction work,07-Mar-2014,2714833-B50367CERT5,"99,510.63",KEEPMOAT HOMES LTD.
RED HRA,HRA Capital,Construction Work,908105,Construction work,07-Mar-2014,2714996-71437,880.00,SGS MIS ENVIRONMENTAL LTD.
Regeneration & Economic Development,Economic Development and Housing,Fees,901002,Professional fees,07-Mar-2014,2714645-13050209,"4,488.00",ATKINS GLOBAL.
Regeneration & Economic Development,Economic Development and Housing,Supplies and Services,338029,Services,07-Mar-2014,2714656-21,"7,922.20",BLUE SKY THINK LLP.
Regeneration & Economic Development,Economic Development and Housing,Third Party Payments,440999,Other Third Party Payments,07-Mar-2014,2714727-2300002095,"10,451.71",DEPARTMENT FOR COMMUNITIES & LOCAL GOVERNMENT.
Regeneration & Economic Development,Economic Development and Housing,Fees,901001,Internal fees,07-Mar-2014,2714762-SITRH/0006134,844.20,FOUR HOUSING GROUP.
Regeneration & Economic Development,Economic Development and Housing,Supplies and Services,308011,Furniture,07-Mar-2014,2714807-7079,834.00,INGRAMS REMOVERS & STORERS.
Regeneration & Economic Development,Economic Development and Housing,Supplies and Services,324117,Provisions,07-Mar-2014,2715036-00024,598.25,T HEWITSON T/A EXECUTIVE COACH & CATERING SERVICES (ECCS).
Regeneration & Economic Development,"Spatial Policy, Planning, Assets & Environment",Construction Work,908105,Construction work,07-Mar-2014,2714976-524564,"5,550.00",SABIEN TECHNOLOGY LTD.
Regeneration & Economic Development,Transport and Contracted Services,Creditors,952025,Creditor-private street works,07-Mar-2014,2714983-RED-03-2014-029,"15,690.12",SCHOFIELD SWEENEY LLP.
Assistant Chief Executive,Partnerships & Community Engagement Div.,Transfer Payments,525030,Other,10-Mar-2014,2715117-VOUCHER4TOGCGF13-004,"1,500.00",1ST FERRYHILL SCOUT GROUP.
Assistant Chief Executive,Partnerships & Community Engagement Div.,Supplies and Services,338094,Services,10-Mar-2014,2715177-SINV22213,"1,044.00",BISHOP AUCKLAND COLLEGE.
Assistant Chief Executive,Partnerships & Community Engagement Div.,Cap Exp on Grants & Other Financial Assistance (REFCUS),918004,Contributions to other bodies,10-Mar-2014,2715305-VOUCHER12NB-DVLY028,"5,000.00",FRIENDS OF BLACKHILL & CONSETT PARK.
Assistant Chief Executive,Partnerships & Community Engagement Div.,Cap Exp on Grants & Other Financial Assistance (REFCUS),918004,Contributions to other bodies,10-Mar-2014,2715324-VOUCHER13NB-EDUR021,"5,000.00",GROUNDWORK NORTH EAST.
Assistant Chief Executive,Partnerships & Community Engagement Div.,Transfer Payments,525030,Other,10-Mar-2014,2715402-VOUCHERSPENCGF13-06,"3,000.00",LITTLE STARS EARLY YEARS.
Assistant Chief Executive,Partnerships & Community Engagement Div.,Supplies and Services,384086,Miscellaneous Expenses,10-Mar-2014,2715531-VOUCHER13NB-EDUR020,"10,000.00",SHOTTON & DISTRICT COMMUNITY ASSOCIATION.
Assistant Chief Executive,Partnerships & Community Engagement Div.,Cap Exp on Grants & Other Financial Assistance (REFCUS),918004,Contributions to other bodies,10-Mar-2014,2715623-VOUCHER13NB-BASH008,"2,750.00",WITTON PARK FOOTBALL CLUB.
Assistant Chief Executive,Planning & Performance Division,Employees,040149,"Recruitment, Instruction and Training",10-Mar-2014,2715357-8634,525.00,IT TRAINING SOLUTIONS LTD.
Children and Adult Services,Childrens care,Supplies and Services,304259,Equipment and Materials,10-Mar-2014,2715130-13291,"1,620.00",ACEDA LTD.
Children and Adult Services,Childrens care,Supplies and Services,338042,Services,10-Mar-2014,2715432-299878/INVKA64,700.00,MR KESTER ARMSTRONG.
Children and Adult Services,Childrens care,Third Party Payments,425020,Rendered by Voluntary Organisations,10-Mar-2014,2715491-20455,"10,672.00",PERCY HEDLEY FOUNDATION.
Children and Adult Services,Commissioning inc Supporting People,Third Party Payments,473111,Purchase of Care,10-Mar-2014,2715461-0017,"6,187.95",NEWTON AYCLIFFE MIND.
Children and Adult Services,Early Intervention and Involvement,Premises,106082,Centrally Controlled Rep and Maint,10-Mar-2014,2715136-25995962-61,"1,407.52",ADT FIRE & SECURITY PLC.
Children and Adult Services,Early Intervention and Involvement,Supplies and Services,384871,Miscellaneous Expenses,10-Mar-2014,2715281-001B,"2,160.00",ECLIPSE FITNESS & PERSONAL TRAINING.
Children and Adult Services,Early Intervention and Involvement,Premises,145051,Cleaning and Domestic Supplies,10-Mar-2014,2715398-SI-002312,"3,867.00",LEISUREWORKS.
Children and Adult Services,Early Intervention and Involvement,Supplies and Services,352001,Conference Expenses,10-Mar-2014,2715523-801,"1,300.00",SCHOOL & FAMILY NURTURING PROGRAMME.
Children and Adult Services,Early Intervention and Involvement,Supplies and Services,304649,Equipment and Materials,10-Mar-2014,2715539-58200,530.25,SPACEKRAFT LTD.
Children and Adult Services,Early Intervention and Involvement,Supplies and Services,384362,Miscellaneous Expenses,10-Mar-2014,2715576,"1,050.00",THERESA SPITERI T/A ZUMBA FITNESS.
Children and Adult Services,Early Intervention and Involvement,Supplies and Services,352001,Conference Expenses,10-Mar-2014,2715587-806,650.00,TRAINING LADDER LTD.
Children and Adult Services,Early Intervention and Involvement,Premises,125009,Rents,10-Mar-2014,2715614-277561,612.00,WHITTLE JONES (GROUP) LTD.
Children and Adult Services,Education,Transport,230006,Contract Hire,10-Mar-2014,2715121-492,532.00,A BARKER.
Children and Adult Services,Education,Transport,230008,Contract Hire,10-Mar-2014,2715124-AA894FEB2014,"1,125.00",AA MINIBUS HIRE.
Children and Adult Services,Education,Transport,230006,Contract Hire,10-Mar-2014,2715125-P33/SR,758.10,AABAT TAXIS.
Children and Adult Services,Education,Transport,230008,Contract Hire,10-Mar-2014,2715125-P44/SE,"1,750.00",AABAT TAXIS.
Children and Adult Services,Education,Transport,230008,Contract Hire,10-Mar-2014,2715125-P45/SF,960.00,AABAT TAXIS.
Children and Adult Services,Education,Transport,230006,Contract Hire,10-Mar-2014,2715125-R1/SG,"1,159.95",AABAT TAXIS.
Children and Adult Services,Education,Transport,230008,Contract Hire,10-Mar-2014,2715125-R12/SJ,882.00,AABAT TAXIS.
Children and Adult Services,Education,Transport,230007,Contract Hire,10-Mar-2014,2715125-R18/SJJ,"1,425.00",AABAT TAXIS.
Children and Adult Services,Education,Transport,230008,Contract Hire,10-Mar-2014,2715125-R2/SH,"1,185.00",AABAT TAXIS.
Children and Adult Services,Education,Transport,230008,Contract Hire,10-Mar-2014,2715125-R9/SV,"1,035.00",AABAT TAXIS.
Children and Adult Services,Education,Transport,230008,Contract Hire,10-Mar-2014,2715126-2/2/14,885.00,ABA TAXIS.
Children and Adult Services,Education,Transport,230008,Contract Hire,10-Mar-2014,2715128-56-28/2/14,"1,650.00",ABLE NOVAK TAXIS.
Children and Adult Services,Education,Transport,230008,Contract Hire,10-Mar-2014,2715133-FEBRUARY2014,"1,090.00",ADAM BARNES T/A PAUL`S TAXIS.
Children and Adult Services,Education,Transport,235005,Public Transport,10-Mar-2014,2715155-106521,"2,318.51",ARRIVA NORTH EAST LTD.
Children and Adult Services,Education,Transport,235005,Public Transport,10-Mar-2014,2715155-106662,752.00,ARRIVA NORTH EAST LTD.
Children and Adult Services,Education,Transport,230008,Contract Hire,10-Mar-2014,2715157-387,"1,050.00",AT TAXIS LTD.
Children and Adult Services,Education,Transport,230008,Contract Hire,10-Mar-2014,2715157-388,"1,035.00",AT TAXIS LTD.
Children and Adult Services,Education,Transport,230008,Contract Hire,10-Mar-2014,2715157-389,798.00,AT TAXIS LTD.
Children and Adult Services,Education,Transport,230007,Contract Hire,10-Mar-2014,2715161-03115,521.61,ATLAS TAXIS CONSETT.
Children and Adult Services,Education,Transport,230007,Contract Hire,10-Mar-2014,2715161-03117,596.80,ATLAS TAXIS CONSETT.
Children and Adult Services,Education,Transport,230007,Contract Hire,10-Mar-2014,2715161-03118,540.00,ATLAS TAXIS CONSETT.
Children and Adult Services,Education,Transport,230006,Contract Hire,10-Mar-2014,2715161-03119,673.20,ATLAS TAXIS CONSETT.
Children and Adult Services,Education,Transport,230007,Contract Hire,10-Mar-2014,2715167-DJ42260214,"3,600.00",BELL BROTHERS TRAVEL.
Children and Adult Services,Education,Transport,230006,Contract Hire,10-Mar-2014,2715172-011,882.00,BG TAXIS.
Children and Adult Services,Education,Transport,230007,Contract Hire,10-Mar-2014,2715173-001/03,540.00,BILL SCOTT (BILL SCOTT TAXIS).
Children and Adult Services,Education,Transport,230007,Contract Hire,10-Mar-2014,2715174-11,570.00,BILL`S TAXIS.
Children and Adult Services,Education,Transport,230008,Contract Hire,10-Mar-2014,2715175-06513,"1,200.00",BIRDS TAXIS.
Children and Adult Services,Education,Transport,230008,Contract Hire,10-Mar-2014,2715175-06515,"1,135.00",BIRDS TAXIS.
Children and Adult Services,Education,Transport,230008,Contract Hire,10-Mar-2014,2715175-06516,"1,230.00",BIRDS TAXIS.
Children and Adult Services,Education,Transport,230008,Contract Hire,10-Mar-2014,2715175-06517,"1,515.00",BIRDS TAXIS.
Children and Adult Services,Education,Transport,230008,Contract Hire,10-Mar-2014,2715175-06518,"1,200.00",BIRDS TAXIS.
Children and Adult Services,Education,Transport,230008,Contract Hire,10-Mar-2014,2715180-83,525.00,BL TAXIS.
Children and Adult Services,Education,Transport,230008,Contract Hire,10-Mar-2014,2715184-1306,"1,035.00",BOBBY DOVE.
Children and Adult Services,Education,Transport,230008,Contract Hire,10-Mar-2014,2715184-1307,"1,157.00",BOBBY DOVE.
Children and Adult Services,Education,Transport,230008,Contract Hire,10-Mar-2014,2715213-KJ016,"1,066.00",CHIPPERS TAXIS.
Children and Adult Services,Education,Transport,230008,Contract Hire,10-Mar-2014,2715223-E042/2/14,"1,638.00",COLIN FRANKS T/A FRANKS COACHES.
Children and Adult Services,Education,Transport,230008,Contract Hire,10-Mar-2014,2715229-251,"1,398.00",CONNORS MINI BUSES.
Children and Adult Services,Education,Transport,230008,Contract Hire,10-Mar-2014,2715229-252,"1,361.55",CONNORS MINI BUSES.
Children and Adult Services,Education,Transport,230008,Contract Hire,10-Mar-2014,2715229-253,"1,104.90",CONNORS MINI BUSES.
Children and Adult Services,Education,Transport,230008,Contract Hire,10-Mar-2014,2715229-254,"1,454.55",CONNORS MINI BUSES.
Children and Adult Services,Education,Transport,230008,Contract Hire,10-Mar-2014,2715229-255,"1,127.25",CONNORS MINI BUSES.
Children and Adult Services,Education,Transport,230008,Contract Hire,10-Mar-2014,2715242-42,903.49,D CROOK.
Children and Adult Services,Education,Transport,230008,Contract Hire,10-Mar-2014,2715244-FEB1401,"1,500.00",DALELINK PRIVATE HIRE.
Children and Adult Services,Education,Transport,230008,Contract Hire,10-Mar-2014,2715246-2106,"1,275.00",DAVES MINIBUSES.
Children and Adult Services,Education,Transport,230008,Contract Hire,10-Mar-2014,2715246-2108,637.50,DAVES MINIBUSES.
Children and Adult Services,Education,Transport,230008,Contract Hire,10-Mar-2014,2715246-2109,"1,140.00",DAVES MINIBUSES.
Children and Adult Services,Education,Transport,230008,Contract Hire,10-Mar-2014,2715246-2110,"1,032.60",DAVES MINIBUSES.
Children and Adult Services,Education,Transport,230008,Contract Hire,10-Mar-2014,2715246-2111,"1,143.90",DAVES MINIBUSES.
Children and Adult Services,Education,Transport,230008,Contract Hire,10-Mar-2014,2715248-0214/001,975.00,DCM TAXIS.
Children and Adult Services,Education,Transport,230008,Contract Hire,10-Mar-2014,2715263-A1202/45,"2,147.32",DMG PRIVATE HIRE.
Children and Adult Services,Education,Transport,230008,Contract Hire,10-Mar-2014,2715263-A1202/46,"2,129.96",DMG PRIVATE HIRE.
Children and Adult Services,Education,Transport,230007,Contract Hire,10-Mar-2014,2715271-18619,"1,942.50",DURHAM CITY COACHES.
Children and Adult Services,Education,Transport,230007,Contract Hire,10-Mar-2014,2715284-0586,675.00,EN ROUTE TRAVEL.
Children and Adult Services,Education,Transport,230008,Contract Hire,10-Mar-2014,2715284-0587,"1,124.85",EN ROUTE TRAVEL.
Children and Adult Services,Education,Transport,230007,Contract Hire,10-Mar-2014,2715288-022,720.00,EXTREAM TAXI`S.
Children and Adult Services,Education,Transport,230007,Contract Hire,10-Mar-2014,2715288-023,720.00,EXTREAM TAXI`S.
Children and Adult Services,Education,Third Party Payments,440999,Other Third Party Payments,10-Mar-2014,2715291-3178,"11,439.00",FANE LTD.
Children and Adult Services,Education,Transport,230008,Contract Hire,10-Mar-2014,2715316-W082/017,"1,158.00",GMC TAXIS NORTH EAST.
Children and Adult Services,Education,Transport,230008,Contract Hire,10-Mar-2014,2715316-W084/017,"1,440.00",GMC TAXIS NORTH EAST.
Children and Adult Services,Education,Transport,235005,Public Transport,10-Mar-2014,2715317-35524,"3,600.00",GO GATESHEAD LTD.
Children and Adult Services,Education,Transport,235005,Public Transport,10-Mar-2014,2715317-39358,"35,280.00",GO GATESHEAD LTD.
Children and Adult Services,Education,Transfer Payments,510026,School Children,10-Mar-2014,2715319-CAS-03-2014-025,"2,000.00",GREEN LANE NURSERY & CHILDCARE CENTRE.
Children and Adult Services,Education,Transport,230008,Contract Hire,10-Mar-2014,2715329-HT117,"1,230.00",HARRY`S TAXI`S.
Children and Adult Services,Education,Transport,230008,Contract Hire,10-Mar-2014,2715329-HT118,"1,200.00",HARRY`S TAXI`S.
Children and Adult Services,Education,Transport,230008,Contract Hire,10-Mar-2014,2715329-HT119,"2,013.20",HARRY`S TAXI`S.
Children and Adult Services,Education,Transport,230008,Contract Hire,10-Mar-2014,2715329-HT120,"1,435.00",HARRY`S TAXI`S.
Children and Adult Services,Education,Transport,230007,Contract Hire,10-Mar-2014,2715343-F1242,"1,485.00",HUNTER BROTHERS (TANTOBIE) LTD.
Children and Adult Services,Education,Transport,230007,Contract Hire,10-Mar-2014,2715343-F1243,"1,198.50",HUNTER BROTHERS (TANTOBIE) LTD.
Children and Adult Services,Education,Transport,230008,Contract Hire,10-Mar-2014,2715347-IR1402003,"1,950.00",I & R EXECUTIVE TRAVEL.
Children and Adult Services,Education,Transport,230008,Contract Hire,10-Mar-2014,2715347-IR1402004,"1,200.00",I & R EXECUTIVE TRAVEL.
Children and Adult Services,Education,Transport,230007,Contract Hire,10-Mar-2014,2715358-677,562.50,J YOUNG T/A VIP TAXIS.
Children and Adult Services,Education,Transport,230008,Contract Hire,10-Mar-2014,2715358-678-28/2/14,"1,500.00",J YOUNG T/A VIP TAXIS.
Children and Adult Services,Education,Transport,230007,Contract Hire,10-Mar-2014,2715358-679,924.00,J YOUNG T/A VIP TAXIS.
Children and Adult Services,Education,Transport,230008,Contract Hire,10-Mar-2014,2715358-680,"1,484.00",J YOUNG T/A VIP TAXIS.
Children and Adult Services,Education,Transport,230008,Contract Hire,10-Mar-2014,2715358-681,900.00,J YOUNG T/A VIP TAXIS.
Children and Adult Services,Education,Transport,230007,Contract Hire,10-Mar-2014,2715358-682,560.00,J YOUNG T/A VIP TAXIS.
Children and Adult Services,Education,Transport,230008,Contract Hire,10-Mar-2014,2715358-683,"1,260.00",J YOUNG T/A VIP TAXIS.
Children and Adult Services,Education,Transport,230008,Contract Hire,10-Mar-2014,2715358-685,780.00,J YOUNG T/A VIP TAXIS.
Children and Adult Services,Education,Transport,230008,Contract Hire,10-Mar-2014,2715362-2239,"1,296.90",JEFF ANDERSON COACHES LTD.
Children and Adult Services,Education,Transport,230008,Contract Hire,10-Mar-2014,2715365-JK50-28/2/14,"1,170.00",JK TAXIS.
Children and Adult Services,Education,Transport,230008,Contract Hire,10-Mar-2014,2715366-28/02/14A,"1,050.00",JL EBDON.
Children and Adult Services,Education,Transport,230008,Contract Hire,10-Mar-2014,2715366-28/02/14B,900.00,JL EBDON.
Children and Adult Services,Education,Transport,230008,Contract Hire,10-Mar-2014,2715366-28/02/14C,900.00,JL EBDON.
Children and Adult Services,Education,Transport,230008,Contract Hire,10-Mar-2014,2715366-28/02/14D,"1,650.00",JL EBDON.
Children and Adult Services,Education,Transport,230008,Contract Hire,10-Mar-2014,2715366-28/02/14G,750.00,JL EBDON.
Children and Adult Services,Education,Transport,230008,Contract Hire,10-Mar-2014,2715378-S007-017,"1,720.00",KEITH HAMMOND T/A FERRYHILL VILLAGE TRAVEL.
Children and Adult Services,Education,Supplies and Services,338027,Services,10-Mar-2014,2715384-1000229,"28,131.29",KING JAMES I ACADEMY.
Children and Adult Services,Education,Transport,230009,Contract Hire,10-Mar-2014,2715388-2013440,660.00,L & M TAXIS.
Children and Adult Services,Education,Transport,230007,Contract Hire,10-Mar-2014,2715388-2013452,899.00,L & M TAXIS.
Children and Adult Services,Education,Transport,230007,Contract Hire,10-Mar-2014,2715396-19491,"1,785.00",LEE`S COACHES LTD.
Children and Adult Services,Education,Transport,230008,Contract Hire,10-Mar-2014,2715404-1741,744.00,LOCAL TRANSPORT LTD.
Children and Adult Services,Education,Transport,230008,Contract Hire,10-Mar-2014,2715408-JOSEPH6,900.00,MA BODDY.
Children and Adult Services,Education,Transport,230008,Contract Hire,10-Mar-2014,2715411-380214,"1,020.00",MARKS TAXIS.
Children and Adult Services,Education,Transport,230008,Contract Hire,10-Mar-2014,2715411-480214,690.00,MARKS TAXIS.
Children and Adult Services,Education,Transport,230007,Contract Hire,10-Mar-2014,2715417-00635,"2,100.00",MICHAELS TRAVEL.
Children and Adult Services,Education,Transport,230008,Contract Hire,10-Mar-2014,2715424-CEW22,"1,050.00",MOOR PRIVATE HIRE.
Children and Adult Services,Education,Transport,230008,Contract Hire,10-Mar-2014,2715428-24A,"1,480.00",MR G FREELAND T/A HUNWICK CARS.
Children and Adult Services,Education,Transport,230008,Contract Hire,10-Mar-2014,2715428-24B,"1,537.50",MR G FREELAND T/A HUNWICK CARS.
Children and Adult Services,Education,Transport,230006,Contract Hire,10-Mar-2014,2715428-6E,531.00,MR G FREELAND T/A HUNWICK CARS.
Children and Adult Services,Education,Transport,230008,Contract Hire,10-Mar-2014,2715429-61-G8-34,"1,005.00",MR GS ANDERSON.
Children and Adult Services,Education,Transport,230008,Contract Hire,10-Mar-2014,2715430-NU/02/14,750.00,MR J AGAR T/A PARK TAXIS.
Children and Adult Services,Education,Transport,230006,Contract Hire,10-Mar-2014,2715431-FEB-02,"1,335.00",MR JR BLYTH T/A JRB TAXIS.
Children and Adult Services,Education,Transport,230008,Contract Hire,10-Mar-2014,2715433-224,525.00,MR LEE ANDERSON.
Children and Adult Services,Education,Transport,230008,Contract Hire,10-Mar-2014,2715434-A039/02/14,"1,440.00",MR M ALLISON.
Children and Adult Services,Education,Transport,230008,Contract Hire,10-Mar-2014,2715434-N053/02/14,"1,140.00",MR M ALLISON.
Children and Adult Services,Education,Transport,230008,Contract Hire,10-Mar-2014,2715434-N059/01/14-28/2/14,"1,050.00",MR M ALLISON.
Children and Adult Services,Education,Transport,230008,Contract Hire,10-Mar-2014,2715434-N081/02/14,"1,110.00",MR M ALLISON.
Children and Adult Services,Education,Transport,230008,Contract Hire,10-Mar-2014,2715436-0081,"2,175.00",MR P CAHILL T/A KILEYS TAXIS.
Children and Adult Services,Education,Transport,230008,Contract Hire,10-Mar-2014,2715436-0082,"2,504.18",MR P CAHILL T/A KILEYS TAXIS.
Children and Adult Services,Education,Transport,230007,Contract Hire,10-Mar-2014,2715438-TN06,540.00,MR THOMAS G GRIFFITHS T/A TNL TAXIS.
Children and Adult Services,Education,Transport,230006,Contract Hire,10-Mar-2014,2715440-33,"1,200.00",MRS ANNE BOWMAN T/A ANNES CARS.
Children and Adult Services,Education,Transport,230008,Contract Hire,10-Mar-2014,2715446-123,"1,064.00",N FORBES.
Children and Adult Services,Education,Transport,230008,Contract Hire,10-Mar-2014,2715463-2932,"1,110.00",NIGHTINGALE COACHES.
Children and Adult Services,Education,Transport,230008,Contract Hire,10-Mar-2014,2715463-2933,"1,125.00",NIGHTINGALE COACHES.
Children and Adult Services,Education,Transport,230008,Contract Hire,10-Mar-2014,2715484-5498,"1,192.50",OVERLANDER LTD.
Children and Adult Services,Education,Transport,230008,Contract Hire,10-Mar-2014,2715487-SC-013B-28/2/14,"1,125.00",PAUL BURRELL TAXIS.
Children and Adult Services,Education,Transport,230007,Contract Hire,10-Mar-2014,2715488-1276,735.00,PAUL WATSON TRAVEL.
Children and Adult Services,Education,Transport,230007,Contract Hire,10-Mar-2014,2715488-1277,"1,800.00",PAUL WATSON TRAVEL.
Children and Adult Services,Education,Transport,230007,Contract Hire,10-Mar-2014,2715488-1278,"1,950.00",PAUL WATSON TRAVEL.
Children and Adult Services,Education,Transport,230008,Contract Hire,10-Mar-2014,2715494-00756,540.00,PHILLIPS TAXI GROUP LTD.
Children and Adult Services,Education,Transport,230008,Contract Hire,10-Mar-2014,2715500-962,"1,015.00",PODA LTD.
Children and Adult Services,Education,Transport,230008,Contract Hire,10-Mar-2014,2715505-G48,644.00,PRESTYS HACKNEY & PRIVATE HIRE TAXIS.
Children and Adult Services,Education,Transport,230008,Contract Hire,10-Mar-2014,2715518-0001-17/1/14,800.00,S & S TRAVEL LTD.
Children and Adult Services,Education,Transport,230007,Contract Hire,10-Mar-2014,2715524-1134A-28/2/14,630.00,SCOTT LEE BURTON.
Children and Adult Services,Education,Transport,230008,Contract Hire,10-Mar-2014,2715565-26102B,"1,237.50",T MOORE & SON.
Children and Adult Services,Education,Transport,230008,Contract Hire,10-Mar-2014,2715566-1165-28/2/14,"1,365.00",TAILORMADE TRAVEL.
Children and Adult Services,Education,Transport,230006,Contract Hire,10-Mar-2014,2715567-1855,885.00,TALBOTS TAXIS.
Children and Adult Services,Education,Transport,230008,Contract Hire,10-Mar-2014,2715568-B654,560.00,TALBOTS TRAVEL LTD.
Children and Adult Services,Education,Transport,230008,Contract Hire,10-Mar-2014,2715568-B655,895.00,TALBOTS TRAVEL LTD.
Children and Adult Services,Education,Transport,230008,Contract Hire,10-Mar-2014,2715568-B656,870.00,TALBOTS TRAVEL LTD.
Children and Adult Services,Education,Transport,230008,Contract Hire,10-Mar-2014,2715581-002/14,"1,069.50",TL TAXIS.
Children and Adult Services,Education,Transport,230007,Contract Hire,10-Mar-2014,2715582-2190,"1,770.00",TM TRAVEL.
Children and Adult Services,Education,Transport,230007,Contract Hire,10-Mar-2014,2715582-2191,"1,950.00",TM TRAVEL.
Children and Adult Services,Education,Transport,230007,Contract Hire,10-Mar-2014,2715582-2192,"1,770.00",TM TRAVEL.
Children and Adult Services,Education,Transport,230007,Contract Hire,10-Mar-2014,2715582-2193,"6,270.00",TM TRAVEL.
Children and Adult Services,Education,Transport,230007,Contract Hire,10-Mar-2014,2715582-2194,"1,035.00",TM TRAVEL.
Children and Adult Services,Education,Transport,230007,Contract Hire,10-Mar-2014,2715582-2195,"1,425.00",TM TRAVEL.
Children and Adult Services,Education,Transport,230008,Contract Hire,10-Mar-2014,2715584-TS20-17,"1,500.00",TOP STAR TRAVEL.
Children and Adult Services,Education,Transport,230008,Contract Hire,10-Mar-2014,2715590-007,630.00,TRIDENT TAXIS.
Children and Adult Services,Education,Transport,230008,Contract Hire,10-Mar-2014,2715590-07,600.00,TRIDENT TAXIS.
Children and Adult Services,Education,Transport,230008,Contract Hire,10-Mar-2014,2715591-047,588.00,TRUDY`S.
Children and Adult Services,Education,Transport,230008,Contract Hire,10-Mar-2014,2715603-000666,"1,245.00",WATSON OF SPENNYMOOR.
Children and Adult Services,Education,Transport,230006,Contract Hire,10-Mar-2014,2715604-848,"1,026.00",WAYNE`S TAXIS.
Children and Adult Services,Education,Transport,230008,Contract Hire,10-Mar-2014,2715604-849,"1,980.00",WAYNE`S TAXIS.
Children and Adult Services,Education,Transport,230008,Contract Hire,10-Mar-2014,2715604-850,"1,350.00",WAYNE`S TAXIS.
Children and Adult Services,Education,Transport,230008,Contract Hire,10-Mar-2014,2715604-851,"1,500.00",WAYNE`S TAXIS.
Children and Adult Services,Education,Transport,230007,Contract Hire,10-Mar-2014,2715606-5010,"3,315.00",WEARDALE PRIVATE HIRE.
Children and Adult Services,Education,Transport,230007,Contract Hire,10-Mar-2014,2715606-5011,"3,059.85",WEARDALE PRIVATE HIRE.
Children and Adult Services,Education,Transport,230006,Contract Hire,10-Mar-2014,2715606-5013,"1,294.80",WEARDALE PRIVATE HIRE.
Children and Adult Services,Education,Transport,230006,Contract Hire,10-Mar-2014,2715610-0214,"1,764.00",WEST AUCKLAND TOWN TRAVEL (WATT).
Children and Adult Services,Education,Transport,230008,Contract Hire,10-Mar-2014,2715612-WESTLEA280214,950.00,WESTLEA TAXIS.
Children and Adult Services,Head of Adults,Transport,230005,Contract Hire,10-Mar-2014,2715127-0176,552.00,ABC & OUSTON CABS.
Children and Adult Services,Head of Adults,Transport,230005,Contract Hire,10-Mar-2014,2715175-06519,"4,094.40",BIRDS TAXIS.
Children and Adult Services,Head of Adults,Supplies and Services,338370,Services,10-Mar-2014,2715220-3910002947,"41,883.00",CO DURHAM & DARLINGTON NHS FOUNDATION TRUST.
Children and Adult Services,Head of Adults,Supplies and Services,338370,Services,10-Mar-2014,2715220-3910002948,"64,063.32",CO DURHAM & DARLINGTON NHS FOUNDATION TRUST.
Children and Adult Services,Head of Adults,Transport,230005,Contract Hire,10-Mar-2014,2715224-226,"1,156.40",COLIN HOLMES.
Children and Adult Services,Head of Adults,Supplies and Services,352001,Conference Expenses,10-Mar-2014,2715286-2014CONF-0119,525.00,ESPA RESEARCH LTD.
Children and Adult Services,Head of Adults,Transport,230005,Contract Hire,10-Mar-2014,2715361-455,"1,069.00",JDS PRIVATE HIRE DURHAM.
Children and Adult Services,Head of Adults,Transport,230005,Contract Hire,10-Mar-2014,2715367-2013/40,"1,124.50",JM HUMBLE COACH HIRE.
Children and Adult Services,Head of Adults,Transport,230005,Contract Hire,10-Mar-2014,2715381-020214,"1,512.00",KEVIN EDMUNDSON.
Children and Adult Services,Head of Adults,Third Party Payments,478101,Purchase of Care,10-Mar-2014,2715383-CAS-03-2014-032,"19,583.79",KINDSTREAM CARE LTD.
Children and Adult Services,Head of Adults,Transport,230005,Contract Hire,10-Mar-2014,2715414-51-28/2/14,"1,000.00",MAURICE & SONS.
Children and Adult Services,Head of Adults,Transport,230005,Contract Hire,10-Mar-2014,2715417-00636,948.00,MICHAELS TRAVEL.
Children and Adult Services,Head of Adults,Transport,230005,Contract Hire,10-Mar-2014,2715417-00639,"1,180.00",MICHAELS TRAVEL.
Children and Adult Services,Head of Adults,Transport,230005,Contract Hire,10-Mar-2014,2715422-395,702.00,MOLLYS TAXIS.
Children and Adult Services,Head of Adults,Transport,230005,Contract Hire,10-Mar-2014,2715422-399,"1,248.00",MOLLYS TAXIS.
Children and Adult Services,Head of Adults,Transport,230005,Contract Hire,10-Mar-2014,2715426-603,"2,700.00",MR AD HOWARD.
Children and Adult Services,Head of Adults,Transport,230005,Contract Hire,10-Mar-2014,2715484-5503,"2,070.00",OVERLANDER LTD.
Children and Adult Services,Head of Adults,Transport,230005,Contract Hire,10-Mar-2014,2715500-960,896.00,PODA LTD.
Children and Adult Services,Head of Adults,Transport,230005,Contract Hire,10-Mar-2014,2715503-40122,685.00,PRATTS TAXIS.
Children and Adult Services,Head of Adults,Transport,230005,Contract Hire,10-Mar-2014,2715588-NO2114,728.00,TRANSPORT.ADVENTURE.XI.
Children and Adult Services,Head of Adults,Transport,230005,Contract Hire,10-Mar-2014,2715604-855,"1,192.00",WAYNE`S TAXIS.
Children and Adult Services,Public Health,Supplies and Services,384540,Miscellaneous Expenses,10-Mar-2014,2715144-23870,"1,640.00",ALLWAG PROMOTIONS LTD.
Children and Adult Services,Public Health,Third Party Payments,460803,Contract Payments,10-Mar-2014,2715195-CAS-03-2014-033,"1,250.00",BURGESS HYDER DENTAL GROUP.
Children and Adult Services,Public Health,Third Party Payments,460803,Contract Payments,10-Mar-2014,2715616-CAS-03-2014-034,"1,750.00",WILLINGTON DENTAL CARE.
Corporate Resources,Human Resources,Supplies and Services,384199,Miscellaneous Expenses,10-Mar-2014,2715468-I2164730,989.00,NORTHGATE ARINSO UK LTD.
Corporate Resources,Human Resources,Supplies and Services,384199,Miscellaneous Expenses,10-Mar-2014,2715469-I2165535,887.17,NORTHGATE INFORMATION SOLUTIONS UK LTD.
Corporate Resources,I.C.T. Services,Stock,926900,Stock in hand-Inventory system,10-Mar-2014,2715253-7402097160,"2,512.59",DELL COMPUTER CORPORATION LTD.
Corporate Resources,I.C.T. Services,Supplies and Services,304245,Equipment and Materials,10-Mar-2014,2715340-13384SN,636.31,HOWARD SMITH PAPER GROUP.
Corporate Resources,I.C.T. Services,"Vehicles, Equipment, Furniture and Fittings",912701,Computer equipment,10-Mar-2014,2715350-19618,"4,476.54",IMTECH ICT LTD.
Corporate Resources,I.C.T. Services,Supplies and Services,332029,"Printing, Stationery and Gen Off Exps",10-Mar-2014,2715543-7307,614.00,SPOT ON DISPLAYS LTD.
Corporate Resources,I.C.T. Services,Stock,926900,Stock in hand-Inventory system,10-Mar-2014,2715628-U933029,645.61,XMA LTD.
Corporate Resources,Legal & Democratic Services,Supplies and Services,384151,Miscellaneous Expenses,10-Mar-2014,2715220-3910003078,"35,194.07",CO DURHAM & DARLINGTON NHS FOUNDATION TRUST.
Corporate Resources,Legal & Democratic Services,Supplies and Services,384151,Miscellaneous Expenses,10-Mar-2014,2715220-3910003079,"32,802.24",CO DURHAM & DARLINGTON NHS FOUNDATION TRUST.
Corporate Resources,Legal & Democratic Services,Supplies and Services,384151,Miscellaneous Expenses,10-Mar-2014,2715220-3910003080,"30,752.10",CO DURHAM & DARLINGTON NHS FOUNDATION TRUST.
Corporate Resources,Legal & Democratic Services,Supplies and Services,338025,Services,10-Mar-2014,2715221,560.00,CO-OPERATIVE FUNERAL CARE.
Corporate Resources,Legal & Democratic Services,Supplies and Services,338057,Services,10-Mar-2014,2715265,"1,742.40",DR C PATEL.
Corporate Resources,Legal & Democratic Services,Supplies and Services,384954,Miscellaneous Expenses,10-Mar-2014,2715266,877.20,DR C PATEL.
Corporate Resources,Legal & Democratic Services,Supplies and Services,338057,Services,10-Mar-2014,2715266,"1,742.40",DR C PATEL.
Corporate Resources,Legal & Democratic Services,Supplies and Services,338057,Services,10-Mar-2014,2715268,"1,355.20",DR SIDHU.
Corporate Resources,Legal & Democratic Services,Supplies and Services,384151,Miscellaneous Expenses,10-Mar-2014,2715459-R0217712,"2,520.00",NEWCASTLE UPON TYNE HOSPITALS NHS FOUNDATION TRUST.
Dedicated Schools Grant,Dedicated Schools Grant,Transport,230010,Contract Hire,10-Mar-2014,2715203-P04806,740.00,C & R TAXIS.
Dedicated Schools Grant,Dedicated Schools Grant,Transport,230010,Contract Hire,10-Mar-2014,2715203-P05204,750.00,C & R TAXIS.
Dedicated Schools Grant,Dedicated Schools Grant,Transport,230010,Contract Hire,10-Mar-2014,2715212-B070,"1,270.00",CHESTER ROAD TAXIS.
Dedicated Schools Grant,Dedicated Schools Grant,Transport,230010,Contract Hire,10-Mar-2014,2715213-SN006,960.00,CHIPPERS TAXIS.
Dedicated Schools Grant,Dedicated Schools Grant,Third Party Payments,410037,Rendered by Other Local Authorities,10-Mar-2014,2715214-NV004,"4,685.62",CITY OF SUNDERLAND.
Dedicated Schools Grant,Dedicated Schools Grant,Third Party Payments,410037,Rendered by Other Local Authorities,10-Mar-2014,2715214-NV005,"3,482.56",CITY OF SUNDERLAND.
Dedicated Schools Grant,Dedicated Schools Grant,Transport,230010,Contract Hire,10-Mar-2014,2715237-B105/FEB/14,"1,320.00",CRAIG`S CABS.
Dedicated Schools Grant,Dedicated Schools Grant,Transport,230010,Contract Hire,10-Mar-2014,2715288-024,550.00,EXTREAM TAXI`S.
Dedicated Schools Grant,Dedicated Schools Grant,Transport,230010,Contract Hire,10-Mar-2014,2715359-B107F,"1,050.00",JAFFAS TAXIS.
Dedicated Schools Grant,Dedicated Schools Grant,Transport,230010,Contract Hire,10-Mar-2014,2715380-00493,962.50,KENNAS CABS.
Dedicated Schools Grant,Dedicated Schools Grant,Transport,230010,Contract Hire,10-Mar-2014,2715410-011402,"1,565.00",MARK & JOHN CHISHOLM T/A (CHEVRON).
Dedicated Schools Grant,Dedicated Schools Grant,Transport,230010,Contract Hire,10-Mar-2014,2715410-011410,"1,387.00",MARK & JOHN CHISHOLM T/A (CHEVRON).
Dedicated Schools Grant,Dedicated Schools Grant,Transport,230010,Contract Hire,10-Mar-2014,2715410-021402,"1,275.00",MARK & JOHN CHISHOLM T/A (CHEVRON).
Dedicated Schools Grant,Dedicated Schools Grant,Transport,230010,Contract Hire,10-Mar-2014,2715410-021410,"1,011.00",MARK & JOHN CHISHOLM T/A (CHEVRON).
Dedicated Schools Grant,Dedicated Schools Grant,Transport,230010,Contract Hire,10-Mar-2014,2715429-60-F7-33,"1,350.00",MR GS ANDERSON.
Dedicated Schools Grant,Dedicated Schools Grant,Third Party Payments,440080,Other Third Party Payments,10-Mar-2014,2715491-20587,"148,552.39",PERCY HEDLEY FOUNDATION.
Dedicated Schools Grant,Dedicated Schools Grant,Third Party Payments,440080,Other Third Party Payments,10-Mar-2014,2715491-20588,"148,552.39",PERCY HEDLEY FOUNDATION.
Dedicated Schools Grant,Dedicated Schools Grant,Transport,230010,Contract Hire,10-Mar-2014,2715565-26502F,931.50,T MOORE & SON.
Dedicated Schools Grant,Dedicated Schools Grant,Transport,230010,Contract Hire,10-Mar-2014,2715565-26602G,"1,295.00",T MOORE & SON.
Dedicated Schools Grant,Dedicated Schools Grant,Transport,230010,Contract Hire,10-Mar-2014,2715589-13006,847.00,TRAVEL 6.
Dedicated Schools Grant,Dedicated Schools Grant,Transport,230010,Contract Hire,10-Mar-2014,2715591-048,520.00,TRUDY`S.
Neighbourhood Services,Culture & Sport,Premises,106082,Centrally Controlled Rep and Maint,10-Mar-2014,2715131-14304,"8,819.48",ACROL AIR CONDITIONING CO LTD.
Neighbourhood Services,Culture & Sport,Supplies and Services,384540,Miscellaneous Expenses,10-Mar-2014,2715140-180,540.00,AHA DISTRIBUTION LTD.
Neighbourhood Services,Culture & Sport,Supplies and Services,324001,Provisions,10-Mar-2014,2715206-EW55010352,"1,038.52",CARLSBERG UK LTD.
Neighbourhood Services,Culture & Sport,Supplies and Services,336005,Advertising,10-Mar-2014,2715217-0101804780,600.00,CLEAR CHANNEL UK LTD.
Neighbourhood Services,Culture & Sport,Premises,108099,Service Repairs and Maintenance,10-Mar-2014,2715245-201404927,579.32,DANCOVER A/S.
Neighbourhood Services,Culture & Sport,Supplies and Services,338047,Services,10-Mar-2014,2715497-PHENT102871,"2,828.83",PICTUREHOUSE ENTERTAINMENT LTD.
Neighbourhood Services,Culture & Sport,Construction Work,908105,Construction work,10-Mar-2014,2715502-335,"49,855.00",POOL MAINTENANCE LTD.
Neighbourhood Services,Culture & Sport,Premises,145023,Cleaning and Domestic Supplies,10-Mar-2014,2715532-265358,"1,064.75",SIS CHEMICALS.
Neighbourhood Services,Direct Services,Premises,106082,Centrally Controlled Rep and Maint,10-Mar-2014,2715136-25995934-61,630.00,ADT FIRE & SECURITY PLC.
Neighbourhood Services,Direct Services,Premises,106082,Centrally Controlled Rep and Maint,10-Mar-2014,2715136-26008251-61,"2,292.15",ADT FIRE & SECURITY PLC.
Neighbourhood Services,Direct Services,Supplies and Services,338099,Services,10-Mar-2014,2715152-1231,"1,280.00",ARBTECH MACHINERY LTD.
Neighbourhood Services,Direct Services,Transport,210057,Repair and Maintenance of Vehicles,10-Mar-2014,2715168-25138314,503.56,BELL TRUCK SALES LTD.
Neighbourhood Services,Direct Services,Transport,210057,Repair and Maintenance of Vehicles,10-Mar-2014,2715168-25138396,650.00,BELL TRUCK SALES LTD.
Neighbourhood Services,Direct Services,Transport,210057,Repair and Maintenance of Vehicles,10-Mar-2014,2715168-45044762,556.40,BELL TRUCK SALES LTD.
Neighbourhood Services,Direct Services,Supplies and Services,304221,Equipment and Materials,10-Mar-2014,2715170-DUR/134997,"2,550.00",BEMCO LTD.
Neighbourhood Services,Direct Services,Supplies and Services,304221,Equipment and Materials,10-Mar-2014,2715170-DUR/134998,"2,550.00",BEMCO LTD.
Neighbourhood Services,Direct Services,Stock,926004,Stock,10-Mar-2014,2715210-2156458,"14,242.52",CERTAS ENERGY UK LTD.
Neighbourhood Services,Direct Services,Stock,926004,Stock,10-Mar-2014,2715210-2156462,"3,166.34",CERTAS ENERGY UK LTD.
Neighbourhood Services,Direct Services,Transport,210057,Repair and Maintenance of Vehicles,10-Mar-2014,2715211-592976,725.53,CHATFIELDS.
Neighbourhood Services,Direct Services,Transport,230031,Contract Hire,10-Mar-2014,2715233-8001/02/14,"1,260.00",COUNTY COACHES.
Neighbourhood Services,Direct Services,Third Party Payments,430100,Rendered by Private Contractors,10-Mar-2014,2715238-55820/14-03619/1,"2,499.59",CROFT VETS LTD.
Neighbourhood Services,Direct Services,Transport,210057,Repair and Maintenance of Vehicles,10-Mar-2014,2715239-08104952084,579.00,CROMWELL GROUP (HOLDINGS) LTD.
Neighbourhood Services,Direct Services,Premises,120037,Energy Costs,10-Mar-2014,2715298-2014002231,"1,614.08",FOREVER FUELS LTD
Neighbourhood Services,Direct Services,Premises,120037,Energy Costs,10-Mar-2014,2715298-2014002419,970.00,FOREVER FUELS LTD
Neighbourhood Services,Direct Services,Stock,926004,Stock,10-Mar-2014,2715306-216208794,"1,318.90",FUCHS LUBRICANTS (UK) PLC.
Neighbourhood Services,Direct Services,Stock,926004,Stock,10-Mar-2014,2715306-216208918,"1,747.00",FUCHS LUBRICANTS (UK) PLC.
Neighbourhood Services,Direct Services,Supplies and Services,304259,Equipment and Materials,10-Mar-2014,2715330-74373,505.00,HEPSCOTT WATER SYSTEMS LTD.
Neighbourhood Services,Direct Services,Transport,210057,Repair and Maintenance of Vehicles,10-Mar-2014,2715331-7772,584.00,HILLCREST AUTO ELECTRICS.
Neighbourhood Services,Direct Services,Third Party Payments,430100,Rendered by Private Contractors,10-Mar-2014,2715331-7775,533.00,HILLCREST AUTO ELECTRICS.
Neighbourhood Services,Direct Services,Supplies and Services,304221,Equipment and Materials,10-Mar-2014,2715382-SI02-0015228,"1,321.52",KILLGERM CHEMICALS LTD.
Neighbourhood Services,Direct Services,Supplies and Services,304221,Equipment and Materials,10-Mar-2014,2715382-SI02-0015229,"2,139.78",KILLGERM CHEMICALS LTD.
Neighbourhood Services,Direct Services,Third Party Payments,430100,Rendered by Private Contractors,10-Mar-2014,2715401-2811,505.26,LINDEN HOSE & ADAPTORS LTD.
Neighbourhood Services,Direct Services,Transport,210057,Repair and Maintenance of Vehicles,10-Mar-2014,2715405-104579,"1,179.84",LONDONDERRY GARAGE LTD.
Neighbourhood Services,Direct Services,Supplies and Services,304221,Equipment and Materials,10-Mar-2014,2715499-191392,"11,825.75",PLUMBING TRADE SUPPLIES LTD.
Neighbourhood Services,Direct Services,Supplies and Services,304221,Equipment and Materials,10-Mar-2014,2715499-191394,"8,305.48",PLUMBING TRADE SUPPLIES LTD.
Neighbourhood Services,Direct Services,Supplies and Services,304221,Equipment and Materials,10-Mar-2014,2715499-191960,"1,527.34",PLUMBING TRADE SUPPLIES LTD.
Neighbourhood Services,Direct Services,Supplies and Services,304221,Equipment and Materials,10-Mar-2014,2715499-4120161925,"1,015.93",PLUMBING TRADE SUPPLIES LTD.
Neighbourhood Services,Direct Services,Stock,926004,Stock,10-Mar-2014,2715511-702603,607.50,RICKERBY LTD.
Neighbourhood Services,Direct Services,Third Party Payments,430100,Rendered by Private Contractors,10-Mar-2014,2715517-FEB02714,"4,049.23",RW CHICKEN (SCAFFOLDING) LTD.
Neighbourhood Services,Direct Services,Premises,106099,Centrally Controlled Rep and Maint,10-Mar-2014,2715520-137906,925.00,SAFE & SURE FIRE PROTECTION LTD.
Neighbourhood Services,Direct Services,Supplies and Services,304221,Equipment and Materials,10-Mar-2014,2715624-87027809,894.00,WOLSELEY UK LTD.
Neighbourhood Services,Direct Services,Third Party Payments,430100,Rendered by Private Contractors,10-Mar-2014,2715626-C318/656,712.50,WRAM FABRICATIONS LTD.
Neighbourhood Services,Direct Services,Supplies and Services,304999,Equipment and Materials,10-Mar-2014,2715627-103909/M,"3,599.80",WYBONE LTD.
Neighbourhood Services,Direct Services,Third Party Payments,430100,Rendered by Private Contractors,10-Mar-2014,2715630-SVI25578,"2,259.97",ZOELLER WASTE SYSTEMS LTD.
Neighbourhood Services,Direct Services,Stock,926004,Stock,10-Mar-2014,2715630-SVI25579,"1,041.86",ZOELLER WASTE SYSTEMS LTD.
Neighbourhood Services,Direct Services,Stock,926004,Stock,10-Mar-2014,2715630-SVI25812,589.67,ZOELLER WASTE SYSTEMS LTD.
Neighbourhood Services,"Environment,Health & Consumer Protection",Supplies and Services,304259,Equipment and Materials,10-Mar-2014,2715145-10-19743,749.03,ALNORTHUMBRIA VETERINARY PRACTICE LTD.
Neighbourhood Services,Projects and Business services,Fees,901002,Professional fees,10-Mar-2014,2715158-13050310,"22,239.00",ATKINS GLOBAL.
Neighbourhood Services,Projects and Business services,Third Party Payments,430100,Rendered by Private Contractors,10-Mar-2014,2715370-032750,535.85,JOHN WADE (HAULAGE) LTD.
Neighbourhood Services,Projects and Business services,Third Party Payments,430100,Rendered by Private Contractors,10-Mar-2014,2715544-0000685366,875.00,SRCL LTD.
Neighbourhood Services,Redundant Direct Services,Supplies and Services,304221,Equipment and Materials,10-Mar-2014,2715618-35171,750.00,WILLOWCRETE MFG CO LTD.
Neighbourhood Services,Technical Services,Stock,926900,Stock in hand-Inventory system,10-Mar-2014,2715153-921323646,"1,184.52",ARCO LTD.
Neighbourhood Services,Technical Services,Stock,926900,Stock in hand-Inventory system,10-Mar-2014,2715164-INV086289,"1,400.00",AZTEC CHEMICALS LTD.
Neighbourhood Services,Technical Services,Supplies and Services,304221,Equipment and Materials,10-Mar-2014,2715166-2082,"1,000.00",BEAVER BRIDGES.
Neighbourhood Services,Technical Services,Third Party Payments,460350,Contract Payments,10-Mar-2014,2715241-475,981.00,D & L HOPPS.
Neighbourhood Services,Technical Services,Stock,926900,Stock in hand-Inventory system,10-Mar-2014,2715369-NI024274,"22,770.00",JOHN MACLEAN & SONS ELECTRICAL (DINGWALL) LTD.
Neighbourhood Services,Technical Services,Supplies and Services,304221,Equipment and Materials,10-Mar-2014,2715375-BII128499,732.87,JT DOVE LTD.
